Workbook

Sheet Instructions
B2: =CONCATENATE(dms_Sector," ",dms_Segment," ", "Network Service Provider") -> Electricity Distribution Network Service Provider
B3: RECAST ECONOMIC BENCHMARKING
B4: =CONCATENATE("This template is to be used by ",dms_TradingNameFull," to fulfil its reporting obligations to the AER.") -> This template is to be used by Power and Water Corporation to fulfil its reporting obligations to the AER.
B5: INSTRUCTIONS
B6: GENERAL | C6: Complete the Business & other details worksheet before entering data or values in any other worksheets. The Business & other details worksheet is linked to other worksheets within the workbook and automatically generates certain column headings and conditional formatting.
B8: CONFIDENTIAL INFORMATION | C8: Please use the macro at the top of each worksheet to identify confidential information in the confidential workbook.
C9: -Do this by selecting the cell or cells that contain confidential information and then run the Mark selection as CONFIDENTIAL macro. This will format the cells a specific colour that is identified by the AER's database which in turn marks that information as confidential. -To reverse this, select the cell or cells and run the Return selection to NON-CONFIDENTIAL macro.
B11: RESPONSES | C11: Please return two (2) files to the AER: 1. A confidential version which must contain a complete set of all responses with confidential information marked using the Mark selection CONFIDENTIAL macro and which has been completed using the locked template file provided by the AER. 2. A public version with confidential information either removed completely or aggregated in some form together with writtten consent to disclose the public version of the response. Use the drop down box on the Business and other details worksheet to identify the file as either confidential ('consolidated') or public.
B13: AMENDMENTS | C13: If an NSP wishes to correct data previously submitted to the AER it should resubmit that data using the original completed submission as the starting point. Please make any necessary changes to the data. Data that is not being amended should be left unchanged. NSPs must identify the reason for the amendments in the Amendment Reason box on the Business and other details worksheet. NSPs may provide further details regarding any amendments in the Amendments worksheet. .
C14: NSP may use Amended Data macro to highlight cells that contain amended data. NB: if data is also CONFIDENTIAL, re-apply the Confidentiality macro after applying the Amended macro
C15: Please resubmit two (2) files - a confidential version and a public version of the amended submission to the AER
B17: UNITS OF MEASURE | C17: All amounts are to be unrounded and reported on a one for one basis: that is 1000 is to be entered as '1000'. Applicable units of measure may be identified in the table column headings or row descriptors.
B19: INPUT / NON-INPUT CELLS
D20: Yellow = Input cell (mandatory)
D21: Darker yellow = input cell (mandatory)
D22: Orange = input cell (if data available)
D23: Grey = Not applicable/No inputs required
D24: PLEASE DO NOT ENTER TEXT into cells that are to contain numbers (including 'numbers stored as text')
B27: NAVIGATION | C27: Many tables in the worksheets have been "grouped" to allow for easy navigation. To ungroup or group data use the outline symbols in the left margin (for Row groupings) or above the columns (for column groupings).

Sheet Contents
B1: RECAST ECONOMIC BENCHMARKING
B2: =INDEX(dms_TradingNameFull_List,MATCH(dms_TradingName,dms_TradingName_List)) -> Power and Water Corporation
B3: =CONCATENATE("REGULATORY PERIOD FROM ", FRCP_y1, " TO ",FRCP_y5) -> REGULATORY PERIOD FROM 2024-25 TO 2028-29
C7: CONTENTS
C9: TEMPLATE | D9: FINAL RIN OCTOBER 2022
C11: SUBMISSION | D11: Business & other details
C13: ECONOMIC BENCHMARKING | D13: 3.1 Revenue
D14: 3.2 Operating expenditure
D15: 3.2.3 Provisions
D16: 3.3 Assets (RAB)

Sheet Business & other details
V1: RECAST ECONOMIC BENCHMARKING
V2: =INDEX(dms_TradingNameFull_List,MATCH(dms_TradingName,dms_TradingName_List)) -> Power and Water Corporation
V3: =CONCATENATE("REGULATORY PERIOD FROM ", FRCP_y1, " TO ",FRCP_y5) -> REGULATORY PERIOD FROM 2024-25 TO 2028-29
V4: BUSINESS & OTHER DETAILS
V6: INSTRUCTIONS
V7: Complete the following business details regulatory template before entering data or values in any other regulatory template. This regulatory template is linked to other cells within the spreadsheet and automatically generates column headings and conditional formatting to distinguish business specific input and non-input cells.
Q9: SUBMISSION PARTICULARS INPUT SHEET
V12: ENTITY DETAILS
V14: Business Name
V16: Short name | AL16: Power and Water
V17: ACN/ABN | AL17: =INDEX(dms_ABN_List,MATCH(dms_TradingName,dms_TradingName_List)) -> 15947352360
V21: Business Address | BQ21: Postal Address
V23: Address 1 | AL23: =INDEX(dms_Addr1_List,MATCH(dms_TradingName,dms_TradingName_List)) -> GPO Box 1921 | BI23: Address 1 | BQ23: =INDEX(dms_PAddr1_List,MATCH(dms_TradingName,dms_TradingName_List)) -> GPO Box 1921
V24: Address 2 | AL24: =IF(ISBLANK(INDEX(dms_Addr2_List,MATCH(dms_TradingName,dms_TradingName_List))),"",(INDEX(dms_Addr2_List,MATCH(dms_TradingName,dms_TradingName_List)))) ->  | BI24: Address 2 | BQ24: =IF(ISBLANK(INDEX(dms_PAddr2_List,MATCH(dms_TradingName,dms_TradingName_List))),"",(INDEX(dms_PAddr2_List,MATCH(dms_TradingName,dms_TradingName_List)))) -> 
V25: Suburb | AL25: =INDEX(dms_Suburb_List,MATCH(dms_TradingName,dms_TradingName_List)) -> DARWIN | BI25: Suburb | BQ25: =INDEX(dms_PSuburb_List,MATCH(dms_TradingName,dms_TradingName_List)) -> DARWIN
V26: State | AL26: =INDEX(dms_State_List,MATCH(dms_TradingName,dms_TradingName_List)) -> NT | AV26: Post code | AX26: =INDEX(dms_PostCode_List,MATCH(dms_TradingName,dms_TradingName_List)) -> 801 | BI26: State | BQ26: =INDEX(dms_PState_List,MATCH(dms_TradingName,dms_TradingName_List)) -> NT | CA26: Post code | CC26: =INDEX(dms_PPostCode_List,MATCH(dms_TradingName,dms_TradingName_List)) -> 801
BA28: `
V30: Contact Names
V32: Name | BI32: Name
V33: Phone | BI33: Phone
V34: Email | BI34: Email
V39: REGULATORY CONTROL PERIODS
V42: RESETS | AF42: Forthcoming period | AR42: 2024-25 | BA42: =FRCP_y2 -> 2025-26 | BJ42: =FRCP_y3 -> 2026-27 | BS42: =FRCP_y4 -> 2027-28 | CB42: =FRCP_y5 -> 2028-29
AR43: =FRCP_y6 -> 2029-30 | BA43: =FRCP_y7 -> 2030-31 | BJ43: =FRCP_y8 -> 2031-32 | BS43: =FRCP_y9 -> 2032-33 | CB43: =FRCP_y10 -> 2033-34
AR44: =FRCP_y11 -> 2034-35 | BA44: =FRCP_y12 -> 2035-36 | BJ44: =FRCP_y13 -> 2036-37 | BS44: =FRCP_y14 -> 2037-38 | CB44: =FRCP_y15 -> 2038-39
AF46: Current period | AR46: =CRCP_y1 -> 2019-20 | BA46: =CRCP_y2 -> 2020-21 | BJ46: =CRCP_y3 -> 2021-22 | BS46: =CRCP_y4 -> 2022-23 | CB46: =CRCP_y5 -> 2023-24
AR47: =CRCP_y6 -> 2024-25 | BA47: =CRCP_y7 -> 2025-26 | BJ47: =CRCP_y8 -> 2026-27 | BS47: =CRCP_y9 -> 2027-28 | CB47: =CRCP_y10 -> 2028-29
AR48: =CRCP_y11 -> 2029-30 | BA48: =CRCP_y12 -> 2030-31 | BJ48: =CRCP_y13 -> 2031-32 | BS48: =CRCP_y14 -> 2032-33 | CB48: =CRCP_y15 -> 2033-34
AF50: Previous period | AR50: =PRCP_y1 -> 2014-15 | BA50: =PRCP_y2 -> 2015-16 | BJ50: =PRCP_y3 -> 2016-17 | BS50: =PRCP_y4 -> 2017-18 | CB50: =PRCP_y5 -> 2018-19
AR51: =PRCP_y6 -> 2019-20 | BA51: =PRCP_y7 -> 2020-21 | BJ51: =PRCP_y8 -> 2021-22 | BS51: =PRCP_y9 -> 2022-23 | CB51: =PRCP_y10 -> 2023-24
AR52: =PRCP_y11 -> 2024-25 | BA52: =PRCP_y12 -> 2025-26 | BJ52: =PRCP_y13 -> 2026-27 | BS52: =PRCP_y14 -> 2027-28 | CB52: =PRCP_y15 -> 2028-29
V54: ANNUAL RINS | AF54: Commencing year | AR54: 2006-07
AF56: Final year | AR56: 2021-22
V60: SUBMISSION DETAILS
AF62: RIN type | AR62: =INDIRECT(dms_Model) -> Economic Benchmarking
V64: THIS FILE | AF64: Source | AR64: Reporting
AF66: Data Quality | AR66: Consolidated
AF68: Confidentiality Status | AR68: Public
AF70: Amended RIN Amendment Reason | AR70: .
AF74: Submission Date | AR74: 31/01/23

Sheet 3.1 Revenue
B1: RECAST ECONOMIC BENCHMARKING
B2: =INDEX(dms_TradingNameFull_List,MATCH(dms_TradingName,dms_TradingName_List)) -> Power and Water Corporation
B3: =CONCATENATE("REGULATORY PERIOD FROM ", FRCP_y1, " TO ",FRCP_y5) -> REGULATORY PERIOD FROM 2024-25 TO 2028-29
B4: 3.1 REVENUE
B6: There are THREE (x TWO) tables on this worksheet. Both ROWS and COLUMNS have been grouped for ease of navigation. see the Instructions sheet on how to group or ungroup tables.
B8: 3.1.1 - REVENUE GROUPING BY CHARGEABLE QUANTITY
C9: STANDARD CONTROL SERVICES | T9: ALTERNATIVE CONTROL SERVICES
C10: REVENUE ($0's) | T10: REVENUE ($0's)
C11: =dms_y1 -> 2006-07 | D11: =dms_y2 -> 2007-08 | E11: =dms_y3 -> 2008-09 | F11: =dms_y4 -> 2009-10 | G11: =dms_y5 -> 2010-11 | H11: =dms_y6 -> 2011-12 | I11: =dms_y7 -> 2012-13 | J11: =dms_y8 -> 2013-14 | K11: =dms_y9 -> 2014-15 | L11: =dms_y10 -> 2015-16 | M11: =dms_y11 -> 2016-17 | N11: =dms_y12 -> 2017-18 | O11: =dms_y13 -> 2018-19 | P11: =dms_y14 -> 2019-20 | Q11: =dms_y15 -> 2020-21 | R11: =dms_y16 -> 2021-22 | T11: =dms_y1 -> 2006-07 | U11: =dms_y2 -> 2007-08 | V11: =dms_y3 -> 2008-09 | W11: =dms_y4 -> 2009-10 | X11: =dms_y5 -> 2010-11 | Y11: =dms_y6 -> 2011-12 | Z11: =dms_y7 -> 2012-13 | AA11: =dms_y8 -> 2013-14 | AB11: =dms_y9 -> 2014-15 | AC11: =dms_y10 -> 2015-16 | AD11: =dms_y11 -> 2016-17 | AE11: =dms_y12 -> 2017-18 | AF11: =dms_y13 -> 2018-19 | AG11: =dms_y14 -> 2019-20 | AH11: =dms_y15 -> 2020-21 | AI11: =dms_y16 -> 2021-22
A12: DREV0101 | B12: Revenue from Fixed Customer Charges
A13: DREV0102 | B13: Revenue from Energy Delivery charges where time of use is not a determinant
A14: DREV0103 | B14: Revenue from On–Peak Energy Delivery charges
A15: DREV0104 | B15: Revenue from Shoulder period Energy Delivery Charges
A16: DREV0105 | B16: Revenue from Off–Peak Energy Delivery charges
A17: DREV0106 | B17: Revenue from controlled load customer charges
A18: DREV0107 | B18: Revenue from unmetered supplies
A19: DREV0108 | B19: Revenue from Contracted Maximum Demand charges
A20: DREV0109 | B20: Revenue from Measured Maximum Demand charges
A21: DREV0110 | B21: Revenue from metering charges
A22: DREV0111 | B22: Revenue from connection charges
A23: DREV0112 | B23: Revenue from public lighting charges
A24: DREV0113 | B24: Revenue from other Sources
A25: DREV01 | B25: Total revenue by chargeable quantity | C25: =SUM(C12:C24) -> 0 | D25: =SUM(D12:D24) -> 0 | E25: 0 | F25: 0 | G25: 0 | H25: 0 | I25: 0 | J25: 0 | K25: =SUM(K12:K24) -> 0 | L25: 0 | M25: 0 | N25: 0 | O25: 0 | P25: 0 | Q25: 0 | R25: 0 | T25: =SUM(T12:T24) -> 0 | U25: =SUM(U12:U24) -> 0 | V25: =SUM(V12:V24) -> 0 | W25: =SUM(W12:W24) -> 0 | X25: =SUM(X12:X24) -> 0 | Y25: =SUM(Y12:Y24) -> 0 | Z25: =SUM(Z12:Z24) -> 0 | AA25: =SUM(AA12:AA24) -> 0 | AB25: 0 | AC25: 0 | AD25: 0 | AE25: 0 | AF25: 0 | AG25: 0 | AH25: 0 | AI25: 0
B27: 3.1.2 - REVENUE GROUPING BY CUSTOMER TYPE OR CLASS
C28: STANDARD CONTROL SERVICES | T28: ALTERNATIVE CONTROL SERVICES
C29: REVENUE ($0's) | T29: REVENUE ($0's)
C30: =dms_y1 -> 2006-07 | D30: =dms_y2 -> 2007-08 | E30: =dms_y3 -> 2008-09 | F30: =dms_y4 -> 2009-10 | G30: =dms_y5 -> 2010-11 | H30: =dms_y6 -> 2011-12 | I30: =dms_y7 -> 2012-13 | J30: =dms_y8 -> 2013-14 | K30: =dms_y9 -> 2014-15 | L30: =dms_y10 -> 2015-16 | M30: =dms_y11 -> 2016-17 | N30: =dms_y12 -> 2017-18 | O30: =dms_y13 -> 2018-19 | P30: =dms_y14 -> 2019-20 | Q30: =dms_y15 -> 2020-21 | R30: =dms_y16 -> 2021-22 | T30: =dms_y1 -> 2006-07 | U30: =dms_y2 -> 2007-08 | V30: =dms_y3 -> 2008-09 | W30: =dms_y4 -> 2009-10 | X30: =dms_y5 -> 2010-11 | Y30: =dms_y6 -> 2011-12 | Z30: =dms_y7 -> 2012-13 | AA30: =dms_y8 -> 2013-14 | AB30: =dms_y9 -> 2014-15 | AC30: =dms_y10 -> 2015-16 | AD30: =dms_y11 -> 2016-17 | AE30: =dms_y12 -> 2017-18 | AF30: =dms_y13 -> 2018-19 | AG30: =dms_y14 -> 2019-20 | AH30: =dms_y15 -> 2020-21 | AI30: =dms_y16 -> 2021-22
A31: DREV0201 | B31: Revenue from residential Customers
A32: DREV0202 | B32: Revenue from Non residential customers not on demand tariffs
A33: DREV0203 | B33: Revenue from Non-residential low voltage demand tariff customers
A34: DREV0204 | B34: Revenue from Non-residential high voltage demand tariff customers
A35: DREV0205 | B35: Revenue from unmetered supplies
A36: DREV0206 | B36: Revenue from Other Customers
A37: DREV02 | B37: Total revenue by customer class | C37: =SUM(C31:C36) -> 0 | D37: =SUM(D31:D36) -> 0 | E37: 0 | F37: 0 | G37: 0 | H37: 0 | I37: 0 | J37: 0 | K37: =SUM(K31:K36) -> 0 | L37: 0 | M37: 0 | N37: 0 | O37: 0 | P37: 0 | Q37: 0 | R37: 0 | T37: =SUM(T31:T36) -> 0 | U37: =SUM(U31:U36) -> 0 | V37: =SUM(V31:V36) -> 0 | W37: =SUM(W31:W36) -> 0 | X37: =SUM(X31:X36) -> 0 | Y37: =SUM(Y31:Y36) -> 0 | Z37: =SUM(Z31:Z36) -> 0 | AA37: =SUM(AA31:AA36) -> 0 | AB37: 0 | AC37: 0 | AD37: 0 | AE37: 0 | AF37: 0 | AG37: 0 | AH37: 0 | AI37: 0
B39: 3.1.3 - REVENUE (penalties) ALLOWED (deducted) THROUGH INCENTIVE SCHEMES
C40: STANDARD CONTROL SERVICES | T40: ALTERNATIVE CONTROL SERVICES
C41: REVENUE ($0's) | T41: REVENUE ($0's)
C42: =dms_y1 -> 2006-07 | D42: =dms_y2 -> 2007-08 | E42: =dms_y3 -> 2008-09 | F42: =dms_y4 -> 2009-10 | G42: =dms_y5 -> 2010-11 | H42: =dms_y6 -> 2011-12 | I42: =dms_y7 -> 2012-13 | J42: =dms_y8 -> 2013-14 | K42: =dms_y9 -> 2014-15 | L42: =dms_y10 -> 2015-16 | M42: =dms_y11 -> 2016-17 | N42: =dms_y12 -> 2017-18 | O42: =dms_y13 -> 2018-19 | P42: =dms_y14 -> 2019-20 | Q42: =dms_y15 -> 2020-21 | R42: =dms_y16 -> 2021-22 | T42: =dms_y1 -> 2006-07 | U42: =dms_y2 -> 2007-08 | V42: =dms_y3 -> 2008-09 | W42: =dms_y4 -> 2009-10 | X42: =dms_y5 -> 2010-11 | Y42: =dms_y6 -> 2011-12 | Z42: =dms_y7 -> 2012-13 | AA42: =dms_y8 -> 2013-14 | AB42: =dms_y9 -> 2014-15 | AC42: =dms_y10 -> 2015-16 | AD42: =dms_y11 -> 2016-17 | AE42: =dms_y12 -> 2017-18 | AF42: =dms_y13 -> 2018-19 | AG42: =dms_y14 -> 2019-20 | AH42: =dms_y15 -> 2020-21 | AI42: =dms_y16 -> 2021-22
A43: DREV0301 | B43: EBSS
A44: DREV0302 | B44: STPIS
A45: DREV0303 | B45: F-Factor
A46: DREV0304 | B46: S-Factor True up
A47: DREV0305 | B47: Other
A48: DREV03 | B48: Total revenue of incentive schemes | C48: =SUM(C43:C47) -> 0 | D48: =SUM(D43:D47) -> 0 | E48: 0 | F48: 0 | G48: 0 | H48: 0 | I48: 0 | J48: 0 | K48: =SUM(K43:K47) -> 0 | L48: 0 | M48: 0 | N48: 0 | O48: 0 | P48: 0 | Q48: 0 | R48: 0 | T48: =SUM(T43:T47) -> 0 | U48: =SUM(U43:U47) -> 0 | V48: =SUM(V43:V47) -> 0 | W48: =SUM(W43:W47) -> 0 | X48: =SUM(X43:X47) -> 0 | Y48: =SUM(Y43:Y47) -> 0 | Z48: =SUM(Z43:Z47) -> 0 | AA48: =SUM(AA43:AA47) -> 0 | AB48: 0 | AC48: 0 | AD48: 0 | AE48: 0 | AF48: 0 | AG48: 0 | AH48: 0 | AI48: 0

Sheet 3.2 Operating expenditure
B1: RECAST ECONOMIC BENCHMARKING
B2: =INDEX(dms_TradingNameFull_List,MATCH(dms_TradingName,dms_TradingName_List)) -> Power and Water Corporation
B3: =CONCATENATE("REGULATORY PERIOD FROM ", FRCP_y1, " TO ",FRCP_y5) -> REGULATORY PERIOD FROM 2024-25 TO 2028-29
B4: 3.2 OPERATING EXPENDITURE
B6: There are THREE tables on this worksheet. Each has been grouped for ease of navigation. see the Instructions sheet on how to group or ungroup tables.
B8: Instructions
B9: Please list current opex categories in tables 3.2.1 and 3.2.2 and provide opex data as required. Where opex categories have changed at any time during the regulatory period, list previous opex categories in the 'Historical' sub-table and provide opex data as required.
B11: 3.2.1 - OPEX CATEGORIES
B12: CURRENT OPEX CATEGORIES AND COST ALLOCATIONS
D13: STANDARD CONTROL SERVICES | U13: ALTERNATIVE CONTROL SERVICES
D14: EXPENDITURE ($0's) | U14: EXPENDITURE ($0's)
D15: =dms_y1 -> 2006-07 | E15: =dms_y2 -> 2007-08 | F15: =dms_y3 -> 2008-09 | G15: =dms_y4 -> 2009-10 | H15: =dms_y5 -> 2010-11 | I15: =dms_y6 -> 2011-12 | J15: =dms_y7 -> 2012-13 | K15: =dms_y8 -> 2013-14 | L15: =dms_y9 -> 2014-15 | M15: =dms_y10 -> 2015-16 | N15: =dms_y11 -> 2016-17 | O15: =dms_y12 -> 2017-18 | P15: =dms_y13 -> 2018-19 | Q15: =dms_y14 -> 2019-20 | R15: =dms_y15 -> 2020-21 | S15: =dms_y16 -> 2021-22 | U15: =dms_y1 -> 2006-07 | V15: =dms_y2 -> 2007-08 | W15: =dms_y3 -> 2008-09 | X15: =dms_y4 -> 2009-10 | Y15: =dms_y5 -> 2010-11 | Z15: =dms_y6 -> 2011-12 | AA15: =dms_y7 -> 2012-13 | AB15: =dms_y8 -> 2013-14 | AC15: =dms_y9 -> 2014-15 | AD15: =dms_y10 -> 2015-16 | AE15: =dms_y11 -> 2016-17 | AF15: =dms_y12 -> 2017-18 | AG15: =dms_y13 -> 2018-19 | AH15: =dms_y14 -> 2019-20 | AI15: =dms_y15 -> 2020-21 | AJ15: =dms_y16 -> 2021-22
A16: DOPEX0101
A17: DOPEX0102
A18: DOPEX0103
A19: DOPEX0104
A20: DOPEX0105
A21: DOPEX0106
A22: DOPEX0107
A23: DOPEX0108
A24: DOPEX0109
A25: DOPEX0110
A26: DOPEX0111
A27: DOPEX0112
A28: DOPEX0113
A29: DOPEX0114
A30: DOPEX0115
A31: DOPEX0116
A32: DOPEX0117
A33: DOPEX0118
A34: DOPEX0119
A35: DOPEX0120
A36: DOPEX0121
A37: DOPEX0122
A38: DOPEX0123
A39: DOPEX0124
A40: DOPEX0125
A41: DOPEX0126
A42: DOPEX0127
A43: DOPEX0128
A44: DOPEX0129
A45: DOPEX0130
A46: DOPEX0131
A47: DOPEX0132
A48: DOPEX0133
A49: DOPEX0134
A50: DOPEX0135
A51: DOPEX0136
A52: DOPEX0137
A53: DOPEX0138
A54: DOPEX0139
A55: DOPEX0140
A56: DOPEX0141
A57: DOPEX0142
A58: DOPEX01 | B58: Total opex | D58: =SUM(D16:D57) -> 0 | E58: 0 | F58: 0 | G58: 0 | H58: 0 | I58: 0 | J58: 0 | K58: 0 | L58: =SUM(L16:L57) -> 0 | M58: 0 | R58: 0 | S58: 0 | U58: =SUM(U16:U57) -> 0 | V58: =SUM(V16:V57) -> 0 | W58: =SUM(W16:W57) -> 0 | X58: =SUM(X16:X57) -> 0 | Y58: =SUM(Y16:Y57) -> 0 | Z58: =SUM(Z16:Z57) -> 0 | AA58: =SUM(AA16:AA57) -> 0 | AB58: =SUM(AB16:AB57) -> 0 | AC58: =SUM(AC16:AC57) -> 0 | AD58: 0 | AE58: 0 | AF58: 0 | AG58: 0 | AH58: =SUM(AH16:AH57) -> 0 | AI58: 0 | AJ58: 0
B60: A: HISTORICAL OPEX CATEGORIES AND COST ALLOCATIONS
D61: STANDARD CONTROL SERVICES | U61: ALTERNATIVE CONTROL SERVICES
D62: EXPENDITURE ($0's) | U62: EXPENDITURE ($0's)
D63: =dms_y1 -> 2006-07 | E63: =dms_y2 -> 2007-08 | F63: =dms_y3 -> 2008-09 | G63: =dms_y4 -> 2009-10 | H63: =dms_y5 -> 2010-11 | I63: =dms_y6 -> 2011-12 | J63: =dms_y7 -> 2012-13 | K63: =dms_y8 -> 2013-14 | L63: =dms_y9 -> 2014-15 | M63: =dms_y10 -> 2015-16 | N63: =dms_y11 -> 2016-17 | O63: =dms_y12 -> 2017-18 | P63: =dms_y13 -> 2018-19 | Q63: =dms_y14 -> 2019-20 | R63: =dms_y15 -> 2020-21 | S63: =dms_y16 -> 2021-22 | U63: =dms_y1 -> 2006-07 | V63: =dms_y2 -> 2007-08 | W63: =dms_y3 -> 2008-09 | X63: =dms_y4 -> 2009-10 | Y63: =dms_y5 -> 2010-11 | Z63: =dms_y6 -> 2011-12 | AA63: =dms_y7 -> 2012-13 | AB63: =dms_y8 -> 2013-14 | AC63: =dms_y9 -> 2014-15 | AD63: =dms_y10 -> 2015-16 | AE63: =dms_y11 -> 2016-17 | AF63: =dms_y12 -> 2017-18 | AG63: =dms_y13 -> 2018-19 | AH63: =dms_y14 -> 2019-20 | AI63: =dms_y15 -> 2020-21 | AJ63: =dms_y16 -> 2021-22
A64: DOPEX0101
A65: DOPEX0102
A66: DOPEX0103
A67: DOPEX0104
A68: DOPEX0105
A69: DOPEX0106
A70: DOPEX0107
A71: DOPEX0108
A72: DOPEX0109
A73: DOPEX0110
A74: DOPEX0111
A75: DOPEX0112
A76: DOPEX0113
A77: DOPEX0114
A78: DOPEX0115
A79: DOPEX0116
A80: DOPEX0117
A81: DOPEX0118
A82: DOPEX0119
A83: DOPEX0120
A84: DOPEX0121
A85: DOPEX0122
A86: DOPEX0123
A87: DOPEX0124
A88: DOPEX0125
A89: DOPEX0126
A90: DOPEX0127
A91: DOPEX0128
A92: DOPEX0129
A93: DOPEX0130
A94: DOPEX0131
A95: DOPEX0132
A96: DOPEX0133
A97: DOPEX0134
A98: DOPEX0135
A99: DOPEX0136
A100: DOPEX0137
A101: DOPEX0138
A102: DOPEX0139
A103: DOPEX0140
A104: DOPEX0141
A105: DOPEX0142
A106: DOPEX01 | B106: Total opex | D106: =SUM(D64:D105) -> 0 | E106: 0 | F106: 0 | G106: 0 | H106: 0 | I106: 0 | J106: 0 | K106: 0 | L106: =SUM(L64:L105) -> 0 | M106: 0 | R106: 0 | S106: 0 | U106: =SUM(U64:U105) -> 0 | V106: 0 | W106: 0 | X106: 0 | Y106: 0 | Z106: 0 | AA106: 0 | AB106: 0 | AC106: 0 | AD106: 0 | AE106: =SUM(AE64:AE105) -> 0 | AF106: 0 | AG106: 0 | AH106: 0 | AI106: 0 | AJ106: 0
B108: B: HISTORICAL OPEX CATEGORIES AND COST ALLOCATIONS
D109: STANDARD CONTROL SERVICES | U109: ALTERNATIVE CONTROL SERVICES
D110: EXPENDITURE ($0's) | U110: EXPENDITURE ($0's)
D111: =dms_y1 -> 2006-07 | E111: =dms_y2 -> 2007-08 | F111: =dms_y3 -> 2008-09 | G111: =dms_y4 -> 2009-10 | H111: =dms_y5 -> 2010-11 | I111: =dms_y6 -> 2011-12 | J111: =dms_y7 -> 2012-13 | K111: =dms_y8 -> 2013-14 | L111: =dms_y9 -> 2014-15 | M111: =dms_y10 -> 2015-16 | N111: =dms_y11 -> 2016-17 | O111: =dms_y12 -> 2017-18 | P111: =dms_y13 -> 2018-19 | Q111: =dms_y14 -> 2019-20 | R111: =dms_y15 -> 2020-21 | S111: =dms_y16 -> 2021-22 | U111: =dms_y1 -> 2006-07 | V111: =dms_y2 -> 2007-08 | W111: =dms_y3 -> 2008-09 | X111: =dms_y4 -> 2009-10 | Y111: =dms_y5 -> 2010-11 | Z111: =dms_y6 -> 2011-12 | AA111: =dms_y7 -> 2012-13 | AB111: =dms_y8 -> 2013-14 | AC111: =dms_y9 -> 2014-15 | AD111: =dms_y10 -> 2015-16 | AE111: =dms_y11 -> 2016-17 | AF111: =dms_y12 -> 2017-18 | AG111: =dms_y13 -> 2018-19 | AH111: =dms_y14 -> 2019-20 | AI111: =dms_y15 -> 2020-21 | AJ111: =dms_y16 -> 2021-22
A112: DOPEX0101
A113: DOPEX0102
A114: DOPEX0103
A115: DOPEX0104
A116: DOPEX0105
A117: DOPEX0106
A118: DOPEX0107
A119: DOPEX0108
A120: DOPEX0109
A121: DOPEX0110
A122: DOPEX0111
A123: DOPEX0112
A124: DOPEX0113
A125: DOPEX0114
A126: DOPEX0115
A127: DOPEX0116
A128: DOPEX0117
A129: DOPEX0118
A130: DOPEX0119
A131: DOPEX0120
A132: DOPEX0121
A133: DOPEX0122
A134: DOPEX0123
A135: DOPEX0124
A136: DOPEX0125
A137: DOPEX0126
A138: DOPEX0127
A139: DOPEX0128
A140: DOPEX0129
A141: DOPEX0130
A142: DOPEX0131
A143: DOPEX0132
A144: DOPEX0133
A145: DOPEX0134
A146: DOPEX0135
A147: DOPEX0136
A148: DOPEX0137
A149: DOPEX0138
A150: DOPEX0139
A151: DOPEX0140
A152: DOPEX0141
A153: DOPEX0142
A154: DOPEX01 | B154: Total opex | D154: =SUM(D112:D153) -> 0 | E154: 0 | F154: 0 | G154: 0 | H154: 0 | I154: 0 | J154: 0 | K154: 0 | L154: =SUM(L112:L153) -> 0 | M154: 0 | R154: 0 | S154: 0 | U154: =SUM(U112:U153) -> 0 | V154: 0 | W154: 0 | X154: 0 | Y154: 0 | Z154: 0 | AA154: 0 | AB154: 0 | AC154: 0 | AD154: 0 | AE154: =SUM(AE112:AE153) -> 0 | AF154: 0 | AG154: 0 | AH154: 0 | AI154: 0 | AJ154: 0
B158: 3.2.2 - OPEX CONSISTENCY
B159: OPEX CONSISTENCY - CURRENT COST ALLOCATION APPROACH
D160: STANDARD CONTROL SERVICES | U160: ALTERNATIVE CONTROL SERVICES
D161: EXPENDITURE ($0's) | U161: EXPENDITURE ($0's)
D162: =dms_y1 -> 2006-07 | E162: =dms_y2 -> 2007-08 | F162: =dms_y3 -> 2008-09 | G162: =dms_y4 -> 2009-10 | H162: =dms_y5 -> 2010-11 | I162: =dms_y6 -> 2011-12 | J162: =dms_y7 -> 2012-13 | K162: =dms_y8 -> 2013-14 | L162: =dms_y9 -> 2014-15 | M162: =dms_y10 -> 2015-16 | N162: =dms_y11 -> 2016-17 | O162: =dms_y12 -> 2017-18 | P162: =dms_y13 -> 2018-19 | Q162: =dms_y14 -> 2019-20 | R162: =dms_y15 -> 2020-21 | S162: =dms_y16 -> 2021-22 | U162: =dms_y1 -> 2006-07 | V162: =dms_y2 -> 2007-08 | W162: =dms_y3 -> 2008-09 | X162: =dms_y4 -> 2009-10 | Y162: =dms_y5 -> 2010-11 | Z162: =dms_y6 -> 2011-12 | AA162: =dms_y7 -> 2012-13 | AB162: =dms_y8 -> 2013-14 | AC162: =dms_y9 -> 2014-15 | AD162: =dms_y10 -> 2015-16 | AE162: =dms_y11 -> 2016-17 | AF162: =dms_y12 -> 2017-18 | AG162: =dms_y13 -> 2018-19 | AH162: =dms_y14 -> 2019-20 | AI162: =dms_y15 -> 2020-21 | AJ162: =dms_y16 -> 2021-22
A163: DOPEX0201 | B163: Opex for network services
A164: DOPEX0202 | B164: Opex for metering
A165: DOPEX0203 | B165: Opex for connection services
A166: DOPEX0204 | B166: Opex for public lighting
A167: DOPEX0205 | B167: Opex for amounts payable for easement levy or similar direct charges on DNSP
A168: DOPEX0206 | B168: Opex for transmission connection point planning
B170: OPEX CONSISTENCY - A: HISTORICAL COST ALLOCATION APPROACH
D171: STANDARD CONTROL SERVICES | U171: ALTERNATIVE CONTROL SERVICES
D172: EXPENDITURE ($0's) | U172: EXPENDITURE ($0's)
D173: =dms_y1 -> 2006-07 | E173: =dms_y2 -> 2007-08 | F173: =dms_y3 -> 2008-09 | G173: =dms_y4 -> 2009-10 | H173: =dms_y5 -> 2010-11 | I173: =dms_y6 -> 2011-12 | J173: =dms_y7 -> 2012-13 | K173: =dms_y8 -> 2013-14 | L173: =dms_y9 -> 2014-15 | M173: =dms_y10 -> 2015-16 | N173: =dms_y11 -> 2016-17 | O173: =dms_y12 -> 2017-18 | P173: =dms_y13 -> 2018-19 | Q173: =dms_y14 -> 2019-20 | R173: =dms_y15 -> 2020-21 | S173: =dms_y16 -> 2021-22 | U173: =dms_y1 -> 2006-07 | V173: =dms_y2 -> 2007-08 | W173: =dms_y3 -> 2008-09 | X173: =dms_y4 -> 2009-10 | Y173: =dms_y5 -> 2010-11 | Z173: =dms_y6 -> 2011-12 | AA173: =dms_y7 -> 2012-13 | AB173: =dms_y8 -> 2013-14 | AC173: =dms_y9 -> 2014-15 | AD173: =dms_y10 -> 2015-16 | AE173: =dms_y11 -> 2016-17 | AF173: =dms_y12 -> 2017-18 | AG173: =dms_y13 -> 2018-19 | AH173: =dms_y14 -> 2019-20 | AI173: =dms_y15 -> 2020-21 | AJ173: =dms_y16 -> 2021-22
A174: DOPEX0201 | B174: Opex for network services
A175: DOPEX0202 | B175: Opex for metering
A176: DOPEX0203 | B176: Opex for connection services
A177: DOPEX0204 | B177: Opex for public lighting
A178: DOPEX0205 | B178: Opex for amounts payable for easement levy or similar direct charges on DNSP
A179: DOPEX0206 | B179: Opex for transmission connection point planning
B181: OPEX CONSISTENCY - B: HISTORICAL COST ALLOCATION APPROACH
D182: STANDARD CONTROL SERVICES | U182: ALTERNATIVE CONTROL SERVICES
D183: EXPENDITURE ($0's) | U183: EXPENDITURE ($0's)
D184: =dms_y1 -> 2006-07 | E184: =dms_y2 -> 2007-08 | F184: =dms_y3 -> 2008-09 | G184: =dms_y4 -> 2009-10 | H184: =dms_y5 -> 2010-11 | I184: =dms_y6 -> 2011-12 | J184: =dms_y7 -> 2012-13 | K184: =dms_y8 -> 2013-14 | L184: =dms_y9 -> 2014-15 | M184: =dms_y10 -> 2015-16 | N184: =dms_y11 -> 2016-17 | O184: =dms_y12 -> 2017-18 | P184: =dms_y13 -> 2018-19 | Q184: =dms_y14 -> 2019-20 | R184: =dms_y15 -> 2020-21 | S184: =dms_y16 -> 2021-22 | U184: =dms_y1 -> 2006-07 | V184: =dms_y2 -> 2007-08 | W184: =dms_y3 -> 2008-09 | X184: =dms_y4 -> 2009-10 | Y184: =dms_y5 -> 2010-11 | Z184: =dms_y6 -> 2011-12 | AA184: =dms_y7 -> 2012-13 | AB184: =dms_y8 -> 2013-14 | AC184: =dms_y9 -> 2014-15 | AD184: =dms_y10 -> 2015-16 | AE184: =dms_y11 -> 2016-17 | AF184: =dms_y12 -> 2017-18 | AG184: =dms_y13 -> 2018-19 | AH184: =dms_y14 -> 2019-20 | AI184: =dms_y15 -> 2020-21 | AJ184: =dms_y16 -> 2021-22
A185: DOPEX0201 | B185: Opex for network services
A186: DOPEX0202 | B186: Opex for metering
A187: DOPEX0203 | B187: Opex for connection services
A188: DOPEX0204 | B188: Opex for public lighting
A189: DOPEX0205 | B189: Opex for amounts payable for easement levy or similar direct charges on DNSP
A190: DOPEX0206 | B190: Opex for transmission connection point planning
B194: 3.2.4 - OPEX FOR HIGH VOLTAGE CUSTOMERS
D195: End user costs (not standard control services)
A196: DOPEX0401 | B196: Opex for high voltage customers

Sheet 3.2.3 Provisions
B1: RECAST ECONOMIC BENCHMARKING
B2: =INDEX(dms_TradingNameFull_List,MATCH(dms_TradingName,dms_TradingName_List)) -> Power and Water Corporation
B3: =CONCATENATE("REGULATORY PERIOD FROM ", FRCP_y1, " TO ",FRCP_y5) -> REGULATORY PERIOD FROM 2024-25 TO 2028-29
B4: 3.2 OPERATING EXPENDITURE
B6: There is ONE table on this worksheet. Each Provision has been grouped for ease of navigation. see the Instructions sheet on how to group or ungroup tables.
B8: 3.2.3 - PROVISIONS
B9: For each provision report:
C10: $0's
C11: =dms_y1 -> 2006-07 | D11: =dms_y2 -> 2007-08 | E11: =dms_y3 -> 2008-09 | F11: =dms_y4 -> 2009-10 | G11: =dms_y5 -> 2010-11 | H11: =dms_y6 -> 2011-12 | I11: =dms_y7 -> 2012-13 | J11: =dms_y8 -> 2013-14 | K11: =dms_y9 -> 2014-15 | L11: =dms_y10 -> 2015-16 | M11: =dms_y11 -> 2016-17 | N11: =dms_y12 -> 2017-18 | O11: =dms_y13 -> 2018-19 | P11: =dms_y14 -> 2019-20 | Q11: =dms_y15 -> 2020-21 | R11: =dms_y16 -> 2021-22
A12: DOPEX03A | B12: <Provision name>
B13: <Brief description of provision>
A14: DOPEX0301A | B14: Opening balance (the carrying amount at the beginning of the period)
B15: Additional provisions made in the period, including increases to existing provisions
A16: DOPEX0302A | B16: Opex component
A17: DOPEX0303A | B17: Capex component
A18: DOPEX0304A | B18: Other component
B19: Amounts used (that is, incurred and charged against the provision) during the period
A20: DOPEX0305A | B20: Opex component
A21: DOPEX0306A | B21: Capex component
A22: DOPEX0307A | B22: Other component
B23: Unused amounts reversed during the period
A24: DOPEX0308A | B24: Opex component
A25: DOPEX0309A | B25: Capex component
A26: DOPEX0310A | B26: Other component
B27: The increase during the period in the discounted amount arising from the passage of time and the effect of any change in the discount rate
A28: DOPEX0311A | B28: Opex component
A29: DOPEX0312A | B29: Capex component
A30: DOPEX0313A | B30: Other component
A31: DOPEX0314A | B31: Closing balance (carrying amount at the end of the period)
A32: DOPEX03B | B32: <Provision name>
B33: <Brief description of provision>
A34: DOPEX0301A | B34: Opening balance (the carrying amount at the beginning of the period)
B35: Additional provisions made in the period, including increases to existing provisions
A36: DOPEX0302A | B36: Opex component
A37: DOPEX0303A | B37: Capex component
A38: DOPEX0304A | B38: Other component
B39: Amounts used (that is, incurred and charged against the provision) during the period
A40: DOPEX0305A | B40: Opex component
A41: DOPEX0306A | B41: Capex component
A42: DOPEX0307A | B42: Other component
B43: Unused amounts reversed during the period
A44: DOPEX0308A | B44: Opex component
A45: DOPEX0309A | B45: Capex component
A46: DOPEX0310A | B46: Other component
B47: The increase during the period in the discounted amount arising from the passage of time and the effect of any change in the discount rate
A48: DOPEX0311A | B48: Opex component
A49: DOPEX0312A | B49: Capex component
A50: DOPEX0313A | B50: Other component
A51: DOPEX0314A | B51: Closing balance (carrying amount at the end of the period)
A52: DOPEX03C | B52: <Provision name>
B53: <Brief description of provision>
A54: DOPEX0301A | B54: Opening balance (the carrying amount at the beginning of the period)
B55: Additional provisions made in the period, including increases to existing provisions
A56: DOPEX0302A | B56: Opex component
A57: DOPEX0303A | B57: Capex component
A58: DOPEX0304A | B58: Other component
B59: Amounts used (that is, incurred and charged against the provision) during the period
A60: DOPEX0305A | B60: Opex component
A61: DOPEX0306A | B61: Capex component
A62: DOPEX0307A | B62: Other component
B63: Unused amounts reversed during the period
A64: DOPEX0308A | B64: Opex component
A65: DOPEX0309A | B65: Capex component
A66: DOPEX0310A | B66: Other component
B67: The increase during the period in the discounted amount arising from the passage of time and the effect of any change in the discount rate
A68: DOPEX0311A | B68: Opex component
A69: DOPEX0312A | B69: Capex component
A70: DOPEX0313A | B70: Other component
A71: DOPEX0314A | B71: Closing balance (carrying amount at the end of the period)
A72: DOPEX03D | B72: <Provision name>
B73: <Brief description of provision>
A74: DOPEX0301A | B74: Opening balance (the carrying amount at the beginning of the period)
B75: Additional provisions made in the period, including increases to existing provisions
A76: DOPEX0302A | B76: Opex component
A77: DOPEX0303A | B77: Capex component
A78: DOPEX0304A | B78: Other component
B79: Amounts used (that is, incurred and charged against the provision) during the period
A80: DOPEX0305A | B80: Opex component
A81: DOPEX0306A | B81: Capex component
A82: DOPEX0307A | B82: Other component
B83: Unused amounts reversed during the period
A84: DOPEX0308A | B84: Opex component
A85: DOPEX0309A | B85: Capex component
A86: DOPEX0310A | B86: Other component
B87: The increase during the period in the discounted amount arising from the passage of time and the effect of any change in the discount rate
A88: DOPEX0311A | B88: Opex component
A89: DOPEX0312A | B89: Capex component
A90: DOPEX0313A | B90: Other component
A91: DOPEX0314A | B91: Closing balance (carrying amount at the end of the period)
A92: DOPEX03E | B92: <Provision name>
B93: <Brief description of provision>
A94: DOPEX0301A | B94: Opening balance (the carrying amount at the beginning of the period)
B95: Additional provisions made in the period, including increases to existing provisions
A96: DOPEX0302A | B96: Opex component
A97: DOPEX0303A | B97: Capex component
A98: DOPEX0304A | B98: Other component
B99: Amounts used (that is, incurred and charged against the provision) during the period
A100: DOPEX0305A | B100: Opex component
A101: DOPEX0306A | B101: Capex component
A102: DOPEX0307A | B102: Other component
B103: Unused amounts reversed during the period
A104: DOPEX0308A | B104: Opex component
A105: DOPEX0309A | B105: Capex component
A106: DOPEX0310A | B106: Other component
B107: The increase during the period in the discounted amount arising from the passage of time and the effect of any change in the discount rate
A108: DOPEX0311A | B108: Opex component
A109: DOPEX0312A | B109: Capex component
A110: DOPEX0313A | B110: Other component
A111: DOPEX0314A | B111: Closing balance (carrying amount at the end of the period)
A112: DOPEX03F | B112: <Provision name>
B113: <Brief description of provision>
A114: DOPEX0301A | B114: Opening balance (the carrying amount at the beginning of the period)
B115: Additional provisions made in the period, including increases to existing provisions
A116: DOPEX0302A | B116: Opex component
A117: DOPEX0303A | B117: Capex component
A118: DOPEX0304A | B118: Other component
B119: Amounts used (that is, incurred and charged against the provision) during the period
A120: DOPEX0305A | B120: Opex component
A121: DOPEX0306A | B121: Capex component
A122: DOPEX0307A | B122: Other component
B123: Unused amounts reversed during the period
A124: DOPEX0308A | B124: Opex component
A125: DOPEX0309A | B125: Capex component
A126: DOPEX0310A | B126: Other component
B127: The increase during the period in the discounted amount arising from the passage of time and the effect of any change in the discount rate
A128: DOPEX0311A | B128: Opex component
A129: DOPEX0312A | B129: Capex component
A130: DOPEX0313A | B130: Other component
A131: DOPEX0314A | B131: Closing balance (carrying amount at the end of the period)
A132: DOPEX03G | B132: <Provision name>
B133: <Brief description of provision>
A134: DOPEX0301A | B134: Opening balance (the carrying amount at the beginning of the period)
B135: Additional provisions made in the period, including increases to existing provisions
A136: DOPEX0302A | B136: Opex component
A137: DOPEX0303A | B137: Capex component
A138: DOPEX0304A | B138: Other component
B139: Amounts used (that is, incurred and charged against the provision) during the period
A140: DOPEX0305A | B140: Opex component
A141: DOPEX0306A | B141: Capex component
A142: DOPEX0307A | B142: Other component
B143: Unused amounts reversed during the period
A144: DOPEX0308A | B144: Opex component
A145: DOPEX0309A | B145: Capex component
A146: DOPEX0310A | B146: Other component
B147: The increase during the period in the discounted amount arising from the passage of time and the effect of any change in the discount rate
A148: DOPEX0311A | B148: Opex component
A149: DOPEX0312A | B149: Capex component
A150: DOPEX0313A | B150: Other component
A151: DOPEX0314A | B151: Closing balance (carrying amount at the end of the period)
A152: DOPEX03H | B152: <Provision name>
B153: <Brief description of provision>
A154: DOPEX0301A | B154: Opening balance (the carrying amount at the beginning of the period)
B155: Additional provisions made in the period, including increases to existing provisions
A156: DOPEX0302A | B156: Opex component
A157: DOPEX0303A | B157: Capex component
A158: DOPEX0304A | B158: Other component
B159: Amounts used (that is, incurred and charged against the provision) during the period
A160: DOPEX0305A | B160: Opex component
A161: DOPEX0306A | B161: Capex component
A162: DOPEX0307A | B162: Other component
B163: Unused amounts reversed during the period
A164: DOPEX0308A | B164: Opex component
A165: DOPEX0309A | B165: Capex component
A166: DOPEX0310A | B166: Other component
B167: The increase during the period in the discounted amount arising from the passage of time and the effect of any change in the discount rate
A168: DOPEX0311A | B168: Opex component
A169: DOPEX0312A | B169: Capex component
A170: DOPEX0313A | B170: Other component
A171: DOPEX0314A | B171: Closing balance (carrying amount at the end of the period)
A172: DOPEX03I | B172: <Provision name>
B173: <Brief description of provision>
A174: DOPEX0301A | B174: Opening balance (the carrying amount at the beginning of the period)
B175: Additional provisions made in the period, including increases to existing provisions
A176: DOPEX0302A | B176: Opex component
A177: DOPEX0303A | B177: Capex component
A178: DOPEX0304A | B178: Other component
B179: Amounts used (that is, incurred and charged against the provision) during the period
A180: DOPEX0305A | B180: Opex component
A181: DOPEX0306A | B181: Capex component
A182: DOPEX0307A | B182: Other component
B183: Unused amounts reversed during the period
A184: DOPEX0308A | B184: Opex component
A185: DOPEX0309A | B185: Capex component
A186: DOPEX0310A | B186: Other component
B187: The increase during the period in the discounted amount arising from the passage of time and the effect of any change in the discount rate
A188: DOPEX0311A | B188: Opex component
A189: DOPEX0312A | B189: Capex component
A190: DOPEX0313A | B190: Other component
A191: DOPEX0314A | B191: Closing balance (carrying amount at the end of the period)
A192: DOPEX03J | B192: <Provision name>
B193: <Brief description of provision>
A194: DOPEX0301A | B194: Opening balance (the carrying amount at the beginning of the period)
B195: Additional provisions made in the period, including increases to existing provisions
A196: DOPEX0302A | B196: Opex component
A197: DOPEX0303A | B197: Capex component
A198: DOPEX0304A | B198: Other component
B199: Amounts used (that is, incurred and charged against the provision) during the period
A200: DOPEX0305A | B200: Opex component
A201: DOPEX0306A | B201: Capex component
A202: DOPEX0307A | B202: Other component
... 169 more rows

Sheet 3.3 Assets (RAB)
B1: RECAST ECONOMIC BENCHMARKING
B2: =INDEX(dms_TradingNameFull_List,MATCH(dms_TradingName,dms_TradingName_List)) -> Power and Water Corporation
B3: =CONCATENATE("REGULATORY PERIOD FROM ", FRCP_y1, " TO ",FRCP_y5) -> REGULATORY PERIOD FROM 2024-25 TO 2028-29
B4: 3.3 ASSETS
B6: There are FOUR tables on this worksheet. Both ROWS and COLUMNS in each have been grouped (and sub-grouped) for ease of navigation. see the Instructions sheet on how to group or ungroup tables.
B8: 3.3.1 - REGULATORY ASSET BASE VALUES
C9: Network services | T9: Standard control services | AK9: Alternative control services
C10: $0's, Nominal | T10: $0's, Nominal | AK10: $0's, Nominal
C11: =dms_y1 -> 2006-07 | D11: =dms_y2 -> 2007-08 | E11: =dms_y3 -> 2008-09 | F11: =dms_y4 -> 2009-10 | G11: =dms_y5 -> 2010-11 | H11: =dms_y6 -> 2011-12 | I11: =dms_y7 -> 2012-13 | J11: =dms_y8 -> 2013-14 | K11: =dms_y9 -> 2014-15 | L11: =dms_y10 -> 2015-16 | M11: =dms_y11 -> 2016-17 | N11: =dms_y12 -> 2017-18 | O11: =dms_y13 -> 2018-19 | P11: =dms_y14 -> 2019-20 | Q11: =dms_y15 -> 2020-21 | R11: =dms_y16 -> 2021-22 | T11: =dms_y1 -> 2006-07 | U11: =dms_y2 -> 2007-08 | V11: =dms_y3 -> 2008-09 | W11: =dms_y4 -> 2009-10 | X11: =dms_y5 -> 2010-11 | Y11: =dms_y6 -> 2011-12 | Z11: =dms_y7 -> 2012-13 | AA11: =dms_y8 -> 2013-14 | AB11: =dms_y9 -> 2014-15 | AC11: =dms_y10 -> 2015-16 | AD11: =dms_y11 -> 2016-17 | AE11: =dms_y12 -> 2017-18 | AF11: =dms_y13 -> 2018-19 | AG11: =dms_y14 -> 2019-20 | AH11: =dms_y15 -> 2020-21 | AI11: =dms_y16 -> 2021-22 | AK11: =dms_y1 -> 2006-07 | AL11: =dms_y2 -> 2007-08 | AM11: =dms_y3 -> 2008-09 | AN11: =dms_y4 -> 2009-10 | AO11: =dms_y5 -> 2010-11 | AP11: =dms_y6 -> 2011-12 | AQ11: =dms_y7 -> 2012-13 | AR11: =dms_y8 -> 2013-14 | AS11: =dms_y9 -> 2014-15 | AT11: =dms_y10 -> 2015-16 | AU11: =dms_y11 -> 2016-17 | AV11: =dms_y12 -> 2017-18 | AW11: =dms_y13 -> 2018-19 | AX11: =dms_y14 -> 2019-20 | AY11: =dms_y15 -> 2020-21 | AZ11: =dms_y16 -> 2021-22
B12: For total asset base:
A13: DRAB0101 | B13: Opening value | D13: =C18 -> 0 | E13: =D18 -> 0 | F13: 0 | G13: 0 | H13: 0 | I13: 0 | J13: 0 | K13: 795434283.4 | L13: 829479457 | M13: 851657231.9 | N13: 857063831.9 | O13: 867151146.9 | P13: 881979511.4 | Q13: 919754546.9 | R13: 919907667.8 | U13: =T18 -> 0 | V13: =U18 -> 0 | W13: 0 | X13: 0 | Y13: 0 | Z13: 0 | AA13: 0 | AB13: 853217637.9 | AC13: 889897766.7 | AD13: 913681690.2 | AE13: 919728382.3 | AF13: 931852687.4 | AG13: 949107587.9 | AH13: 988433511.2 | AI13: 989404807.3 | AL13: =AK18 -> 0 | AM13: =AL18 -> 0 | AN13: 0 | AO13: 0 | AP13: 0 | AQ13: 0 | AR13: 0 | AS13: 7445575.481 | AT13: 8469738.454 | AU13: 10521229.59 | AV13: 12361120.77 | AW13: 14887377.67 | AX13: 14071329.42 | AY13: 16260630.68 | AZ13: 17355367.28
A14: DRAB0102 | B14: Inflation addition | K14: 13662039.22 | L14: 14006219.72 | M14: 12570586.45 | N14: 16362127.7 | O14: 15471028.49 | P14: 16232751.74 | Q14: 7915271.488 | R14: 32181070.29 | AB14: 14654501.41 | AC14: 15026416.32 | AD14: 13486076.61 | AE14: 17558450.94 | AF14: 16625382.47 | AG14: 17468237.81 | AH14: 8506312.489 | AI14: 34612284.21 | AS14: 127882.0216 | AT14: 143016.2216 | AU14: 155294.9017 | AV14: 235985.0329 | AW14: 265608.879 | AX14: 258981.523 | AY14: 139936.5807 | AZ14: 607141.6883
A15: DRAB0103 | B15: Straight line depreciation | K15: -47980766.89 | L15: -50852681.85 | M15: -47055863.98 | N15: -48548478.17 | O15: -50812239.51 | P15: -39505394.37 | Q15: -45893956.28 | R15: -49278042.54 | AB15: -50554919.98 | AC15: -53552165.09 | AD15: -49863672.25 | AE15: -51425458.27 | AF15: -53817312.02 | AG15: -41919908.17 | AH15: -48442849.21 | AI15: -51953419.8 | AS15: -1195560.015 | AT15: -1312189.139 | AU15: -1482254.406 | AV15: -1649265.583 | AW15: -1846128.929 | AX15: -849908.1007 | AY15: -1123684.672 | AZ15: -1284557.288
A16: DRAB0105 | B16: Actual additions (recognised in RAB) | K16: 68470033.71 | L16: 59133338.12 | M16: 40169752.65 | N16: 42460572.99 | O16: 50273499.64 | P16: 61130186.74 | Q16: 38255010.34 | R16: 62247879.45 | AB16: 72699649.62 | AC16: 62430300.87 | AD16: 42724124.84 | AE16: 46200228.42 | AF16: 54566840.96 | AG16: 63873325.92 | AH16: 41049154.3 | AI16: 66952821.39 | AS16: 2091840.967 | AT16: 3220664.052 | AU16: 3166850.686 | AV16: 3939537.444 | AW16: 764471.8022 | AX16: 2780227.837 | AY16: 2078484.699 | AZ16: 3316244.728
A17: DRAB0106 | B17: Disposals | K17: -106132.4205 | L17: -109101.0645 | M17: -277875.1522 | N17: -186907.5246 | O17: -103924.1263 | P17: -82508.64619 | Q17: -123204.6039 | R17: -140753.8228 | AB17: -119102.2293 | AC17: -120628.6005 | AD17: -299837.0586 | AE17: -208916.021 | AF17: -120010.9364 | AG17: -95732.17156 | AH17: -141321.5212 | AI17: -157564.5708 | AS17: 0 | AT17: 0 | AU17: 0 | AV17: 0 | AW17: 0 | AX17: 0 | AY17: 0 | AZ17: 0
A18: DRAB0107 | B18: Closing value | C18: =SUM(C13:C17) -> 0 | D18: 0 | E18: 0 | F18: 0 | G18: 0 | H18: 0 | I18: 0 | J18: =SUM(J13:J17) -> 0 | K18: 829479457 | L18: 851657231.9 | M18: =SUM(M13:M17) -> 857063831.9 | N18: 867151146.9 | O18: =SUM(O13:O17) -> 881979511.4 | P18: 919754546.9 | Q18: =SUM(Q13:Q17) -> 919907667.8 | R18: =SUM(R13:R17) -> 964917821.2 | T18: =SUM(T13:T17) -> 0 | U18: 0 | V18: 0 | W18: 0 | X18: 0 | Y18: 0 | Z18: 0 | AA18: 0 | AB18: 889897766.7 | AC18: 913681690.2 | AD18: =SUM(AD13:AD17) -> 919728382.3 | AE18: 931852687.4 | AF18: 949107587.9 | AG18: 988433511.2 | AH18: 989404807.3 | AI18: 1038858929 | AK18: =SUM(AK13:AK17) -> 0 | AL18: 0 | AM18: 0 | AN18: 0 | AO18: 0 | AP18: 0 | AQ18: 0 | AR18: 0 | AS18: 8469738.454 | AT18: 10521229.59 | AU18: =SUM(AU13:AU17) -> 12361120.77 | AV18: 14887377.67 | AW18: 14071329.42 | AX18: 16260630.68 | AY18: 17355367.28 | AZ18: 19994196.41
B21: 3.3.2 - ASSET VALUE ROLL FORWARD
C22: Network services | T22: Standard control services | AK22: Alternative control services
C23: $0's, Nominal | T23: $0's, Nominal | AK23: $0's, Nominal
C24: =dms_y1 -> 2006-07 | D24: =dms_y2 -> 2007-08 | E24: =dms_y3 -> 2008-09 | F24: =dms_y4 -> 2009-10 | G24: =dms_y5 -> 2010-11 | H24: =dms_y6 -> 2011-12 | I24: =dms_y7 -> 2012-13 | J24: =dms_y8 -> 2013-14 | K24: =dms_y9 -> 2014-15 | L24: =dms_y10 -> 2015-16 | M24: =dms_y11 -> 2016-17 | N24: =dms_y12 -> 2017-18 | O24: =dms_y13 -> 2018-19 | P24: =dms_y14 -> 2019-20 | Q24: =dms_y15 -> 2020-21 | R24: =dms_y16 -> 2021-22 | T24: =dms_y1 -> 2006-07 | U24: =dms_y2 -> 2007-08 | V24: =dms_y3 -> 2008-09 | W24: =dms_y4 -> 2009-10 | X24: =dms_y5 -> 2010-11 | Y24: =dms_y6 -> 2011-12 | Z24: =dms_y7 -> 2012-13 | AA24: =dms_y8 -> 2013-14 | AB24: =dms_y9 -> 2014-15 | AC24: =dms_y10 -> 2015-16 | AD24: =dms_y11 -> 2016-17 | AE24: =dms_y12 -> 2017-18 | AF24: =dms_y13 -> 2018-19 | AG24: =dms_y14 -> 2019-20 | AH24: =dms_y15 -> 2020-21 | AI24: =dms_y16 -> 2021-22 | AK24: =dms_y1 -> 2006-07 | AL24: =dms_y2 -> 2007-08 | AM24: =dms_y3 -> 2008-09 | AN24: =dms_y4 -> 2009-10 | AO24: =dms_y5 -> 2010-11 | AP24: =dms_y6 -> 2011-12 | AQ24: =dms_y7 -> 2012-13 | AR24: =dms_y8 -> 2013-14 | AS24: =dms_y9 -> 2014-15 | AT24: =dms_y10 -> 2015-16 | AU24: =dms_y11 -> 2016-17 | AV24: =dms_y12 -> 2017-18 | AW24: =dms_y13 -> 2018-19 | AX24: =dms_y14 -> 2019-20 | AY24: =dms_y15 -> 2020-21 | AZ24: =dms_y16 -> 2021-22
B25: For overhead network assets less than 33kV
A26: DRAB0201 | B26: Opening value | D26: =C31 -> 0 | E26: =D31 -> 0 | F26: 0 | G26: 0 | H26: 0 | I26: 0 | J26: 0 | K26: 60706596.28 | L26: 63846460.11 | M26: 65978969.54 | N26: 67196443.88 | O26: 68331595.3 | P26: 68558585.08 | Q26: 70144463.94 | R26: 70772889.67 | U26: =T31 -> 0 | V26: =U31 -> 0 | W26: 0 | X26: 0 | Y26: 0 | Z26: 0 | AA26: 0 | AB26: 73836014.21 | AC26: 77654957.2 | AD26: 80248678.58 | AE26: 81729464.16 | AF26: 83110122.31 | AG26: 83386204.67 | AH26: 85315072.06 | AI26: 86079411.59 | AL26: =AK31 -> 0 | AM26: =AL31 -> 0 | AN26: 0 | AO26: 0 | AP26: 0 | AQ26: 0 | AR26: 0 | AS26: N/A | AT26: N/A | AU26: N/A | AV26: N/A | AW26: N/A | AX26: N/A | AY26: N/A | AZ26: N/A
A27: DRAB0202 | B27: Inflation addition | K27: 1042670.547 | L27: 1078082.816 | M27: 973859.329 | N27: 1282841.201 | O27: 1219118.56 | P27: 1261814.449 | Q27: 603652.8738 | R27: 2475843.41 | AB27: 1268175.817 | AC27: 1311246.932 | AD27: 1184482.341 | AE27: 1560289.77 | AF27: 1482785.411 | AG27: 1534715.423 | AH27: 734208.8818 | AI27: 3011310.474 | AS27: N/A | AT27: N/A | AU27: N/A | AV27: N/A | AW27: N/A | AX27: N/A | AY27: N/A | AZ27: N/A
A28: DRAB0203 | B28: Straight line depreciation | K28: -2710099.361 | L28: -2844818.148 | M28: -2964350.723 | N28: -3047713.989 | O28: -3159166.388 | P28: -2258655.298 | Q28: -2386691.42 | R28: -2510322.336 | AB28: -3296230.512 | AC28: -3460085.824 | AD28: -3605470.501 | AE28: -3706863.294 | AF28: -3842420.241 | AG28: -2747149.649 | AH28: -2902876.992 | AI28: -3053246.386 | AS28: N/A | AT28: N/A | AU28: N/A | AV28: N/A | AW28: N/A | AX28: N/A | AY28: N/A | AZ28: N/A
A29: DRAB0205 | B29: Actual additions (recognised in RAB) | K29: 4824700.161 | L29: 3916598.041 | M29: 3241026.666 | N29: 2933155.274 | O29: 2182934.401 | P29: 2592495.012 | Q29: 2437093.883 | R29: 5145789.526 | AB29: 5868170.042 | AC29: 4763666.658 | AD29: 3941984.984 | AE29: 3567528.206 | AF29: 2655052.092 | AG29: 3153191.091 | AH29: 2964180.33 | AI29: 6258703.533 | AS29: N/A | AT29: N/A | AU29: N/A | AV29: N/A | AW29: N/A | AX29: N/A | AY29: N/A | AZ29: N/A
A30: DRAB0206 | B30: Disposals | K30: -17407.51777 | L30: -17353.2781 | M30: -33060.93073 | N30: -33131.06614 | O30: -15896.79518 | P30: -9775.299807 | Q30: -25629.60735 | R30: -25306.49969 | AB30: -21172.35701 | AC30: -21106.38657 | AD30: -40211.23734 | AE30: -40296.5414 | AF30: -19334.90043 | AG30: -11889.46869 | AH30: -31172.6924 | AI30: -30779.7041 | AS30: N/A | AT30: N/A | AU30: N/A | AV30: N/A | AW30: N/A | AX30: N/A | AY30: N/A | AZ30: N/A
A31: DRAB0207 | B31: Closing value | C31: =SUM(C26:C30) -> 0 | D31: 0 | E31: 0 | F31: 0 | G31: 0 | H31: 0 | I31: 0 | J31: =SUM(J26:J30) -> 0 | K31: 63846460.11 | L31: 65978969.54 | M31: =SUM(M26:M30) -> 67196443.88 | N31: 68331595.3 | O31: 68558585.08 | P31: 70144463.94 | Q31: 70772889.67 | R31: =SUM(R26:R30) -> 75858893.77 | T31: =SUM(T26:T30) -> 0 | U31: 0 | V31: 0 | W31: 0 | X31: 0 | Y31: 0 | Z31: 0 | AA31: 0 | AB31: 77654957.2 | AC31: 80248678.58 | AD31: =SUM(AD26:AD30) -> 81729464.16 | AE31: 83110122.31 | AF31: 83386204.67 | AG31: 85315072.06 | AH31: 86079411.59 | AI31: 92265399.51 | AK31: =SUM(AK26:AK30) -> 0 | AL31: 0 | AM31: 0 | AN31: 0 | AO31: 0 | AP31: 0 | AQ31: 0 | AR31: 0 | AS31: 0 | AT31: 0 | AU31: =SUM(AU26:AU30) -> 0 | AV31: 0 | AW31: 0 | AX31: 0 | AY31: 0 | AZ31: 0
B32: For underground network assets less than 33kV
A33: DRAB0301 | B33: Opening value | D33: =C38 -> 0 | E33: =D38 -> 0 | F33: 0 | G33: 0 | H33: 0 | I33: 0 | J33: 0 | K33: 125751491.5 | L33: 132255604.6 | M33: 136673019.9 | N33: 139194973.4 | O33: 141546350.9 | P33: 142016425.1 | Q33: 145301476.7 | R33: 146603174.8 | U33: =T38 -> 0 | V33: =U38 -> 0 | W33: 0 | X33: 0 | Y33: 0 | Z33: 0 | AA33: 0 | AB33: 152948600.1 | AC33: 160859400.8 | AD33: 166232199.8 | AE33: 169299592.9 | AF33: 172159518.3 | AG33: 172731258.6 | AH33: 176726790.2 | AI33: 178310015.1 | AL33: =AK38 -> 0 | AM33: =AL38 -> 0 | AN33: 0 | AO33: 0 | AP33: 0 | AQ33: 0 | AR33: 0 | AS33: N/A | AT33: N/A | AU33: N/A | AV33: N/A | AW33: N/A | AX33: N/A | AY33: N/A | AZ33: N/A
A34: DRAB0302 | B34: Inflation addition | K34: 2159853.862 | L34: 2233209.084 | M34: 2017313.947 | N34: 2657358.584 | O34: 2525358.624 | P34: 2613799.234 | Q34: 1250443.001 | R34: 5128609.357 | AB34: 2626979.772 | AC34: 2716200.014 | AD34: 2453611.805 | AE34: 3232083.137 | AF34: 3071534.671 | AG34: 3179102.918 | AH34: 1520884.597 | AI34: 6237807.694 | AS34: N/A | AT34: N/A | AU34: N/A | AV34: N/A | AW34: N/A | AX34: N/A | AY34: N/A | AZ34: N/A
A35: DRAB0303 | B35: Straight line depreciation | K35: -5613871.791 | L35: -5892936.835 | M35: -6140544.195 | N35: -6313228.152 | O35: -6544096.86 | P35: -4678718.368 | Q35: -4943939.945 | R35: -5200036.221 | AB35: -6828021.051 | AC35: -7167441.342 | AD35: -7468600.387 | AE35: -7678631.848 | AF35: -7959432.062 | AG35: -5690615.8 | AH35: -6013198.604 | AI35: -6324682.52 | AS35: N/A | AT35: N/A | AU35: N/A | AV35: N/A | AW35: N/A | AX35: N/A | AY35: N/A | AZ35: N/A
A36: DRAB0305 | B36: Actual additions (recognised in RAB) | K36: 9994190.059 | L36: 8113089.707 | M36: 6713668.294 | N36: 6075876.795 | O36: 4521742.061 | P36: 5370220.003 | Q36: 5048285.784 | R36: 10659185.42 | AB36: 12155699.78 | AC36: 9867761.39 | AD36: 8165677.833 | AE36: 7389946.939 | AF36: 5499689.187 | AG36: 6531673.076 | AH36: 6140112.009 | AI36: 12964518.1 | AS36: N/A | AT36: N/A | AU36: N/A | AV36: N/A | AW36: N/A | AX36: N/A | AY36: N/A | AZ36: N/A
A37: DRAB0306 | B37: Disposals | K37: -36059.03923 | L37: -35946.68374 | M37: -68484.51422 | N37: -68629.79718 | O37: -32929.6324 | P37: -20249.17762 | Q37: -53090.79842 | R37: -52421.49267 | AB37: -43857.76664 | AC37: -43721.11128 | AD37: -83296.11402 | AE37: -83472.81828 | AF37: -40051.54225 | AG37: -24628.60148 | AH37: -64573.09727 | AI37: -63759.03633 | AS37: N/A | AT37: N/A | AU37: N/A | AV37: N/A | AW37: N/A | AX37: N/A | AY37: N/A | AZ37: N/A
A38: DRAB0307 | B38: Closing value | C38: =SUM(C33:C37) -> 0 | D38: 0 | E38: 0 | F38: 0 | G38: 0 | H38: 0 | I38: 0 | J38: =SUM(J33:J37) -> 0 | K38: 132255604.6 | L38: 136673019.9 | M38: =SUM(M33:M37) -> 139194973.4 | N38: 141546350.9 | O38: 142016425.1 | P38: 145301476.7 | Q38: 146603174.8 | R38: =SUM(R33:R37) -> 157138511.9 | T38: =SUM(T33:T37) -> 0 | U38: 0 | V38: 0 | W38: 0 | X38: 0 | Y38: 0 | Z38: 0 | AA38: 0 | AB38: 160859400.8 | AC38: 166232199.8 | AD38: =SUM(AD33:AD37) -> 169299592.9 | AE38: 172159518.3 | AF38: 172731258.6 | AG38: 176726790.2 | AH38: 178310015.1 | AI38: 191123899.3 | AK38: =SUM(AK33:AK37) -> 0 | AL38: 0 | AM38: 0 | AN38: 0 | AO38: 0 | AP38: 0 | AQ38: 0 | AR38: 0 | AS38: 0 | AT38: 0 | AU38: =SUM(AU33:AU37) -> 0 | AV38: 0 | AW38: 0 | AX38: 0 | AY38: 0 | AZ38: 0
B39: For distribution substations and transformers
A40: DRAB0401 | B40: Opening value | D40: =C45 -> 0 | E40: =D45 -> 0 | F40: 0 | G40: 0 | H40: 0 | I40: 0 | J40: 0 | K40: 80715277.4 | L40: 83254564.26 | M40: 84131001.69 | N40: 83351173.2 | O40: 89283091.83 | P40: 99805621.98 | Q40: 102105544.5 | R40: 103958423.6 | U40: =T45 -> 0 | V40: =U45 -> 0 | W40: 0 | X40: 0 | Y40: 0 | Z40: 0 | AA40: 0 | AB40: 98172105.41 | AC40: 101260580.7 | AD40: 102326571 | AE40: 101378083.9 | AF40: 108592937.9 | AG40: 121391245.3 | AH40: 124188587.4 | AI40: 126442200.9 | AL40: =AK45 -> 0 | AM40: =AL45 -> 0 | AN40: 0 | AO40: 0 | AP40: 0 | AQ40: 0 | AR40: 0 | AS40: N/A | AT40: N/A | AU40: N/A | AV40: N/A | AW40: N/A | AX40: N/A | AY40: N/A | AZ40: N/A
A41: DRAB0402 | B41: Inflation addition | K41: 1386331.1 | L41: 1405799.396 | M41: 1241786.003 | N41: 1591249.67 | O41: 1592918.677 | P41: 1836913.288 | Q41: 878705.2024 | R41: 3636770.792 | AB41: 1686162.116 | AC41: 1709840.949 | AD41: 1510355.292 | AE41: 1935399.783 | AF41: 1937429.757 | AG41: 2234194.7 | AH41: 1068748.6 | AI41: 4423319.315 | AS41: N/A | AT41: N/A | AU41: N/A | AV41: N/A | AW41: N/A | AX41: N/A | AY41: N/A | AZ41: N/A
A42: DRAB0403 | B42: Straight line depreciation | K42: -3578161.384 | L42: -3743867.61 | M42: -3877590.975 | N42: -3941374.115 | O42: -4191314.882 | P42: -4226633.373 | Q42: -4454705.605 | R42: -4659805.01 | AB42: -4352034.062 | AC42: -4553578.672 | AD42: -4716223.275 | AE42: -4793801.218 | AF42: -5097798.331 | AG42: -5140755.386 | AH42: -5418154.311 | AI42: -5667611.924 | AS42: N/A | AT42: N/A | AU42: N/A | AV42: N/A | AW42: N/A | AX42: N/A | AY42: N/A | AZ42: N/A
A43: DRAB0405 | B43: Actual additions (recognised in RAB) | K43: 4737619.199 | L43: 3214505.647 | M43: 1855976.48 | N43: 8282043.074 | O43: 13146480.65 | P43: 4720759.865 | Q43: 5433926.433 | R43: 5949303.319 | AB43: 5762255.504 | AC43: 3909728.088 | AD43: 2257380.814 | AE43: 10073255.42 | AF43: 15989757.15 | AG43: 5741749.889 | AH43: 6609157.718 | AI43: 7235998.579 | AS43: N/A | AT43: N/A | AU43: N/A | AV43: N/A | AW43: N/A | AX43: N/A | AY43: N/A | AZ43: N/A
A44: DRAB0406 | B44: Disposals | K44: -6502.053268 | L44: 0 | M44: 0 | N44: 0 | O44: -25554.28691 | P44: -31117.2442 | Q44: -5046.93184 | R44: 0 | AB44: -7908.295423 | AC44: 0 | AD44: 0 | AE44: 0 | AF44: -31081.08191 | AG44: -37847.17685 | AH44: -6138.465239 | AI44: 0 | AS44: N/A | AT44: N/A | AU44: N/A | AV44: N/A | AW44: N/A | AX44: N/A | AY44: N/A | AZ44: N/A
A45: DRAB0407 | B45: Closing value | C45: =SUM(C40:C44) -> 0 | D45: 0 | E45: 0 | F45: 0 | G45: 0 | H45: 0 | I45: 0 | J45: =SUM(J40:J44) -> 0 | K45: 83254564.26 | L45: 84131001.69 | M45: =SUM(M40:M44) -> 83351173.2 | N45: 89283091.83 | O45: 99805621.98 | P45: 102105544.5 | Q45: 103958423.6 | R45: =SUM(R40:R44) -> 108884692.7 | T45: =SUM(T40:T44) -> 0 | U45: 0 | V45: 0 | W45: 0 | X45: 0 | Y45: 0 | Z45: 0 | AA45: 0 | AB45: 101260580.7 | AC45: 102326571 | AD45: =SUM(AD40:AD44) -> 101378083.9 | AE45: 108592937.9 | AF45: 121391245.3 | AG45: 124188587.4 | AH45: 126442200.9 | AI45: 132433906.9 | AK45: =SUM(AK40:AK44) -> 0 | AL45: 0 | AM45: 0 | AN45: 0 | AO45: 0 | AP45: 0 | AQ45: 0 | AR45: 0 | AS45: 0 | AT45: 0 | AU45: =SUM(AU40:AU44) -> 0 | AV45: 0 | AW45: 0 | AX45: 0 | AY45: 0 | AZ45: 0
B46: For overhead network assets 33kV and above
A47: DRAB0501 | B47: Opening value | D47: =C52 -> 0 | E47: =D52 -> 0 | F47: 0 | G47: 0 | H47: 0 | I47: 0 | J47: 0 | K47: 112522164.1 | L47: 113121540.3 | M47: 115286962.8 | N47: 116992222.8 | O47: 119941995.8 | P47: 118889058.4 | Q47: 117344836.7 | R47: 114972132.8 | U47: =T52 -> 0 | V47: =U52 -> 0 | W47: 0 | X47: 0 | Y47: 0 | Z47: 0 | AA47: 0 | AB47: 112522164.1 | AC47: 113121540.3 | AD47: 115286962.8 | AE47: 116992222.8 | AF47: 119941995.8 | AG47: 118889058.4 | AH47: 117344836.7 | AI47: 114972132.8 | AL47: =AK52 -> 0 | AM47: =AL52 -> 0 | AN47: 0 | AO47: 0 | AP47: 0 | AQ47: 0 | AR47: 0 | AS47: N/A | AT47: N/A | AU47: N/A | AV47: N/A | AW47: N/A | AX47: N/A | AY47: N/A | AZ47: N/A
A48: DRAB0502 | B48: Inflation addition | K48: 1932632.589 | L48: 1910119.817 | M48: 1701652.588 | N48: 2233487.889 | O48: 2139910.719 | P48: 2188142.179 | Q48: 1009852.295 | R48: 4022062.665 | AB48: 1932632.589 | AC48: 1910119.817 | AD48: 1701652.588 | AE48: 2233487.889 | AF48: 2139910.719 | AG48: 2188142.179 | AH48: 1009852.295 | AI48: 4022062.665 | AS48: N/A | AT48: N/A | AU48: N/A | AV48: N/A | AW48: N/A | AX48: N/A | AY48: N/A | AZ48: N/A
A49: DRAB0503 | B49: Straight line depreciation | K49: -3818890.432 | L49: -3929214.251 | M49: -4070845.514 | N49: -4204082.707 | O49: -4373057.566 | P49: -4360852.575 | Q49: -4477285.397 | R49: -4551412.144 | AB49: -3818890.432 | AC49: -3929214.251 | AD49: -4070845.514 | AE49: -4204082.707 | AF49: -4373057.566 | AG49: -4360852.575 | AH49: -4477285.397 | AI49: -4551412.144 | AS49: N/A | AT49: N/A | AU49: N/A | AV49: N/A | AW49: N/A | AX49: N/A | AY49: N/A | AZ49: N/A
A50: DRAB0505 | B50: Actual additions (recognised in RAB) | K50: 2492857.774 | L50: 4191718.18 | M50: 4088172.374 | N50: 4934834.439 | O50: 1180209.467 | P50: 632048.9311 | Q50: 1101300.356 | R50: 1618143.334 | AB50: 2492857.774 | AC50: 4191718.18 | AD50: 4088172.374 | AE50: 4934834.439 | AF50: 1180209.467 | AG50: 632048.9311 | AH50: 1101300.356 | AI50: 1618143.334 | AS50: N/A | AT50: N/A | AU50: N/A | AV50: N/A | AW50: N/A | AX50: N/A | AY50: N/A | AZ50: N/A
A51: DRAB0506 | B51: Disposals | K51: -7223.710651 | L51: -7201.202464 | M51: -13719.50904 | N51: -14466.60666 | O51: 0 | P51: -3560.239771 | Q51: -6571.185248 | R51: -10501.60475 | AB51: -7223.710651 | AC51: -7201.202464 | AD51: -13719.50904 | AE51: -14466.60666 | AF51: 0 | AG51: -3560.239771 | AH51: -6571.185248 | AI51: -10501.60475 | AS51: N/A | AT51: N/A | AU51: N/A | AV51: N/A | AW51: N/A | AX51: N/A | AY51: N/A | AZ51: N/A
A52: DRAB0507 | B52: Closing value | C52: =SUM(C47:C51) -> 0 | D52: 0 | E52: 0 | F52: 0 | G52: 0 | H52: 0 | I52: 0 | J52: =SUM(J47:J51) -> 0 | K52: 113121540.3 | L52: 115286962.8 | M52: =SUM(M47:M51) -> 116992222.8 | N52: 119941995.8 | O52: 118889058.4 | P52: 117344836.7 | Q52: 114972132.8 | R52: =SUM(R47:R51) -> 116050425 | T52: =SUM(T47:T51) -> 0 | U52: 0 | V52: 0 | W52: 0 | X52: 0 | Y52: 0 | Z52: 0 | AA52: 0 | AB52: 113121540.3 | AC52: 115286962.8 | AD52: =SUM(AD47:AD51) -> 116992222.8 | AE52: 119941995.8 | AF52: 118889058.4 | AG52: 117344836.7 | AH52: 114972132.8 | AI52: 116050425 | AK52: =SUM(AK47:AK51) -> 0 | AL52: 0 | AM52: 0 | AN52: 0 | AO52: 0 | AP52: 0 | AQ52: 0 | AR52: 0 | AS52: 0 | AT52: 0 | AU52: =SUM(AU47:AU51) -> 0 | AV52: 0 | AW52: 0 | AX52: 0 | AY52: 0 | AZ52: 0
B53: For underground network assets 33kV and above
A54: DRAB0601 | B54: Opening value | D54: =C59 -> 0 | E54: =D59 -> 0 | F54: 0 | G54: 0 | H54: 0 | I54: 0 | J54: 0 | K54: 56304509.58 | L54: 56604429.01 | M54: 57687976.02 | N54: 58541264.13 | O54: 60017289.09 | P54: 59490414.03 | Q54: 58717707.19 | R54: 57530439.48 | U54: =T59 -> 0 | V54: =U59 -> 0 | W54: 0 | X54: 0 | Y54: 0 | Z54: 0 | AA54: 0 | AB54: 56304509.58 | AC54: 56604429.01 | AD54: 57687976.02 | AE54: 58541264.13 | AF54: 60017289.09 | AG54: 59490414.03 | AH54: 58717707.19 | AI54: 57530439.48 | AL54: =AK59 -> 0 | AM54: =AL59 -> 0 | AN54: 0 | AO54: 0 | AP54: 0 | AQ54: 0 | AR54: 0 | AS54: N/A | AT54: N/A | AU54: N/A | AV54: N/A | AW54: N/A | AX54: N/A | AY54: N/A | AZ54: N/A
A55: DRAB0602 | B55: Inflation addition | K55: 967062.1874 | L55: 955797.1128 | M55: 851483.0409 | N55: 1117605.952 | O55: 1070781.251 | P55: 1094915.596 | Q55: 505315.8966 | R55: 2012583.634 | AB55: 967062.1874 | AC55: 955797.1128 | AD55: 851483.0409 | AE55: 1117605.952 | AF55: 1070781.251 | AG55: 1094915.596 | AH55: 505315.8966 | AI55: 2012583.634 | AS55: N/A | AT55: N/A | AU55: N/A | AV55: N/A | AW55: N/A | AX55: N/A | AY55: N/A | AZ55: N/A
A56: DRAB0603 | B56: Straight line depreciation | K56: -1910919.103 | L56: -1966123.592 | M56: -2036993.886 | N56: -2103663.905 | O56: -2188216.55 | P56: -2182109.344 | Q56: -2240370.691 | R56: -2277462.674 | AB56: -1910919.103 | AC56: -1966123.592 | AD56: -2036993.886 | AE56: -2103663.905 | AF56: -2188216.55 | AG56: -2182109.344 | AH56: -2240370.691 | AI56: -2277462.674 | AS56: N/A | AT56: N/A | AU56: N/A | AV56: N/A | AW56: N/A | AX56: N/A | AY56: N/A | AZ56: N/A
A57: DRAB0605 | B57: Actual additions (recognised in RAB) | K57: 1247390.997 | L57: 2097476.869 | M57: 2045664.003 | N57: 2469321.802 | O57: 590560.2311 | P57: 316268.4026 | Q57: 551075.2211 | R57: 809696.1837 | AB57: 1247390.997 | AC57: 2097476.869 | AD57: 2045664.003 | AE57: 2469321.802 | AF57: 590560.2311 | AG57: 316268.4026 | AH57: 551075.2211 | AI57: 809696.1837 | AS57: N/A | AT57: N/A | AU57: N/A | AV57: N/A | AW57: N/A | AX57: N/A | AY57: N/A | AZ57: N/A
A58: DRAB0606 | B58: Disposals | K58: -3614.643292 | L58: -3603.380511 | M58: -6865.049518 | N58: -7238.886666 | O58: 0 | P58: -1781.493948 | Q58: -3288.12875 | R58: -5254.855432 | AB58: -3614.643292 | AC58: -3603.380511 | AD58: -6865.049518 | AE58: -7238.886666 | AF58: 0 | AG58: -1781.493948 | AH58: -3288.12875 | AI58: -5254.855432 | AS58: N/A | AT58: N/A | AU58: N/A | AV58: N/A | AW58: N/A | AX58: N/A | AY58: N/A | AZ58: N/A
A59: DRAB0607 | B59: Closing value | C59: =SUM(C54:C58) -> 0 | D59: 0 | E59: 0 | F59: 0 | G59: 0 | H59: 0 | I59: 0 | J59: =SUM(J54:J58) -> 0 | K59: 56604429.01 | L59: 57687976.02 | M59: =SUM(M54:M58) -> 58541264.13 | N59: 60017289.09 | O59: 59490414.03 | P59: 58717707.19 | Q59: 57530439.48 | R59: =SUM(R54:R58) -> 58070001.77 | T59: =SUM(T54:T58) -> 0 | U59: 0 | V59: 0 | W59: 0 | X59: 0 | Y59: 0 | Z59: 0 | AA59: 0 | AB59: 56604429.01 | AC59: 57687976.02 | AD59: =SUM(AD54:AD58) -> 58541264.13 | AE59: 60017289.09 | AF59: 59490414.03 | AG59: 58717707.19 | AH59: 57530439.48 | AI59: 58070001.77 | AK59: =SUM(AK54:AK58) -> 0 | AL59: 0 | AM59: 0 | AN59: 0 | AO59: 0 | AP59: 0 | AQ59: 0 | AR59: 0 | AS59: 0 | AT59: 0 | AU59: =SUM(AU54:AU58) -> 0 | AV59: 0 | AW59: 0 | AX59: 0 | AY59: 0 | AZ59: 0
B60: Zone substations and transformers
A61: DRAB0701 | B61: Opening value | D61: =C66 -> 0 | E61: =D66 -> 0 | F61: 0 | G61: 0 | H61: 0 | I61: 0 | J61: 0 | K61: 315438799.1 | L61: 336182063.7 | M61: 347273068.2 | N61: 345411077.5 | O61: 336986579.8 | P61: 319010673.9 | Q61: 327392763.6 | R61: 324805964 | U61: =T66 -> 0 | V61: =U66 -> 0 | W61: 0 | X61: 0 | Y61: 0 | Z61: 0 | AA61: 0 | AB61: 315438799.1 | AC61: 336182063.7 | AD61: 347273068.2 | AE61: 345411077.5 | AF61: 336986579.8 | AG61: 319010673.9 | AH61: 327392763.6 | AI61: 324805964 | AL61: =AK66 -> 0 | AM61: =AL66 -> 0 | AN61: 0 | AO61: 0 | AP61: 0 | AQ61: 0 | AR61: 0 | AS61: N/A | AT61: N/A | AU61: N/A | AV61: N/A | AW61: N/A | AX61: N/A | AY61: N/A | AZ61: N/A
A62: DRAB0702 | B62: Inflation addition | K62: 5417841.969 | L62: 5676620.213 | M62: 5125801.744 | N62: 6594211.479 | O62: 6012249.416 | P62: 5871362.096 | Q62: 2817493.663 | R62: 11362665.98 | AB62: 5417841.969 | AC62: 5676620.213 | AD62: 5125801.744 | AE62: 6594211.479 | AF62: 6012249.416 | AG62: 5871362.096 | AH62: 2817493.663 | AI62: 11362665.98 | AS62: N/A | AT62: N/A | AU62: N/A | AV62: N/A | AW62: N/A | AX62: N/A | AY62: N/A | AZ62: N/A
A63: DRAB0703 | B63: Straight line depreciation | K63: -28927852.89 | L63: -30962962.25 | M63: -26365960.94 | N63: -27412028 | O63: -28368432.43 | P63: -19010213.72 | Q63: -20138151.58 | R63: -21002676.5 | AB63: -28927852.89 | AC63: -30962962.25 | AD63: -26365960.94 | AE63: -27412028 | AF63: -28368432.43 | AG63: -19010213.72 | AH63: -20138151.58 | AI63: -21002676.5 | AS63: N/A | AT63: N/A | AU63: N/A | AV63: N/A | AW63: N/A | AX63: N/A | AY63: N/A | AZ63: N/A
A64: DRAB0705 | B64: Actual additions (recognised in RAB) | K64: 44285790.61 | L64: 36410948.17 | M64: 19518690.74 | N64: 12456759.97 | O64: 4409820.519 | P64: 21536966.55 | Q64: 14763436.32 | R64: 15482666.52 | AB64: 44285790.61 | AC64: 36410948.17 | AD64: 19518690.74 | AE64: 12456759.97 | AF64: 4409820.519 | AG64: 21536966.55 | AH64: 14763436.32 | AI64: 15482666.52 | AS64: N/A | AT64: N/A | AU64: N/A | AV64: N/A | AW64: N/A | AX64: N/A | AY64: N/A | AZ64: N/A
A65: DRAB0706 | B65: Disposals | K65: -32515.06183 | L65: -33601.68026 | M65: -140522.2334 | N65: -63441.168 | O65: -29543.41184 | P65: -16025.19084 | Q65: -29577.95231 | R65: -47269.37022 | AB65: -32515.06183 | AC65: -33601.68026 | AD65: -140522.2334 | AE65: -63441.168 | AF65: -29543.41184 | AG65: -16025.19084 | AH65: -29577.95231 | AI65: -47269.37022 | AS65: N/A | AT65: N/A | AU65: N/A | AV65: N/A | AW65: N/A | AX65: N/A | AY65: N/A | AZ65: N/A
A66: DRAB0707 | B66: Closing value | C66: =SUM(C61:C65) -> 0 | D66: 0 | E66: 0 | F66: 0 | G66: 0 | H66: 0 | I66: 0 | J66: =SUM(J61:J65) -> 0 | K66: 336182063.7 | L66: 347273068.2 | M66: =SUM(M61:M65) -> 345411077.5 | N66: 336986579.8 | O66: 319010673.9 | P66: 327392763.6 | Q66: 324805964 | R66: =SUM(R61:R65) -> 330601350.7 | T66: =SUM(T61:T65) -> 0 | U66: 0 | V66: 0 | W66: 0 | X66: 0 | Y66: 0 | Z66: 0 | AA66: 0 | AB66: 336182063.7 | AD66: =SUM(AD61:AD65) -> 345411077.5 | AE66: 336986579.8 | AF66: 319010673.9 | AG66: 327392763.6 | AK66: =SUM(AK61:AK65) -> 0 | AL66: 0 | AM66: 0 | AN66: 0 | AO66: 0 | AP66: 0 | AQ66: 0 | AR66: 0 | AS66: 0 | AT66: 0 | AU66: =SUM(AU61:AU65) -> 0 | AV66: 0 | AW66: 0 | AX66: 0 | AY66: 0 | AZ66: 0
B67: For easements
A68: DRAB0801 | B68: Opening value | D68: =C72 -> 0 | E68: =D72 -> 0 | F68: 0 | G68: 0 | H68: 0 | I68: 0 | J68: 0 | K68: 34611247.37 | L68: 35205715.36 | M68: 35800183.35 | N68: 36318298.21 | O68: 37011647.54 | P68: 45815760.92 | Q68: 46658995.79 | R68: 47060536.2 | U68: =T72 -> 0 | V68: 0 | W68: 0 | X68: 0 | Y68: 0 | Z68: 0 | AA68: 0 | AB68: 34611247.37 | AC68: 35205715.36 | AD68: 35800183.35 | AE68: 36318298.21 | AF68: 37011647.54 | AG68: 45815760.92 | AH68: 46658995.79 | AI68: 47060536.2 | AL68: =AK72 -> 0 | AM68: 0 | AN68: 0 | AO68: 0 | AP68: 0 | AQ68: 0 | AR68: 0 | AS68: N/A | AT68: N/A | AU68: N/A | AV68: N/A | AW68: N/A | AX68: N/A | AY68: N/A | AZ68: N/A
A69: DRAB0802 | B69: Inflation addition | K69: 594467.9891 | L69: 594467.9891 | M69: 528415.9903 | N69: 693349.3295 | O69: 660332.6948 | P69: 843234.8636 | Q69: 401540.4112 | R69: 1646315.686 | AB69: 594467.9891 | AC69: 594467.9891 | AD69: 528415.9903 | AE69: 693349.3295 | AF69: 660332.6948 | AG69: 843234.8636 | AH69: 401540.4112 | AI69: 1646315.686 | AS69: N/A | AT69: N/A | AU69: N/A | AV69: N/A | AW69: N/A | AX69: N/A | AY69: N/A | AZ69: N/A
A70: DRAB0805 | B70: Actual additions (recognised in RAB) | K70: 0 | L70: 0 | M70: 0 | N70: 0 | O70: 8143780.683 | P70: 0 | Q70: 0 | R70: 0 | AB70: 0 | AC70: 0 | AD70: 0 | AE70: 0 | AF70: 8143780.683 | AG70: 0 | AH70: 0 | AI70: 0 | AS70: N/A | AT70: N/A | AU70: N/A | AV70: N/A | AW70: N/A | AX70: N/A | AY70: N/A | AZ70: N/A
A71: DRAB0806 | B71: Disposals | K71: 0 | L71: 0 | M71: -10301.12176 | N71: 0 | O71: 0 | P71: 0 | Q71: 0 | R71: 0 | AB71: 0 | AC71: 0 | AD71: -10301.12176 | AE71: 0 | AF71: 0 | AG71: 0 | AH71: 0 | AI71: 0 | AS71: N/A | AT71: N/A | AU71: N/A | AV71: N/A | AW71: N/A | AX71: N/A | AY71: N/A | AZ71: N/A
A72: DRAB0807 | B72: Closing value | C72: =SUM(C68:C71) -> 0 | D72: 0 | E72: 0 | F72: 0 | G72: 0 | H72: 0 | I72: 0 | J72: =SUM(J68:J71) -> 0 | K72: 35205715.36 | L72: 35800183.35 | M72: =SUM(M68:M71) -> 36318298.21 | N72: 37011647.54 | O72: 45815760.92 | P72: 46658995.79 | Q72: 47060536.2 | R72: =SUM(R68:R71) -> 48706851.88 | T72: =SUM(T68:T71) -> 0 | U72: 0 | V72: 0 | W72: 0 | X72: 0 | Y72: 0 | Z72: 0 | AA72: 0 | AB72: 35205715.36 | AC72: 35800183.35 | AD72: =SUM(AD68:AD71) -> 36318298.21 | AE72: 37011647.54 | AF72: 45815760.92 | AG72: 46658995.79 | AH72: 47060536.2 | AI72: 48706851.88 | AK72: =SUM(AK68:AK71) -> 0 | AL72: 0 | AM72: 0 | AN72: 0 | AO72: 0 | AP72: 0 | AQ72: 0 | AR72: 0 | AS72: 0 | AT72: 0 | AU72: =SUM(AU68:AU71) -> 0 | AV72: 0 | AW72: 0 | AX72: 0 | AY72: 0 | AZ72: 0
B73: For meters
A74: DRAB0901 | B74: Opening value | D74: =C79 -> 0 | E74: =D79 -> 0 | F74: 0 | G74: 0 | H74: 0 | I74: 0 | J74: 0 | K74: 0 | L74: 0 | M74: 0 | N74: 0 | O74: 0 | P74: 0 | Q74: 0 | R74: 0 | U74: =T79 -> 0 | V74: =U79 -> 0 | W74: 0 | X74: 0 | Y74: 0 | Z74: 0 | AA74: 0 | AB74: 0 | AC74: 0 | AD74: 0 | AE74: 0 | AF74: 0 | AG74: 0 | AH74: 0 | AI74: 0 | AL74: =AK79 -> 0 | AM74: =AL79 -> 0 | AN74: 0 | AO74: 0 | AP74: 0 | AQ74: 0 | AR74: 0 | AS74: 7445575.481 | AT74: 8469738.454 | AU74: 10521229.59 | AV74: 12361120.77 | AW74: 14887377.67 | AX74: 14071329.42 | AY74: 15110592.76 | AZ74: 15941879.59
A75: DRAB0902 | B75: Inflation addition | K75: 0 | L75: 0 | M75: 0 | N75: 0 | O75: 0 | P75: 0 | Q75: 0 | R75: 0 | AB75: 0 | AC75: 0 | AD75: 0 | AE75: 0 | AF75: 0 | AG75: 0 | AH75: 0 | AI75: 0 | AS75: 127882.0216 | AT75: 143016.2216 | AU75: 155294.9017 | AV75: 235985.0329 | AW75: 265608.879 | AX75: 258981.523 | AY75: 130039.5246 | AZ75: 557693.7398
A76: DRAB0903 | B76: Straight line depreciation | K76: 0 | L76: 0 | M76: 0 | N76: 0 | O76: 0 | P76: 0 | Q76: 0 | R76: 0 | AB76: 0 | AC76: 0 | AD76: 0 | AE76: 0 | AF76: 0 | AG76: 0 | AH76: 0 | AI76: 0 | AS76: -1195560.015 | AT76: -1312189.139 | AU76: -1482254.406 | AV76: -1649265.583 | AW76: -1846128.929 | AX76: -849908.1007 | AY76: -976230.1423 | AZ76: -1097425.672
A77: DRAB0905 | B77: Actual additions (recognised in RAB) | K77: 0 | L77: 0 | M77: 0 | N77: 0 | O77: 0 | P77: 0 | Q77: 0 | R77: 0 | AB77: 0 | AC77: 0 | AD77: 0 | AE77: 0 | AF77: 0 | AG77: 0 | AH77: 0 | AI77: 0 | AS77: 2091840.967 | AT77: 3220664.052 | AU77: 3166850.686 | AV77: 3939537.444 | AW77: 764471.8022 | AX77: 1630189.924 | AY77: 1677477.441 | AZ77: 2246878.359
A78: DRAB0906 | B78: Disposals | K78: 0 | L78: 0 | M78: 0 | N78: 0 | O78: 0 | P78: 0 | Q78: 0 | R78: 0 | AB78: 0 | AC78: 0 | AD78: 0 | AE78: 0 | AF78: 0 | AG78: 0 | AH78: 0 | AI78: 0 | AS78: 0 | AT78: 0 | AU78: 0 | AV78: 0 | AW78: 0 | AX78: 0 | AY78: 0 | AZ78: 0
A79: DRAB0907 | B79: Closing value | C79: =SUM(C74:C78) -> 0 | D79: 0 | E79: 0 | F79: 0 | G79: 0 | H79: 0 | I79: 0 | J79: =SUM(J74:J78) -> 0 | K79: 0 | L79: 0 | M79: =SUM(M74:M78) -> 0 | N79: 0 | O79: 0 | P79: 0 | Q79: 0 | R79: =SUM(R74:R78) -> 0 | T79: =SUM(T74:T78) -> 0 | U79: 0 | V79: 0 | W79: 0 | X79: 0 | Y79: 0 | Z79: 0 | AA79: 0 | AB79: 0 | AC79: 0 | AD79: =SUM(AD74:AD78) -> 0 | AE79: 0 | AF79: 0 | AG79: 0 | AH79: 0 | AI79: 0 | AK79: =SUM(AK74:AK78) -> 0 | AL79: 0 | AM79: 0 | AN79: 0 | AO79: 0 | AP79: 0 | AQ79: 0 | AR79: 0 | AS79: 8469738.454 | AT79: 10521229.59 | AU79: =SUM(AU74:AU78) -> 12361120.77 | AV79: 14887377.67 | AW79: 14071329.42 | AX79: 15110592.76 | AY79: 15941879.59 | AZ79: 17649026.01
B80: For “other” asset items with long lives
A81: DRAB1001 | B81: Opening value | D81: =C86 -> 0 | E81: =D86 -> 0 | F81: 0 | G81: 0 | H81: 0 | I81: 0 | J81: 0 | K81: 1669333.246 | L81: 1632813.05 | M81: 1630220.42 | N81: 1978092.657 | O81: 5791561.434 | P81: 21161720.63 | Q81: 30327814.78 | R81: 31525320.86 | U81: =T86 -> 0 | V81: =U86 -> 0 | W81: 0 | X81: 0 | Y81: 0 | Z81: 0 | AA81: 0 | AB81: 1669333.246 | AC81: 1632813.05 | AD81: 1630220.42 | AE81: 1978092.657 | AF81: 5791561.434 | AG81: 21161720.63 | AH81: 30327814.78 | AI81: 31525320.86 | AL81: =AK86 -> 0 | AM81: =AL86 -> 0 | AN81: 0 | AO81: 0 | AP81: 0 | AQ81: 0 | AR81: 0 | AS81: 0 | AT81: 0 | AU81: 0 | AV81: 0 | AW81: 0 | AX81: 0 | AY81: 143599.1713 | AZ81: 237717.7734
A82: DRAB1002 | B82: Inflation addition | K82: 28671.75423 | L82: 27570.95206 | M82: 24062.29402 | N82: 37763.58709 | O82: 103328.4823 | P82: 389479.5208 | Q82: 260996.6848 | R82: 1102848.255 | AB82: 28671.75423 | AC82: 27570.95206 | AD82: 24062.29402 | AE82: 37763.58709 | AF82: 103328.4823 | AG82: 389479.5208 | AH82: 260996.6848 | AI82: 1102848.255 | AS82: 0 | AT82: 0 | AU82: 0 | AV82: 0 | AW82: 0 | AX82: 0 | AY82: 1235.793212 | AZ82: 8316.065451
A83: DRAB1003 | B83: Straight line depreciation | K83: -271578.2706 | L83: -292806.5315 | M83: -290488.5077 | N83: -300151.0564 | O83: -645796.265 | P83: -1732779.367 | Q83: -2759069.59 | R83: -3471286.557 | AB83: -271578.2706 | AC83: -292806.5315 | AD83: -290488.5077 | AE83: -300151.0564 | AF83: -645796.265 | AG83: -1732779.367 | AH83: -2759069.59 | AI83: -3471286.557 | AS83: 0 | AT83: 0 | AU83: 0 | AV83: 0 | AW83: 0 | AX83: 0 | AY83: -8597.596581 | AZ83: -12842.11542
A84: DRAB1005 | B84: Actual additions (recognised in RAB) | K84: 206386.3202 | L84: 271787.9173 | M84: 614298.451 | N84: 4075856.246 | O84: 15912626.98 | P84: 10509394 | Q84: 3695578.989 | R84: 17698228.07 | AB84: 206386.3202 | AC84: 271787.9173 | AD84: 614298.451 | AE84: 4075856.246 | AF84: 15912626.98 | AG84: 10509394 | AH84: 3695578.989 | AI84: 17698228.07 | AS84: 0 | AT84: 0 | AU84: 0 | AV84: 0 | AW84: 0 | AX84: 143599.1713 | AY84: 101480.4055 | AZ84: 613887.9206
A85: DRAB1006 | B85: Disposals | K85: 0 | L85: -9144.967627 | M85: 0 | N85: 0 | O85: 0 | P85: 0 | Q85: 0 | R85: 0 | AB85: 0 | AC85: -9144.967627 | AD85: 0 | AE85: 0 | AF85: 0 | AG85: 0 | AH85: 0 | AI85: 0 | AS85: 0 | AT85: 0 | AU85: 0 | AV85: 0 | AW85: 0 | AX85: 0 | AY85: 0 | AZ85: 0
A86: DRAB1007 | B86: Closing value | C86: =SUM(C81:C85) -> 0 | D86: 0 | E86: 0 | F86: 0 | G86: 0 | H86: 0 | I86: 0 | J86: =SUM(J81:J85) -> 0 | K86: 1632813.05 | L86: 1630220.42 | M86: =SUM(M81:M85) -> 1978092.657 | N86: 5791561.434 | O86: 21161720.63 | P86: 30327814.78 | Q86: 31525320.86 | R86: =SUM(R81:R85) -> 46855110.63 | T86: =SUM(T81:T85) -> 0 | U86: 0 | V86: 0 | W86: 0 | X86: 0 | Y86: 0 | Z86: 0 | AA86: 0 | AB86: 1632813.05 | AC86: 1630220.42 | AD86: =SUM(AD81:AD85) -> 1978092.657 | AE86: 5791561.434 | AF86: 21161720.63 | AG86: 30327814.78 | AH86: 31525320.86 | AI86: 46855110.63 | AK86: =SUM(AK81:AK85) -> 0 | AL86: 0 | AM86: 0 | AN86: 0 | AO86: 0 | AP86: 0 | AQ86: 0 | AR86: 0 | AS86: 0 | AT86: 0 | AU86: =SUM(AU81:AU85) -> 0 | AV86: 0 | AW86: 0 | AX86: 143599.1713 | AY86: 237717.7734 | AZ86: 847079.644
B87: For “other” asset items with short lives
A88: DRAB1101 | B88: Opening value | D88: =C93 -> 0 | E88: =D93 -> 0 | F88: 0 | G88: 0 | H88: 0 | I88: 0 | J88: 0 | K88: 7714864.812 | L88: 7376266.561 | M88: 7195829.997 | N88: 8080286.111 | O88: 8241035.272 | P88: 7231251.42 | Q88: 21760943.6 | R88: 22678786.37 | U88: =T93 -> 0 | V88: =U93 -> 0 | W88: 0 | X88: 0 | Y88: 0 | Z88: 0 | AA88: 0 | AB88: 7714864.812 | AC88: 7376266.561 | AD88: 7195829.997 | AE88: 8080286.111 | AF88: 8241035.272 | AG88: 7231251.42 | AH88: 21760943.6 | AI88: 22678786.37 | AL88: =AK93 -> 0 | AM88: =AL93 -> 0 | AN88: 0 | AO88: 0 | AP88: 0 | AQ88: 0 | AR88: 0 | AS88: 0 | AT88: 0 | AU88: 0 | AV88: 0 | AW88: 0 | AX88: 0 | AY88: 1006438.742 | AZ88: 1175769.924
A89: DRAB1102 | B89: Inflation addition | K89: 132507.2201 | L89: 124552.3434 | M89: 106211.5129 | N89: 154260.0076 | O89: 147030.0673 | P89: 133090.5169 | Q89: 187271.4595 | R89: 793370.5129 | AB89: 132507.2201 | AC89: 124552.3434 | AD89: 106211.5129 | AE89: 154260.0076 | AF89: 147030.0673 | AG89: 133090.5169 | AH89: 187271.4595 | AI89: 793370.5129 | AS89: 0 | AT89: 0 | AU89: 0 | AV89: 0 | AW89: 0 | AX89: 0 | AY89: 8661.262841 | AZ89: 41131.88302
A90: DRAB1103 | B90: Straight line depreciation | K90: -1149393.666 | L90: -1219952.628 | M90: -1309089.248 | N90: -1226236.239 | O90: -1342158.576 | P90: -1055432.322 | Q90: -4493742.046 | R90: -5605041.103 | AB90: -1149393.666 | AC90: -1219952.628 | AD90: -1309089.248 | AE90: -1226236.239 | AF90: -1342158.576 | AG90: -1055432.322 | AH90: -4493742.046 | AI90: -5605041.103 | AS90: 0 | AT90: 0 | AU90: 0 | AV90: 0 | AW90: 0 | AX90: 0 | AY90: -138856.9328 | AZ90: -174289.5004
A91: DRAB1105 | B91: Actual additions (recognised in RAB) | K91: 681098.5893 | L91: 917213.5916 | M91: 2092255.644 | N91: 1232725.393 | O91: 185344.6565 | P91: 15452033.98 | Q91: 5224313.356 | R91: 4884867.073 | AB91: 681098.5893 | AC91: 917213.5916 | AD91: 2092255.644 | AE91: 1232725.393 | AF91: 185344.6565 | AG91: 15452033.98 | AH91: 5224313.356 | AI91: 4884867.073 | AS91: 0 | AT91: 0 | AU91: 0 | AV91: 0 | AW91: 0 | AX91: 1006438.742 | AY91: 299526.8523 | AZ91: 455478.4482
A92: DRAB1106 | B92: Disposals | K92: -2810.3945 | L92: -2249.871822 | M92: -4921.793569 | N92: 0 | O92: 0 | P92: 0 | Q92: 0 | R92: 0 | AB92: -2810.3945 | AC92: -2249.871822 | AD92: -4921.793569 | AE92: 0 | AF92: 0 | AG92: 0 | AH92: 0 | AI92: 0 | AS92: 0 | AT92: 0 | AU92: 0 | AV92: 0 | AW92: 0 | AX92: 0 | AY92: 0 | AZ92: 0
A93: DRAB1107 | B93: Closing value | C93: =SUM(C88:C92) -> 0 | D93: 0 | E93: 0 | F93: 0 | G93: 0 | H93: 0 | I93: 0 | J93: =SUM(J88:J92) -> 0 | K93: 7376266.561 | L93: 7195829.997 | M93: =SUM(M88:M92) -> 8080286.111 | N93: 8241035.272 | O93: 7231251.42 | P93: 21760943.6 | Q93: 22678786.37 | R93: =SUM(R88:R92) -> 22751982.85 | T93: =SUM(T88:T92) -> 0 | U93: 0 | V93: 0 | W93: 0 | X93: 0 | Y93: 0 | Z93: 0 | AA93: 0 | AB93: 7376266.561 | AC93: 7195829.997 | AD93: =SUM(AD88:AD92) -> 8080286.111 | AE93: 8241035.272 | AF93: 7231251.42 | AG93: 21760943.6 | AH93: 22678786.37 | AI93: 22751982.85 | AK93: =SUM(AK88:AK92) -> 0 | AL93: 0 | AM93: 0 | AN93: 0 | AO93: 0 | AP93: 0 | AQ93: 0 | AR93: 0 | AS93: 0 | AT93: 0 | AU93: =SUM(AU88:AU92) -> 0 | AV93: 0 | AW93: 0 | AX93: 1006438.742 | AY93: 1175769.924 | AZ93: 1498090.755
B98: 3.3.3 - TOTAL DISAGGREGATED RAB ASSET VALUES
C99: Network services | T99: Standard control services | AK99: Alternative control services
C100: $0's, Nominal | T100: $0's, Nominal | AK100: $0's, Nominal
C101: =dms_y1 -> 2006-07 | D101: =dms_y2 -> 2007-08 | E101: =dms_y3 -> 2008-09 | F101: =dms_y4 -> 2009-10 | G101: =dms_y5 -> 2010-11 | H101: =dms_y6 -> 2011-12 | I101: =dms_y7 -> 2012-13 | J101: =dms_y8 -> 2013-14 | K101: =dms_y9 -> 2014-15 | L101: =dms_y10 -> 2015-16 | M101: =dms_y11 -> 2016-17 | N101: =dms_y12 -> 2017-18 | O101: =dms_y13 -> 2018-19 | P101: =dms_y14 -> 2019-20 | Q101: =dms_y15 -> 2020-21 | R101: =dms_y16 -> 2021-22 | T101: =dms_y1 -> 2006-07 | U101: =dms_y2 -> 2007-08 | V101: =dms_y3 -> 2008-09 | W101: =dms_y4 -> 2009-10 | X101: =dms_y5 -> 2010-11 | Y101: =dms_y6 -> 2011-12 | Z101: =dms_y7 -> 2012-13 | AA101: =dms_y8 -> 2013-14 | AB101: =dms_y9 -> 2014-15 | AC101: =dms_y10 -> 2015-16 | AD101: =dms_y11 -> 2016-17 | AE101: =dms_y12 -> 2017-18 | AF101: =dms_y13 -> 2018-19 | AG101: =dms_y14 -> 2019-20 | AH101: =dms_y15 -> 2020-21 | AI101: =dms_y16 -> 2021-22 | AK101: =dms_y1 -> 2006-07 | AL101: =dms_y2 -> 2007-08 | AM101: =dms_y3 -> 2008-09 | AN101: =dms_y4 -> 2009-10 | AO101: =dms_y5 -> 2010-11 | AP101: =dms_y6 -> 2011-12 | AQ101: =dms_y7 -> 2012-13 | AR101: =dms_y8 -> 2013-14 | AS101: =dms_y9 -> 2014-15 | AT101: =dms_y10 -> 2015-16 | AU101: =dms_y11 -> 2016-17 | AV101: =dms_y12 -> 2017-18 | AW101: =dms_y13 -> 2018-19 | AX101: =dms_y14 -> 2019-20 | AY101: =dms_y15 -> 2020-21 | AZ101: =dms_y16 -> 2021-22
A102: DRAB1201 | B102: Overhead network assets less than 33kV (wires and poles) | K102: 62276528.19 | L102: 64912714.82 | M102: 66587706.71 | N102: 67764019.59 | O102: 68445090.19 | P102: 69351524.51 | Q102: 70458676.8 | R102: 73315891.72 | AB102: 75745485.7 | AC102: 78951817.89 | AD102: 80989071.37 | AE102: 82419793.23 | AF102: 83248163.49 | AG102: 84350638.37 | AH102: 85697241.83 | AI102: 89172405.55 | AS102: 0 | AT102: 0 | AU102: 0 | AV102: 0 | AW102: 0 | AX102: 0 | AY102: 0 | AZ102: 0
A103: DRAB1202 | B103: Underground network assets less than 33kV (cables) | K103: 129003548.1 | L103: 134464312.3 | M103: 137933996.7 | N103: 140370662.2 | O103: 141781388 | P103: 143658950.9 | Q103: 145952325.8 | R103: 151870843.3 | AB103: 156904000.4 | AC103: 163545800.3 | AD103: 167765896.3 | AE103: 170729555.6 | AF103: 172445388.4 | AG103: 174729024.4 | AH103: 177518402.6 | AI103: 184716957.2 | AS103: 0 | AT103: 0 | AU103: 0 | AV103: 0 | AW103: 0 | AX103: 0 | AY103: 0 | AZ103: 0
A104: DRAB1203 | B104: Distribution substations including transformers | K104: 81984920.83 | L104: 83692782.97 | M104: 83741087.45 | N104: 86317132.51 | O104: 94544356.91 | P104: 100955583.3 | Q104: 103031984.1 | R104: 106421558.2 | AB104: 99716343.04 | AC104: 101793575.9 | AD104: 101852327.5 | AE104: 104985510.9 | AF104: 114992091.6 | AG104: 122789916.4 | AH104: 125315394.1 | AI104: 129438053.9 | AS104: 0 | AT104: 0 | AU104: 0 | AV104: 0 | AW104: 0 | AX104: 0 | AY104: 0 | AZ104: 0
A105: DRAB1204 | B105: Overhead network assets 33kV and above (wires and towers / poles etc) | K105: 112821852.2 | L105: 114204251.6 | M105: 116139592.8 | N105: 118467109.3 | O105: 119415527.1 | P105: 118116947.6 | Q105: 116158484.7 | R105: 115511278.9 | AB105: 112821852.2 | AC105: 114204251.6 | AD105: 116139592.8 | AE105: 118467109.3 | AF105: 119415527.1 | AG105: 118116947.6 | AH105: 116158484.7 | AI105: 115511278.9 | AS105: 0 | AT105: 0 | AU105: 0 | AV105: 0 | AW105: 0 | AX105: 0 | AY105: 0 | AZ105: 0
A106: DRAB1205 | B106: Underground network assets 33kV and above(cables, ducts etc) | K106: 56454469.29 | L106: 57146202.52 | M106: 58114620.08 | N106: 59279276.61 | O106: 59753851.56 | P106: 59104060.61 | Q106: 58124073.34 | R106: 57800220.63 | AB106: 56454469.29 | AC106: 57146202.52 | AD106: 58114620.08 | AE106: 59279276.61 | AF106: 59753851.56 | AG106: 59104060.61 | AH106: 58124073.34 | AI106: 57800220.63 | AS106: 0 | AT106: 0 | AU106: 0 | AV106: 0 | AW106: 0 | AX106: 0 | AY106: 0 | AZ106: 0
A107: DRAB1206 | B107: Zone substations and transformers | K107: 325810431.4 | L107: 341727566 | M107: 346342072.8 | N107: 341198828.6 | O107: 327998626.8 | P107: 323201718.7 | Q107: 326099363.8 | R107: 327703657.4 | AB107: 325810431.4 | AC107: 341727566 | AD107: 346342072.8 | AE107: 341198828.6 | AF107: 327998626.8 | AG107: 323201718.7 | AH107: 326099363.8 | AI107: 327703657.4 | AS107: 0 | AT107: 0 | AU107: 0 | AV107: 0 | AW107: 0 | AX107: 0 | AY107: 0 | AZ107: 0
A108: DRAB1207 | B108: Easements | K108: 34908481.36 | L108: 35502949.35 | M108: 36059240.78 | N108: 36664972.88 | O108: 41413704.23 | P108: 46237378.35 | Q108: 46859765.99 | R108: 47883694.04 | AB108: 34908481.36 | AC108: 35502949.35 | AD108: 36059240.78 | AE108: 36664972.88 | AF108: 41413704.23 | AG108: 46237378.35 | AH108: 46859765.99 | AI108: 47883694.04 | AS108: 0 | AT108: 0 | AU108: 0 | AV108: 0 | AW108: 0 | AX108: 0 | AY108: 0 | AZ108: 0
A109: DRAB1208 | B109: Meters | K109: 0 | L109: 0 | M109: 0 | N109: 0 | O109: 0 | P109: 0 | Q109: 0 | R109: 0 | AB109: 0 | AC109: 0 | AD109: 0 | AE109: 0 | AF109: 0 | AG109: 0 | AH109: 0 | AI109: 0 | AS109: 7957656.968 | AT109: 9495484.022 | AU109: 11441175.18 | AV109: 13624249.22 | AW109: 14479353.54 | AX109: 14590961.09 | AY109: 15526236.18 | AZ109: 16795452.8
A110: DRAB1209 | B110: “Other” assets with long lives | K110: 1651073.148 | L110: 1631516.735 | M110: 1804156.539 | N110: 3884827.046 | O110: 13476641.03 | P110: 25744767.7 | Q110: 30926567.82 | R110: 39190215.75 | AB110: 1651073.148 | AC110: 1631516.735 | AD110: 1804156.539 | AE110: 3884827.046 | AF110: 13476641.03 | AG110: 25744767.7 | AH110: 30926567.82 | AI110: 39190215.75 | AS110: 0 | AT110: 0 | AU110: 0 | AV110: 0 | AW110: 0 | AX110: 71799.58565 | AY110: 190658.4723 | AZ110: 542398.7087
A111: DRAB1210 | B111: “Other” assets with short lives | K111: 7545565.686 | L111: 7286048.279 | M111: 7638058.054 | N111: 8160660.692 | O111: 7736143.346 | P111: 14496097.51 | Q111: 22219864.98 | R111: 22715384.61 | AB111: 7545565.686 | AC111: 7286048.279 | AD111: 7638058.054 | AE111: 8160660.692 | AF111: 7736143.346 | AG111: 14496097.51 | AH111: 22219864.98 | AI111: 22715384.61 | AS111: 0 | AT111: 0 | AU111: 0 | AV111: 0 | AW111: 0 | AX111: 503219.3711 | AY111: 1091104.333 | AZ111: 1336930.34
A112: DRAB13 | B112: Value of Capital Contributions or Contributed Assets (included in the above) | K112: 0 | L112: 0 | M112: 0 | N112: 0 | O112: 0 | P112: 0 | Q112: 0 | R112: 0 | AB112: 2604004.522 | AC112: 3142998.941 | AD112: 2436865.636 | AE112: 3706408.536 | AF112: 295703.1606 | AG112: 1058785.515 | AH112: 2230628.526 | AI112: 1047785.203 | AS112: 0 | AT112: 0 | AU112: 0 | AV112: 0 | AW112: 0 | AX112: 0 | AY112: 0 | AZ112: 0
B115: 3.3.4 - ASSET LIVES
C116: Network services | T116: Standard control services | AK116: Alternative control services
C117: Service Life (Years) | T117: Service Life (Years) | AK117: Service Life (Years)
C118: =dms_y1 -> 2006-07 | D118: =dms_y2 -> 2007-08 | E118: =dms_y3 -> 2008-09 | F118: =dms_y4 -> 2009-10 | G118: =dms_y5 -> 2010-11 | H118: =dms_y6 -> 2011-12 | I118: =dms_y7 -> 2012-13 | J118: =dms_y8 -> 2013-14 | K118: =dms_y9 -> 2014-15 | L118: =dms_y10 -> 2015-16 | M118: =dms_y11 -> 2016-17 | N118: =dms_y12 -> 2017-18 | O118: =dms_y13 -> 2018-19 | P118: =dms_y14 -> 2019-20 | Q118: =dms_y15 -> 2020-21 | R118: =dms_y16 -> 2021-22 | T118: =dms_y1 -> 2006-07 | U118: =dms_y2 -> 2007-08 | V118: =dms_y3 -> 2008-09 | W118: =dms_y4 -> 2009-10 | X118: =dms_y5 -> 2010-11 | Y118: =dms_y6 -> 2011-12 | Z118: =dms_y7 -> 2012-13 | AA118: =dms_y8 -> 2013-14 | AB118: =dms_y9 -> 2014-15 | AC118: =dms_y10 -> 2015-16 | AD118: =dms_y11 -> 2016-17 | AE118: =dms_y12 -> 2017-18 | AF118: =dms_y13 -> 2018-19 | AG118: =dms_y14 -> 2019-20 | AH118: =dms_y15 -> 2020-21 | AI118: =dms_y16 -> 2021-22 | AK118: =dms_y1 -> 2006-07 | AL118: =dms_y2 -> 2007-08 | AM118: =dms_y3 -> 2008-09 | AN118: =dms_y4 -> 2009-10 | AO118: =dms_y5 -> 2010-11 | AP118: =dms_y6 -> 2011-12 | AQ118: =dms_y7 -> 2012-13 | AR118: =dms_y8 -> 2013-14 | AS118: =dms_y9 -> 2014-15 | AT118: =dms_y10 -> 2015-16 | AU118: =dms_y11 -> 2016-17 | AV118: =dms_y12 -> 2017-18 | AW118: =dms_y13 -> 2018-19 | AX118: =dms_y14 -> 2019-20 | AY118: =dms_y15 -> 2020-21 | AZ118: =dms_y16 -> 2021-22
B119: ESTIMATED SERVICE LIFE OF NEW ASSETS
A120: DRAB1401 | B120: Overhead network assets less than 33kV (wires and poles) | K120: 49.79272503 | L120: 49.79272503 | M120: 49.79272503 | N120: 49.79272503 | O120: 49.79272503 | P120: 49.79272503 | Q120: 49.79272503 | R120: 49.79272503 | AB120: 49.79272503 | AC120: 49.79272503 | AD120: 49.79272503 | AE120: 49.79272503 | AF120: 49.79272503 | AG120: 49.79272503 | AH120: 49.79272503 | AI120: 49.79272503 | AS120: 0 | AT120: 0 | AU120: 0 | AV120: 0 | AW120: 0 | AX120: 0 | AY120: 0 | AZ120: 0
A121: DRAB1402 | B121: Underground network assets less than 33kV (cables) | K121: 52.3002848 | L121: 52.3002848 | M121: 52.3002848 | N121: 52.3002848 | O121: 52.3002848 | P121: 52.3002848 | Q121: 52.3002848 | R121: 52.3002848 | AB121: 52.3002848 | AC121: 52.3002848 | AD121: 52.3002848 | AE121: 52.3002848 | AF121: 52.3002848 | AG121: 52.3002848 | AH121: 52.3002848 | AI121: 52.3002848 | AS121: 0 | AT121: 0 | AU121: 0 | AV121: 0 | AW121: 0 | AX121: 0 | AY121: 0 | AZ121: 0
A122: DRAB1403 | B122: Distribution substations including transformers | K122: 44.5553219 | L122: 44.5553219 | M122: 44.5553219 | N122: 44.5553219 | O122: 44.5553219 | P122: 44.5553219 | Q122: 44.5553219 | R122: 44.5553219 | AB122: 44.5553219 | AC122: 44.5553219 | AD122: 44.5553219 | AE122: 44.5553219 | AF122: 44.5553219 | AG122: 44.5553219 | AH122: 44.5553219 | AI122: 44.5553219 | AS122: 0 | AT122: 0 | AU122: 0 | AV122: 0 | AW122: 0 | AX122: 0 | AY122: 0 | AZ122: 0
A123: DRAB1404 | B123: Overhead network assets 33kV and above (wires and towers / poles etc) | K123: 54.34392417 | L123: 54.34392417 | M123: 54.34392417 | N123: 54.34392417 | O123: 54.34392417 | P123: 54.34392417 | Q123: 54.34392417 | R123: 54.34392417 | AB123: 54.34392417 | AC123: 54.34392417 | AD123: 54.34392417 | AE123: 54.34392417 | AF123: 54.34392417 | AG123: 54.34392417 | AH123: 54.34392417 | AI123: 54.34392417 | AS123: 0 | AT123: 0 | AU123: 0 | AV123: 0 | AW123: 0 | AX123: 0 | AY123: 0 | AZ123: 0
A124: DRAB1405 | B124: Underground network assets 33kV and above(cables, ducts etc) | K124: 49.61372593 | L124: 49.61372593 | M124: 49.61372593 | N124: 49.61372593 | O124: 49.61372593 | P124: 49.61372593 | Q124: 49.61372593 | R124: 49.61372593 | AB124: 49.61372593 | AC124: 49.61372593 | AD124: 49.61372593 | AE124: 49.61372593 | AF124: 49.61372593 | AG124: 49.61372593 | AH124: 49.61372593 | AI124: 49.61372593 | AS124: 0 | AT124: 0 | AU124: 0 | AV124: 0 | AW124: 0 | AX124: 0 | AY124: 0 | AZ124: 0
A125: DRAB1406 | B125: Zone substations and transformers | K125: 45.61906132 | L125: 45.61906132 | M125: 45.61906132 | N125: 45.61906132 | O125: 45.61906132 | P125: 45.61906132 | Q125: 45.61906132 | R125: 45.61906132 | AB125: 45.61906132 | AC125: 45.61906132 | AD125: 45.61906132 | AE125: 45.61906132 | AF125: 45.61906132 | AG125: 45.61906132 | AH125: 45.61906132 | AI125: 45.61906132 | AS125: 0 | AT125: 0 | AU125: 0 | AV125: 0 | AW125: 0 | AX125: 0 | AY125: 0 | AZ125: 0
A126: DRAB1407 | B126: Meters | K126: 16 | L126: 16 | M126: 16 | N126: 16 | O126: 16 | P126: 16 | Q126: 16 | R126: 16 | AB126: 16 | AC126: 16 | AD126: 16 | AE126: 16 | AF126: 16 | AG126: 16 | AH126: 16 | AI126: 16 | AS126: 16 | AT126: 16 | AU126: 16 | AV126: 16 | AW126: 16 | AX126: 16 | AY126: 16 | AZ126: 16
A127: DRAB1408 | B127: “Other” assets with long lives | K127: 29.02380843 | L127: 29.02380843 | M127: 29.02380843 | N127: 29.02380843 | O127: 29.02380843 | P127: 29.02380843 | Q127: 29.02380843 | R127: 29.02380843 | AB127: 29.02380843 | AC127: 29.02380843 | AD127: 29.02380843 | AE127: 29.02380843 | AF127: 29.02380843 | AG127: 29.02380843 | AH127: 29.02380843 | AI127: 29.02380843 | AS127: 29.02380843 | AT127: 29.02380843 | AU127: 29.02380843 | AV127: 29.02380843 | AW127: 29.02380843 | AX127: 29.02380843 | AY127: 29.02380843 | AZ127: 29.02380843
A128: DRAB1409 | B128: “Other” assets with short lives | K128: 6.930016135 | L128: 6.930016135 | M128: 6.930016135 | N128: 6.930016135 | O128: 6.930016135 | P128: 6.930016135 | Q128: 6.930016135 | R128: 6.930016135 | AB128: 6.930016135 | AC128: 6.930016135 | AD128: 6.930016135 | AE128: 6.930016135 | AF128: 6.930016135 | AG128: 6.930016135 | AH128: 6.930016135 | AI128: 6.930016135 | AS128: 6.930016135 | AT128: 6.930016135 | AU128: 6.930016135 | AV128: 6.930016135 | AW128: 6.930016135 | AX128: 6.930016135 | AY128: 6.930016135 | AZ128: 6.930016135
B130: ESTIMATED RESIDUAL SERVICE LIFE
A131: DRAB1501 | B131: Overhead network assets less than 33kV (wires and poles) | K131: 23.5587156 | L131: 23.19268442 | M131: 22.66818273 | N131: 22.42060624 | O131: 21.70147965 | P131: 31.05585168 | Q131: 29.65313784 | R131: 30.21878612 | AB131: 23.5587156 | AC131: 23.19268442 | AD131: 22.66818273 | AE131: 22.42060624 | AF131: 21.70147965 | AG131: 31.05585168 | AH131: 29.65313784 | AI131: 30.21878612
A132: DRAB1502 | B132: Underground network assets less than 33kV (cables) | K132: 23.55871483 | L132: 23.19268367 | M132: 22.66818201 | N132: 22.42059806 | O132: 21.70145523 | P132: 31.05582882 | Q132: 29.65310591 | R132: 30.21873409 | AB132: 23.55871483 | AC132: 23.19268367 | AD132: 22.66818201 | AE132: 22.42059806 | AF132: 21.70145523 | AG132: 31.05582882 | AH132: 29.65310591 | AI132: 30.21873409
A133: DRAB1503 | B133: Distribution substations including transformers | K133: 23.26741455 | L133: 22.47168182 | M133: 21.49560739 | N133: 22.65278282 | O133: 23.81248481 | P133: 24.15765351 | Q133: 23.3367663 | R133: 23.36679163 | AB133: 23.26741455 | AC133: 22.47168182 | AD133: 21.49560739 | AE133: 22.65278282 | AF133: 23.81248481 | AG133: 24.15765351 | AH133: 23.3367663 | AI133: 23.36679163
A134: DRAB1504 | B134: Overhead network assets 33kV and above (wires and towers / poles etc) | K134: 29.62157263 | L134: 29.34097137 | M134: 28.73904754 | N134: 28.52988491 | O134: 27.18671241 | P134: 26.90869152 | Q134: 25.67898237 | R134: 25.49767443 | AB134: 29.62157263 | AC134: 29.34097137 | AD134: 28.73904754 | AE134: 28.52988491 | AF134: 27.18671241 | AG134: 26.90869152 | AH134: 25.67898237 | AI134: 25.49767443
A135: DRAB1505 | B135: Underground network assets 33kV and above (cables, ducts etc) | K135: 29.62157263 | L135: 29.34097137 | M135: 28.73904754 | N135: 28.52988491 | O135: 27.18671241 | P135: 26.90869152 | Q135: 25.67898237 | R135: 25.49767443 | AB135: 29.62157263 | AC135: 29.34097137 | AD135: 28.73904754 | AE135: 28.52988491 | AF135: 27.18671241 | AG135: 26.90869152 | AH135: 25.67898237 | AI135: 25.49767443
A136: DRAB1506 | B136: Zone substations and transformers | K136: 11.62139703 | L136: 11.21575724 | M136: 13.10064436 | N136: 12.29338376 | O136: 11.24526971 | P136: 17.22194018 | Q136: 16.12888664 | R136: 15.74091525 | AB136: 11.62139703 | AC136: 11.21575724 | AD136: 13.10064436 | AE136: 12.29338376 | AF136: 11.24526971 | AG136: 17.22194018 | AH136: 16.12888664 | AI136: 15.74091525
A137: DRAB1507 | B137: Meters | AS137: 7.0843273 | AT137: 8.01807398 | AU137: 8.339405649 | AV137: 9.026670915 | AW137: 7.622072975 | AX137: 16 | AY137: 16 | AZ137: 16
A138: DRAB1508 | B138: “Other” assets with long lives | K138: 6.012311095 | L138: 5.567568494 | M138: 6.809538431 | N138: 19.29548909 | O138: 29.02380843 | P138: 17.50240992 | Q138: 11.42606949 | R138: 13.49790917 | AB138: 6.012311095 | AC138: 5.567568494 | AD138: 6.809538431 | AE138: 19.29548909 | AF138: 29.02380843 | AG138: 17.50240992 | AH138: 11.42606949 | AI138: 13.49790917 | AX138: 29.02380843 | AY138: 27.64932864 | AZ138: 29.02380843
A139: DRAB1509 | B139: “Other” assets with short lives | K139: 6.417528459 | L139: 5.898450345 | M139: 6.17244861 | N139: 6.720593479 | O139: 5.387777235 | P139: 6.930016135 | Q139: 5.046748598 | R139: 4.059200001 | AB139: 6.417528459 | AC139: 5.898450345 | AD139: 6.17244861 | AE139: 6.720593479 | AF139: 5.387777235 | AG139: 6.930016135 | AH139: 5.046748598 | AI139: 4.059200001 | AX139: 6.930016135 | AY139: 6.930016135 | AZ139: 6.930016135

Sheet NSP Amendments
B1: =CONCATENATE(dms_TradingName," data amendments") -> Power and Water data amendments
B2: Amended Table | C2: Comments

Sheet AER Sheet Heading (hidden)
B1: =INDEX(dms_Worksheet_List,MATCH(dms_Model,dms_Model_List)) -> NEW HISTORICAL ECONOMIC BENCHMARKING
B2: =INDEX(dms_TradingNameFull_List,MATCH(dms_TradingName,dms_TradingName_List)) -> Power and Water Corporation
B3: =dms_Header_Span -> 2006-07 to 2021-22
B4: XX
C11: EXPENDITURE
C12: =CONCATENATE("Forecast ($0's, real ",dms_DollarReal,")") -> Forecast ($0's, real June 2007)
C13: =dms_y1 -> 2006-07 | D13: =dms_y2 -> 2007-08 | E13: =dms_y3 -> 2008-09 | F13: =dms_y4 -> 2009-10 | G13: =dms_y5 -> 2010-11 | H13: =dms_y6 -> 2011-12 | I13: =dms_y7 -> 2012-13
C42: VOLUMES
C43: 0's
C44: =dms_y1 -> 2006-07 | D44: =dms_y2 -> 2007-08 | E44: =dms_y3 -> 2008-09 | F44: =dms_y4 -> 2009-10 | G44: =dms_y5 -> 2010-11 | H44: =dms_y6 -> 2011-12 | I44: =dms_y7 -> 2012-13

Sheet AER CF (hidden)
B1: AER CONDITIONAL FORMATTING
B3: CELLS FLAGED "Y" and greyed out will be greyed out in the worksheets.
B4: CONDITIONAL FORMATTING MAP
F5: =INDEX(dms_CF_3.6.1, MATCH(dms_TradingName,dms_CF_TradingName))="Y" | G5: =INDEX(dms_CF_3.6.5, MATCH(dms_TradingName,dms_CF_TradingName))="Y" | H5: =INDEX(dms_CF_3.6.6.1, MATCH(dms_TradingName,dms_CF_TradingName))="Y" | I5: =INDEX(dms_CF_3.6.6.2, MATCH(dms_TradingName,dms_CF_TradingName))="Y" | J5: =INDEX(dms_CF_3.6.6.3, MATCH(dms_TradingName,dms_CF_TradingName))="Y" | K5: =INDEX(dms_CF_3.6.7.1, MATCH(dms_TradingName,dms_CF_TradingName))="Y" | L5: =INDEX(dms_CF_3.6.7.2, MATCH(dms_TradingName,dms_CF_TradingName))="Y" | M5: =INDEX(dms_CF_3.6.7.3, MATCH(dms_TradingName,dms_CF_TradingName))="Y" | N5: =INDEX(dms_CF_3.6.7.4, MATCH(dms_TradingName,dms_CF_TradingName))="Y" | O5: =INDEX(dms_CF_3.6.8, MATCH(dms_TradingName,dms_CF_TradingName))="Y" | P5: =INDEX(dms_CF_4.1, MATCH(dms_TradingName,dms_CF_TradingName))="Y" | Q5: =INDEX(dms_CF_6.8, MATCH(dms_TradingName,dms_CF_TradingName))="Y" | R5: =INDEX(dms_CF_7.12, MATCH(dms_TradingName,dms_CF_TradingName))="Y" | S5: =INDEX(dms_CF_8.1_A, MATCH(dms_TradingName,dms_CF_TradingName))="Y" | T5: =INDEX(dms_CF_8.1_B, MATCH(dms_TradingName,dms_CF_TradingName))="Y" | U5: =INDEX(dms_CF_8.1_Neg, MATCH(dms_TradingName,dms_CF_TradingName))="Y" -> TRUE | V5: =INDEX(dms_CF_4.4.1_Neg, MATCH(dms_TradingName,dms_CF_TradingName))="Y" | Y5: =INDEX(dms_CF_F10, MATCH(dms_TradingName,dms_CF_TradingName))="Y"
B6: dms_CF_TradingName | C6: JurisdictionList | D6: Sector | E6: Segment | F6: dms_CF_3.6.1 | G6: dms_CF_3.6.5 | H6: dms_CF_3.6.6.1 | I6: dms_CF_3.6.6.2 | J6: dms_CF_3.6.6.3 | K6: dms_CF_3.6.7.1 | L6: dms_CF_3.6.7.2 | M6: dms_CF_3.6.7.3 | N6: dms_CF_3.6.7.4 | O6: dms_CF_3.6.8 | P6: dms_CF_4.1 | Q6: dms_CF_6.8 (set from dms_MAIFI_flag) | R6: dms_CF_7.12 | S6: dms_CF_8.1_A (and 8.4) | T6: dms_CF_8.1_B (and 8.4) | U6: dms_CF_8.1_Neg (and 8.4) | V6: dms_CF_4.4.1 | W6: dms_CF_MAIFI_flag (set from dms_MAIFI_flag) | X6: 9.5 TUOS (set from Jurisdiction) | Y6: dms_CF_F10
B7: Amadeus | C7: NT | D7: Gas | E7: Transmission | F7: - | G7: - | H7: - | I7: - | J7: - | K7: - | L7: - | M7: - | N7: - | O7: - | P7: - | Q7: - | R7: - | S7: - | T7: - | U7: - | V7: - | W7: - | X7: - | Y7: -
B8: APA GasNet | C8: Vic | D8: Gas | E8: Transmission | F8: - | G8: - | H8: - | I8: - | J8: - | K8: - | L8: - | M8: - | N8: - | O8: - | P8: - | Q8: - | R8: - | S8: - | T8: - | U8: - | V8: - | W8: - | X8: - | Y8: -
B9: Ausgrid | C9: NSW | D9: Electricity | E9: Distribution | G9: Y | H9: N | I9: N | J9: N | K9: N | L9: N | M9: N | N9: Y | O9: N | P9: N | Q9: =IFERROR(IF(_xlfn.SINGLE(dms_MAIFI_Flag)="Yes","N","Y"),"Y") -> Y | R9: Y | S9: N | T9: Y | U9: Y | V9: N | W9: =IFERROR(LEFT(_xlfn.SINGLE(dms_MAIFI_Flag)),"N") -> N | X9: =IF('AER CF'!$C7="Vic","Y","N") -> N
B10: Ausgrid (Tx Assets) | C10: NSW | D10: Electricity | E10: Distribution | G10: Y | H10: N | I10: N | J10: N | K10: N | L10: N | M10: N | N10: Y | O10: N | P10: N | Q10: Y | R10: Y | S10: N | T10: Y | U10: Y | V10: N | W10: N | X10: =IF('AER CF'!$C8="Vic","Y","N") -> Y
B11: AusNet (D) | C11: Vic | D11: Electricity | E11: Distribution | G11: N | H11: N | K11: N | L11: N | M11: N | N11: N | O11: N | P11: N | Q11: Y | R11: N | S11: N | T11: N | U11: Y | V11: N | W11: N | X11: =IF('AER CF'!$C9="Vic","Y","N") -> N
B12: AusNet (T) | C12: Vic | D12: Electricity | E12: Transmission | G12: N | K12: N | L12: N | M12: N | N12: N | O12: N | P12: Y | Q12: Y | R12: N | S12: N | T12: N | U12: Y | V12: N | W12: N | X12: =IF('AER CF'!$C10="Vic","Y","N") -> N
B13: Australian Distribution Co. | C13: NSW | D13: Electricity | E13: Distribution | F13: N | G13: N | H13: N | I13: N | K13: N | L13: N | M13: N | N13: N | O13: N | P13: N | Q13: Y | R13: N | S13: N | T13: N | U13: N | V13: N | W13: N | X13: =IF('AER CF'!$C13="Vic","Y","N") -> N
B14: Australian Distribution Co. (Vic) | C14: Vic | D14: Electricity | E14: Distribution | F14: N | G14: N | H14: N | I14: N | K14: N | L14: N | M14: N | N14: N | O14: N | P14: N | Q14: Y | R14: N | S14: N | T14: N | U14: N | V14: N | W14: N | X14: =IF('AER CF'!$C14="Vic","Y","N") -> Y
B15: CitiPower | C15: Vic | D15: Electricity | E15: Distribution | G15: N | H15: N | K15: N | L15: N | M15: N | N15: N | O15: N | P15: N | Q15: Y | R15: N | S15: N | T15: N | U15: Y | V15: N | W15: N | X15: =IF('AER CF'!$C15="Vic","Y","N") -> Y
B16: Directlink | C16: Qld | D16: Electricity | E16: Transmission | G16: N | K16: N | L16: N | M16: N | N16: N | O16: N | P16: - | Q16: Y | R16: N | S16: N | T16: Y | U16: Y | V16: N | W16: N | X16: =IF('AER CF'!$C16="Vic","Y","N") -> N
B17: ElectraNet | C17: SA | D17: Electricity | E17: Transmission | G17: N | K17: N | L17: N | M17: N | N17: N | O17: N | P17: - | Q17: Y | R17: N | S17: N | T17: Y | U17: Y | V17: N | W17: N | X17: =IF('AER CF'!$C17="Vic","Y","N") -> N
B18: Endeavour Energy | C18: NSW | D18: Electricity | E18: Distribution | G18: Y | H18: N | I18: Y | J18: Y | K18: N | L18: N | M18: N | N18: Y | O18: N | P18: N | Q18: Y | R18: Y | S18: N | T18: Y | U18: Y | V18: Y | W18: N | X18: =IF('AER CF'!$C18="Vic","Y","N") -> N
B19: Energex | C19: Qld | D19: Electricity | E19: Distribution | G19: Y | H19: N | K19: N | L19: N | M19: N | N19: N | O19: N | P19: N | Q19: Y | R19: Y | S19: N | T19: Y | U19: Y | V19: Y | W19: N | X19: =IF('AER CF'!$C19="Vic","Y","N") -> N
B20: Ergon Energy | C20: Qld | D20: Electricity | E20: Distribution | G20: Y | H20: N | I20: Y | J20: Y | K20: N | L20: N | M20: N | N20: N | O20: N | P20: N | Q20: Y | R20: Y | S20: N | T20: Y | U20: Y | V20: N | W20: N | X20: =IF('AER CF'!$C20="Vic","Y","N") -> N
B21: Essential Energy | C21: NSW | D21: Electricity | E21: Distribution | G21: Y | H21: N | I21: Y | J21: Y | K21: N | L21: N | M21: N | N21: Y | O21: N | P21: N | Q21: Y | R21: Y | S21: N | T21: Y | U21: Y | V21: N | W21: N | X21: =IF('AER CF'!$C21="Vic","Y","N") -> N
B22: Evoenergy Distribution | C22: ACT | D22: Electricity | E22: Distribution | G22: Y | H22: N | I22: Y | J22: Y | K22: Y | L22: Y | M22: N | N22: Y | O22: N | P22: Y | Q22: Y | R22: Y | S22: N | T22: Y | U22: Y | V22: N | W22: N | X22: =IF('AER CF'!$C22="Vic","Y","N") -> N
B23: Evoenergy Distribution (Tx Assets) | C23: ACT | D23: Electricity | E23: Distribution | G23: Y | H23: N | I23: Y | J23: Y | K23: Y | L23: Y | M23: N | N23: Y | O23: N | P23: Y | Q23: Y | R23: Y | S23: N | T23: Y | U23: Y | V23: N | W23: N | X23: =IF('AER CF'!$C23="Vic","Y","N") -> N
B24: Jemena Electricity | C24: Vic | D24: Electricity | E24: Distribution | G24: N | H24: N | K24: N | L24: N | M24: N | N24: N | O24: N | P24: N | Q24: Y | R24: N | S24: N | T24: N | U24: Y | V24: N | W24: N | X24: =IF('AER CF'!$C25="Vic","Y","N") -> Y
B25: JGN | C25: Vic | D25: Gas | E25: Distribution | F25: - | G25: - | H25: - | I25: - | J25: - | K25: - | L25: - | M25: - | N25: - | O25: - | P25: - | Q25: - | R25: - | S25: - | T25: - | U25: - | V25: - | W25: - | X25: - | Y25: -
B26: Murraylink | C26: SA | D26: Electricity | E26: Transmission | G26: N | K26: N | L26: N | M26: N | N26: N | O26: N | P26: - | Q26: =IFERROR(IF(_xlfn.SINGLE(dms_MAIFI_Flag)="Yes","N","Y"),"Y") -> Y | R26: N | S26: N | T26: Y | U26: Y | V26: N | W26: =IFERROR(LEFT(_xlfn.SINGLE(dms_MAIFI_Flag)),"N") -> N | X26: =IF('AER CF'!$C26="Vic","Y","N") -> N
B27: Power and Water | C27: NT | D27: Electricity | E27: Distribution | G27: N | H27: N | K27: N | L27: Y | M27: N | N27: N | O27: N | P27: Y | Q27: =IFERROR(IF(_xlfn.SINGLE(dms_MAIFI_Flag)="Yes","N","Y"),"Y") -> Y | R27: Y | S27: Y | T27: Y | U27: Y | V27: N | W27: =IFERROR(LEFT(_xlfn.SINGLE(dms_MAIFI_Flag)),"N") -> N | X27: =IF('AER CF'!$C27="Vic","Y","N") -> N
B28: Powercor Australia | C28: Vic | D28: Electricity | E28: Distribution | G28: N | H28: N | K28: N | L28: N | M28: N | N28: N | O28: N | P28: N | Q28: =IFERROR(IF(_xlfn.SINGLE(dms_MAIFI_Flag)="Yes","N","Y"),"Y") -> Y | R28: N | S28: N | T28: N | U28: Y | V28: N | W28: =IFERROR(LEFT(_xlfn.SINGLE(dms_MAIFI_Flag)),"N") -> N | X28: =IF('AER CF'!$C28="Vic","Y","N") -> Y
B29: Powerlink | C29: Qld | D29: Electricity | E29: Transmission | G29: N | K29: N | L29: N | M29: N | N29: N | O29: N | P29: - | Q29: =IFERROR(IF(_xlfn.SINGLE(dms_MAIFI_Flag)="Yes","N","Y"),"Y") -> Y | R29: N | S29: N | T29: Y | U29: Y | V29: N | W29: =IFERROR(LEFT(_xlfn.SINGLE(dms_MAIFI_Flag)),"N") -> N | X29: =IF('AER CF'!$C29="Vic","Y","N") -> N
B30: Roma to Brisbane Pipeline | C30: Qld | D30: Gas | E30: Transmission | F30: - | G30: - | H30: - | I30: - | J30: - | K30: - | L30: - | M30: - | N30: - | O30: - | P30: - | Q30: - | R30: - | S30: - | T30: - | U30: - | V30: - | W30: - | X30: - | Y30: -
B31: SA Power Networks | C31: SA | D31: Electricity | E31: Distribution | G31: Y | H31: N | K31: N | L31: N | M31: N | N31: N | O31: N | P31: N | Q31: =IFERROR(IF(_xlfn.SINGLE(dms_MAIFI_Flag)="Yes","N","Y"),"Y") -> Y | R31: Y | S31: N | T31: Y | U31: N | V31: N | W31: =IFERROR(LEFT(_xlfn.SINGLE(dms_MAIFI_Flag)),"N") -> N | X31: =IF('AER CF'!$C31="Vic","Y","N") -> N
B32: TasNetworks (D) | C32: Tas | D32: Electricity | E32: Distribution | G32: Y | H32: N | K32: N | L32: N | M32: N | N32: N | O32: N | P32: N | Q32: =IFERROR(IF(_xlfn.SINGLE(dms_MAIFI_Flag)="Yes","N","Y"),"Y") -> Y | R32: Y | S32: N | T32: Y | U32: Y | V32: N | W32: =IFERROR(LEFT(_xlfn.SINGLE(dms_MAIFI_Flag)),"N") -> N | X32: =IF('AER CF'!$C32="Vic","Y","N") -> N
B33: TasNetworks (T) | C33: Tas | D33: Electricity | E33: Transmission | G33: N | K33: N | L33: N | M33: N | N33: N | O33: N | P33: - | Q33: =IFERROR(IF(_xlfn.SINGLE(dms_MAIFI_Flag)="Yes","N","Y"),"Y") -> Y | R33: N | S33: N | T33: Y | U33: Y | V33: N | W33: =IFERROR(LEFT(_xlfn.SINGLE(dms_MAIFI_Flag)),"N") -> N | X33: =IF('AER CF'!$C33="Vic","Y","N") -> N
B34: TransGrid | C34: NSW | D34: Electricity | E34: Transmission | G34: N | K34: N | L34: N | M34: N | N34: N | O34: N | P34: - | Q34: =IFERROR(IF(_xlfn.SINGLE(dms_MAIFI_Flag)="Yes","N","Y"),"Y") -> Y | R34: N | S34: N | T34: Y | U34: Y | V34: N | W34: =IFERROR(LEFT(_xlfn.SINGLE(dms_MAIFI_Flag)),"N") -> N | X34: =IF('AER CF'!$C34="Vic","Y","N") -> N
B35: United Energy | C35: Vic | D35: Electricity | E35: Distribution | G35: N | H35: N | K35: N | L35: N | M35: N | N35: N | O35: N | P35: N | Q35: =IFERROR(IF(_xlfn.SINGLE(dms_MAIFI_Flag)="Yes","N","Y"),"Y") -> Y | R35: N | S35: N | T35: N | U35: Y | V35: N | W35: =IFERROR(LEFT(_xlfn.SINGLE(dms_MAIFI_Flag)),"N") -> N | X35: =IF('AER CF'!$C35="Vic","Y","N") -> Y
B38: Confidential
B39: Amended
B41: Worksheet 6.2 STPIS reliability
B42: Formula | F42: Applied to:
B44: =INDEX(dms_CBD_flag,MATCH(dms_TradingName,dms_TradingName_List))="NO" | F44: $D$11,$D$17,$D$23,$D$33,$D$39,$D$45,$D$55,$D$61,$D$67,$D$77,$D$83,$D$89
B45: =INDEX(dms_Urban_flag,MATCH(dms_TradingName,dms_TradingName_List))="NO" | F45: $D$12,$D$18,$D$24,$D$56,$D$62,$D$78,$D$68,$D$84
B46: =INDEX(dms_ShortRural_flag,MATCH(dms_TradingName,dms_TradingName_List))="NO" | F46: $D$13,$D$19,$D$25,$D$57,$D$63,$D$69,$D$79,$D$85
B47: =INDEX(dms_LongRural_flag,MATCH(dms_TradingName,dms_TradingName_List))="NO" | F47: $D$14,$D$20,$D$26,$D$58,$D$64,$D$65,$D$70,$D$71,$D$80,$D$86
B48: =INDEX(dms_FeederType_5_flag,MATCH(dms_TradingName,dms_TradingName_List))="NO" | F48: $D$87,$D$81,$D$71,$D$65,$D$59,$D$49,$D$43,$D$37,$D$21,$D$15
B49: =dms_MAIFI_Flag="No" | F49: $D$55:$D$72
B52: Business & other details
B53: =(INDEX(dms_Model_Span,MATCH(dms_Model,dms_Model_List))>1)
B54: =(INDEX(dms_Model_Span,MATCH(dms_Model,dms_Model_List))=1)
B57: STYLES IN USE | C57: dms_H2
B58: TOP HEADER | C58: dms_H1
B59: HEADING ONE | C59: dms_1
B60: HEADING TWO | C60: dms_2
B61: HEADING THREE | C61: dms_3
B62: HEADING FOUR | C62: dms_4
B63: HEADING FIVE | C63: dms_5
B64: 5.111 | C64: dms_NUM
B65: 0.0545 | C65: dms_NUM%
B66: 5.5555 | C66: dms_NUM3d
B67: Text description | C67: dms_Row_Locked
B68: Text description - not locked | C68: dms_Row1
B69: Text description | C69: dms_Row2
B70: Total | C70: dms_T1
B71: Total | C71: dms_T2
B72: EXPENSES | C72: dms_BH
B73: 2019 | C73: dms_BY1
B74: 2019 | C74: dms_BY2
B75: VOLUMES | C75: dms_GH
B76: 2019 | C76: dms_GY1
B77: 2019 | C77: dms_GY2

Sheet AER NRs (hidden)
B1: AER NAMED RANGES
B3: DROP DOWN SELECTORS USED IN WORKBOOKS
B5: COVER SHEET | C5: dms_DataQuality_List | D5: dms_Confid_status_List
C6: -- select -- | D6: -- select --
C7: Actual | D7: Public
C8: Estimate | D8: Confidential
C9: Consolidated
C12: For all files either AER or business needs to be able to specify the type of submission | D12: For PTRM & RFM templates we must provide a choice in case they change their form of control - otherwise it is drawn from the business specific lookup table above.
C13: dms_SourceList | D13: dms_FormControl_Choices
C14: -- select -- | D14: Revenue cap
C15: After appeal | D15: Revenue yield
C16: Draft decision | D16: Tariff cap
C17: Final decision | D17: Weighted average price cap
C18: PTRM update 1
C19: PTRM update 2
C20: PTRM update 3
C21: PTRM update 4
C22: PTRM update 5
C23: PTRM update 6
C24: PTRM update 7
C25: Reallocated
C26: Recast
C27: Regulatory proposal
C28: Reporting
C29: Revised regulatory proposal
K32: This is used to create an image to insert on 6.3 STPIS sheet - not for dropdown lists. | N32: GAS
B33: CA & RESET RINS DNSP | C33: dms_DNSP_020301_SubstationType | D33: dms_DNSP_020301_ProjectType | E33: dms_DNSP_020301_ProjectTrigger | F33: dms_DNSP_020302_ProjectType | G33: dms_DNSP_020302_ProjectTrigger | H33: dms_STPIS_Exclusion_List | I33: dms_Reason_Interruption | J33: dms_Reason_Interruption_Detailed | K33: Reason for interruption | N33: dms_N0205_AssetType
C34: Subtransmission substation | D34: New substation establishment | E34: Demand growth | F34: New line on new route - single circuit | G34: Demand growth | H34: Weather | I34: Animal | J34: Animal impact | K34: Animal | L34: Animal impact | N34: Cast Iron
C35: Zone substation | D35: Substation upgrade - capacity | E35: Voltage issues | F35: New line on new route - dual circuit | G35: Voltage issues | H35: Equipment failure | I35: Asset failure | J35: Animal nesting/burrowing, etc and other | L35: Animal nesting/burrowing, etc and other | N35: PVC
C36: Switching station | D36: Substation upgrade - voltage | E36: Reactive power issue | F36: New line on new route - other | G36: Reactive power issue | H36: Operational error | I36: Other | J36: Other | L36: Other | N36: Polyamide
C37: Other | D37: Other | E37: Fault level issues | F37: Line rebuild over existing route - single circuit | G37: Fault level issues | H37: Vegetation | I37: Overloads | J37: LV | K37: Asset failure | L37: LV | N37: High density polyethylene (80)
E38: Safety | F38: Line rebuild over existing route - dual circuit | G38: Net market benefit | H38: Animals | I38: Planned | J38: Distribution substation | L38: Distribution substation | N38: High density polyethylene (100)
E39: Environment | F39: Reconductor - Single circuit | G39: Safety | H39: Third party impacts | I39: Network business | J39: HV | L39: HV | N39: High density polyethylene (250)
E40: Other | F40: Reconductor - Dual circuit | G40: Environment | H40: Transmission failure | I40: Third party | J40: Zone substation | L40: Zone substation | N40: High density polyethylene (575)
F41: Reconductor - Other | G41: Other | H41: Load shedding | I41: Unknown | J41: Subtransmission | L41: Subtransmission | N41: Medium density polyethylene
F42: Line upgrade - raising/retensoring | H42: Inter-distributor connection failure | I42: Vegetation | J42: insert description of 'other' | K42: Other | L42: insert description of 'other' | N42: Unprotected steel
F43: Line upgrade - voltage upgrade | H43: Other | I43: Weather | J43: Network error | K43: Overloads | N43: Protected steel
F44: Line upgrade - capacity | I44: 2 - STPIS Exclusion (3.3)(a) | J44: Switching and protection error | K44: Planned | N44: Other
F45: String spare circuit | I45: 3 - STPIS Exclusion (3.3)(a) | J45: Fire | K45: Network business | L45: Network error
F46: Other | I46: 4 - STPIS Exclusion (3.3)(a) | J46: Other | L46: Switching and protection error
I47: 5 - STPIS Exclusion (3.3)(a) | J47: Dig-in | K47: Third party | L47: Fire
I48: 6 - STPIS Exclusion (3.3)(a) | J48: Unauthorised access | L48: Other
I49: 7 - STPIS Exclusion (3.3)(a) | J49: Vehicle impact | L49: Dig-in
J50: Unknown | L50: Unauthorised access
J51: Blow-in/Fall-in - NSP responsibility | L51: Vehicle impact
J52: Grow-in - NSP responsibility | K52: Unknown | L52: Unknown
J53: Blow-in/Fall-in - Other responsible party | K53: Vegetation | L53: Blow-in/Fall-in - NSP responsibility
J54: Grow-in - Other responsible party | L54: Grow-in - NSP responsibility
L55: Blow-in/Fall-in - Other responsible party
L56: Grow-in - Other responsible party
K57: Weather
K58: 2 - STPIS Exclusion (3.3)(a)
K59: 3 - STPIS Exclusion (3.3)(a)
K60: 4 - STPIS Exclusion (3.3)(a)
K61: 5 - STPIS Exclusion (3.3)(a)
K62: 6 - STPIS Exclusion (3.3)(a)
K63: 7 - STPIS Exclusion (3.3)(a)
B66: CA & RESET RINS TNSP | C66: dms_TNSP_0203_SubstationType | D66: dms_TNSP_020301_ProjectType | E66: dms_TNSP_020301_ProjectTrigger | F66: dms_TNSP_020302_ProjectType | G66: dms_TNSP_0203_ProjectTrigger
C67: Terminal station | D67: New substation establishment | E67: Demand growth | F67: New line on new route - single circuit | G67: Demand growth
C68: Switching station | D68: Capacity upgrade | E68: Voltage issues | F68: New line on new route - dual circuit | G68: Voltage issues
C69: Transmission substation | D69: Voltage upgrade | E69: Reactive power issue | F69: New line on new route - other | G69: Reactive power issue
C70: Other | D70: Other | E70: Fault level issues | F70: Line rebuild over existing route - single circuit | G70: Fault level issues
E71: Net market benefit | F71: Line rebuild over existing route - dual circuit | G71: Net market benefit
E72: Safety | F72: Reconductor - Single circuit | G72: Safety
E73: Environment | F73: Reconductor - Dual circuit | G73: Environment
E74: Other | F74: Reconductor - Other | G74: Other
F75: Line upgrade - raising/retensoring
F76: Line upgrade - voltage upgrade
F77: Line upgrade - capacity
F78: String spare circuit
F79: Other
B83: NAMED RANGES USED IN ETL PROCESS
M84: GAS ARR & RESET
B85: CA & RESET RINS DNSP ONLY | C85: dms_020303_01_UOM | D85: dms_020501_01_UOM | E85: dms_020501_02_UOM | F85: dms_020501_03_UOM | G85: dms_020501_04_UOM | H85: dms_020701_01_UOM | I85: dms_020701_02_UOM | J85: dms_020701_01_Rows | K85: dms_040102_01_UOM | L85: dms_040102_04_UOM | M85: dms_S140101_UOM | N85: dms_S140201_UOM | O85: dms_E050201_UOM | P85: dms_E050202_UOM
C86: Circuit line length in km | D86: 0's | E86: 0's | F86: 0's | G86: 0's | H86: km | I86: km | J86: Route line length within zone | K86: 0's | L86: days | M86: number | N86: number per km | O86: per metre per connection | P86: metres per connection
C87: Circuit line length in km | D87: 0's | E87: 0's | F87: 0's | G87: 0's | H87: 0's | I87: 0's | J87: Number of maintenance spans | K87: 0's | L87: 0's | M87: number | N87: number | O87: per service per connection | P87: number per connection
C88: Circuit line length in km | D88: MVA added | E88: MVA added | F88: MVA added | G88: MVA added | H88: km | I88: km | J88: Total length of maintenance spans | K88: 0's | L88: $0s | M88: number | N88: number | O88: number per connection | P88: number per connection
C89: Circuit line length in km | D89: 0's | E89: 0's | F89: 0's | G89: 0's | H89: km | I89: km | J89: Length of vegetation corridors | K89: $0s | L89: 0's | M89: km
C90: Number | D90: total spend $0s | E90: total spend $0s | F90: total spend $0s | G90: total spend $0s | H90: 0's | I90: 0's | J90: Average number of trees per maintenance span
C91: Number | D91: net circuit km added | E91: net circuit km added | F91: net circuit km added | G91: net circuit km added | H91: years | I91: years | J91: Average frequency of cutting cycle
C92: Number | D92: total spend $0s | E92: total spend $0s | F92: total spend $0s | G92: total spend $0s
D93: net circuit km added | E93: net circuit km added | F93: net circuit km added | G93: net circuit km added
D94: total spend $0s | E94: total spend $0s | F94: total spend $0s | G94: total spend $0s
D95: 0's | F95: $0s
D96: 0's
D97: 0's
D98: $0s
B101: CA & RESET RINS TNSP ONLY | C101: dms_020701_01_UOM
C102: km
C103: 0's
C104: km
C105: 0's
C106: km
C107: metres
C108: years
B111: CA & RESET RINS DNSP & TNSP | C111: dms_020603_01_UOM
C112: 0's
C113: 0's
C114: 0's
C115: 0's
C116: (per cent)
B119: EB & RESET RINS DNSP ONLY | C119: dms_030601_01_UOM | D119: dms_030601_02_UOM | E119: dms_030701_01_UOM | F119: dms_030702_01_UOM | G119: dms_030703_01_UOM
C120: minutes/customer | D120: minutes/customer | E120: Customer / km | F120: % | G120: km
C121: minutes/customer | D121: minutes/customer | E121: MWh/customer | F121: Number of spans
C122: interruptions/customer | D122: interruptions/customer | E122: kVA / customer | F122: Number of spans
C123: interruptions/customer | D123: interruptions/customer | F123: Number of spans
F124: Number of spans
F125: Years
F126: Years
F127: Trees
F128: Trees
F129: Defects
F130: Defects
F131: Spans
F132: km
F133: Spans
C135: WHEN INSERTING COVER SHEET INTO A TNSP FILE - APPLY THESE NAMED RANGES
B136: EB & RESET RINS TNSP ONLY | C136: dms_030601_01_UOM | E136: dms_030701_01_UOM | F136: dms_030702_01_UOM
C137: % | E137: Number of spans | F137: km
C138: number | E138: Years | F138: %
C139: number | E139: Trees | F139: km
C140: % | E140: Defects | F140: number
C141: number | E141: Number of spans
C142: number | E142: km
C143: % | E143: km
C144: number | E144: Number of spans
C145: number
C146: %
C147: number
C148: %
C149: number
C150: %
C151: number
B153: EB & RESET RINS DNSP & TNSP | C153: dms_EB_RAB_PIT
C154: Beginning of year
C155: End of year
C156: End of year
C157: End of year
C158: End of year
C159: End of year
B161: ARR DNSP ONLY | C161: dms_030605_UOM | D161: dms_03060703_UOM | E161: dms_E020202_UOM | F161: Spare
C162: number | D162: number | E162: Length of mains replaced
C163: number | D163: number | E163: Number of services replaced
C164: number | D164: number
C165: number | D165: number
C166: number | D166: (per cent)
C167: number
C168: number
C169: number
C170: number
C171: number
C172: number
C173: number
C174: (per cent)
C175: (per cent)
B177: RFM | C177: dms_Beg | D177: dms_Mid | E177: dms_End
C178: Beginning of year | D178: Mid year | E178: End of Year
B180: PTRM | C180: dms_PTRM_RAB_PIT | D180: dms_PTRM_TAB_PIT | E180: DMS_Xfactor
C181: Beginning of year | D181: Beginning of year | E181: x factors
C182: End of year | D182: End of year
C183: End of year | D183: End of year
C184: End of year | D184: End of year
C185: End of year
B188: STPIS & MIC NAMED RANGES
B190: These "row descriptions" are the column headings in the various templates but become row descriptions in the ETL process
B192: Table 6.3 sustained interruptions - row descriptions | C192: dms_060301_CustNo_Affected_Row | D192: dms_060301_Avg_Duration_Sustained_Int_Row | E192: dms_060301_Effect_unplanned_SAIDI_Row | F192: dms_060301_Effect_unplanned_SAIFI_Row
C193: Number of customers affected by the interruption | D193: Average duration of sustained customer interruption | E193: Effect on unplanned SAIDI | F193: Effect on unplanned SAIFI
B196: Table 6.1 telephone answering - row descriptions and start date | C196: dms_060101_Rows | D196: dms_060102_Rows | E196: dms_060101_StartDateTxt
C197: Total number of calls (after removing excluded events) | D197: Number of calls answered within 30 seconds (after excluding excluded events) | E197: =dms_060701_StartDateTxt -> 
B200: Table 6.8.1 - row descriptions | C200: dms_060801_01_Rows | D200: dms_060801_02_Rows | E200: dms_060801_03_Rows | F200: dms_060801_04_Rows
C201: Number of interruptions | D201: Duration of interruptions | E201: Total unplanned minutes off supply | F201: Effect on unplanned MAIFI
B204: Table 7.9.4 - market impact component - row descriptions | C204: dms_070904_01_Rows | D204: without exclusions | E204: with exclusions
B207: These headings (Lists) are determined from the INDEX/MATCH function on the NSP selected on the Business & other details sheet
B209: Table 6.7.1 - daily performance data - unplanned - MAIFI -- row descriptions and header named range values | C209: dms_060701_Feeder_Header_Lvl4 | D209: =INDEX(dms_FeederName_1,MATCH(dms_TradingName,dms_TradingName_List)) -> CBD | E209: =INDEX(dms_FeederName_1,MATCH(dms_TradingName,dms_TradingName_List)) -> CBD | F209: =INDEX(dms_FeederName_2,MATCH(dms_TradingName,dms_TradingName_List)) -> Urban | G209: =INDEX(dms_FeederName_2,MATCH(dms_TradingName,dms_TradingName_List)) -> Urban | H209: =INDEX(dms_FeederName_3,MATCH(dms_TradingName,dms_TradingName_List)) -> Short rural | I209: =INDEX(dms_FeederName_3,MATCH(dms_TradingName,dms_TradingName_List)) -> Short rural | J209: =INDEX(dms_FeederName_4,MATCH(dms_TradingName,dms_TradingName_List)) -> Long rural | K209: =INDEX(dms_FeederName_4,MATCH(dms_TradingName,dms_TradingName_List)) -> Long rural | L209: =IF((INDEX(dms_FeederName_5,MATCH(dms_TradingName,dms_TradingName_List))=0),"Network",(INDEX(dms_FeederName_5,MATCH(dms_TradingName,dms_TradingName_List)))) -> Network | M209: =IF((INDEX(dms_FeederName_5,MATCH(dms_TradingName,dms_TradingName_List))=0),"Network",(INDEX(dms_FeederName_5,MATCH(dms_TradingName,dms_TradingName_List)))) -> Network | N209: Network | O209: Network
C211: dms_060701_Rows | D211: All events | E211: After removing excluded events | F211: All events | G211: After removing excluded events | H211: All events | I211: After removing excluded events | J211: All events | K211: After removing excluded events | L211: All events | M211: After removing excluded events | N211: All events | O211: After removing excluded events
D212: the number of column headings changes from 10 to 12 depending on the number of feeder categories for the NSP
C214: dms_0603_FeederList | D214: =INDEX(dms_FeederName_1,MATCH(dms_TradingName,dms_TradingName_List)) -> CBD | E214: =INDEX(dms_FeederName_2,MATCH(dms_TradingName,dms_TradingName_List)) -> Urban | F214: =INDEX(dms_FeederName_3,MATCH(dms_TradingName,dms_TradingName_List)) -> Short rural | G214: =INDEX(dms_FeederName_4,MATCH(dms_TradingName,dms_TradingName_List)) -> Long rural
B217: Use these to add to specific worksheets in existing files | C217: Use these to add to specific worksheets in existing files
B220: ARRs 6.7 STPIS daily performance | C220: dms_060101_Values | D220: dms_060102_Values | E220: dms_060701_Values
C221: dms_LeapYear
B224: ARR's 6.8 STPIS exclusions | C224: dms_060801_Event_Date | D224: dms_060801_OutageID | E224: dms_060801_FeederID | F224: dms_060801_FeederClass | G224: dms_060801_CauseID | H224: dms_060801_01_Values | I224: dms_060801_02_Values | J224: dms_060801_03_Values | K224: dms_060801_Excl_Cat | L224: dms_060801_04_Values
C225: dms_060801_StartCell
B228: CA 6.3 sustained interruptions | C228: dms_060301_Event_Date | D228: dms_060301_Event_Time | E228: dms_060301_AssetID | F228: dms_060301_FeederClass | G228: dms_060301_Reason | H228: dms_060301_DetailedReason | I228: dms_060301_CustNo_Affected_Values | J228: dms_060301_Avg_Duration_Sustained_Int_Values | K228: dms_060301_Effect_unplanned_SAIDI_Values | L228: dms_060301_Effect_unplanned_SAIFI_Values | M228: dms_060301_MED
B232: PTRM input sheet | C232: DMS_50_01_01a | D232: DMS_50_01_01aa | E232: DMS_50_01_01b | F232: DMS_50_01_01bb | G232: DMS_50_01_01c | H232: DMS_50_01_01d | I232: DMS_50_01_01dd

Sheet AER lookups (hidden)
B1: AER LOOKUP TABLES
B3: Template number | C3: 5
Y5: FOR ELECTRICITY BUSINESSES ONLY
Y6: Feeder Types | AC6: TasNetworks (D) | AD6: Feeder Names
Y8: CBD | Z8: Urban | AA8: Short rural | AB8: long rural | AC8: EXTRA
B9: dms_TradingName_List | C9: dms_TradingNameFull_List | D9: dms_ABN_List | E9: dms_JurisdictionList | F9: dms_Sector_List | G9: dms_Segment_List | H9: dms_FormControl_List | I9: dms_RPT_List | J9: dms_RPTMonth_List | K9: dms_CRCPlength_List | L9: dms_FRCPlength_List | M9: dms_PRCPlength_List | N9: dms_663_List | O9: dms_Addr1_List | P9: dms_Addr2_List | Q9: dms_Suburb_List | R9: dms_State_List | S9: dms_PostCode_List | T9: dms_PAddr1_List | U9: dms_PAddr2_List | V9: dms_PSuburb_List | W9: dms_PState_List | X9: dms_PPostCode_List | Y9: dms_CBD_flag | Z9: dms_Urban_flag | AA9: dms_ShortRural_flag | AB9: dms_LongRural_flag | AC9: dms_FeederType_5_flag | AD9: dms_FeederName_1 | AE9: dms_FeederName_2 | AF9: dms_FeederName_3 | AG9: dms_FeederName_4 | AH9: dms_FeederName_5 | AI9: dms_MAIFI_flag_List | AJ9: dms_Public_Lighting_List | AK9: Name
B10: Ausgrid | C10: Ausgrid | D10: 67505337385 | E10: NSW | F10: Electricity | G10: Distribution | H10: Revenue cap | I10: Financial | J10: June | K10: 5 | L10: 5 | M10: 5 | N10: 5 | O10: 570 George St | Q10: SYDNEY | R10: NSW | S10: 2000 | T10: GPO Box 4009 | V10: SYDNEY | W10: NSW | X10: 2001 | Y10: YES | Z10: YES | AA10: YES | AB10: YES | AC10: NO | AD10: CBD | AE10: Urban | AF10: Short rural | AG10: Long rural | AI10: NO | AJ10: YES | AK10: =B10 -> Ausgrid
B11: Ausgrid (Tx Assets) | C11: Ausgrid (Tx Assets) | D11: 67505337385 | E11: NSW | F11: Electricity | G11: Distribution | H11: Revenue cap | I11: Financial | J11: June | K11: 5 | L11: 5 | M11: 5 | N11: 5 | O11: 570 George St | Q11: SYDNEY | R11: NSW | S11: 2000 | T11: GPO Box 4009 | V11: SYDNEY | W11: NSW | X11: 2001 | Y11: YES | Z11: YES | AA11: YES | AB11: YES | AC11: NO | AD11: CBD | AE11: Urban | AF11: Short rural | AG11: Long rural | AI11: NO | AJ11: NO | AK11: Ausgrid (Tx Assets)
B12: Australian Distribution Co. | C12: Australian Distribution Co. | D12: 11222333444 | E12: NSW | F12: Electricity | G12: Distribution | H12: Revenue cap | I12: Financial | J12: June | K12: 5 | L12: 5 | M12: 5 | N12: 2 | O12: 123 Straight Street | Q12: SYDNEY | R12: NSW | S12: 2000 | T12: PO Box 123 | V12: SYDNEY | W12: NSW | X12: 2000 | Y12: YES | Z12: YES | AA12: YES | AB12: YES | AC12: NO | AD12: CBD | AE12: Urban | AF12: Short rural | AG12: Long rural | AI12: NO | AJ12: YES | AK12: Australian Distribution Co.
B13: Endeavour Energy | C13: Endeavour Energy | D13: 11247365823 | E13: NSW | F13: Electricity | G13: Distribution | H13: Revenue cap | I13: Financial | J13: June | K13: 5 | L13: 5 | M13: 5 | N13: 5 | O13: 51 Huntingwood Drive | Q13: HUNTINGWOOD | R13: NSW | S13: 2148 | T13: PO Box 811 | V13: SEVEN HILLS | W13: NSW | X13: 1730 | Y13: NO | Z13: YES | AA13: YES | AB13: YES | AC13: NO | AD13: CBD | AE13: Urban | AF13: Short rural | AG13: Long rural | AI13: NO | AJ13: YES | AK13: Endeavour Energy
B14: Essential Energy | C14: Essential Energy | D14: 37428185226 | E14: NSW | F14: Electricity | G14: Distribution | H14: Revenue cap | I14: Financial | J14: June | K14: 5 | L14: 5 | M14: 5 | N14: 5 | O14: 8 Buller Street | Q14: PORT MACQUARIE | R14: NSW | S14: 2444 | T14: PO Box 5730 | V14: PORT MACQUARIE | W14: NSW | X14: 2444 | Y14: NO | Z14: YES | AA14: YES | AB14: YES | AC14: NO | AD14: CBD | AE14: Urban | AF14: Short rural | AG14: Long rural | AI14: NO | AJ14: YES | AK14: Essential Energy
B15: Evoenergy Distribution | C15: Evoenergy Distribution | D15: 76670568688 | E15: ACT | F15: Electricity | G15: Distribution | H15: Revenue cap | I15: Financial | J15: June | K15: 5 | L15: 5 | M15: 5 | N15: 5 | O15: 40 Bunda Street | Q15: CANBERRA | R15: ACT | S15: 2600 | T15: GPO BOX 366 | V15: CANBERRA | W15: ACT | X15: 2601 | Y15: NO | Z15: YES | AA15: YES | AB15: NO | AC15: NO | AD15: CBD | AE15: Urban | AF15: Short rural | AG15: Long rural | AI15: NO | AJ15: NO | AK15: Evoenergy Distribution
B16: Evoenergy Distribution (Tx Assets) | C16: Evoenergy Distribution (Tx Assets) | D16: 76670568688 | E16: ACT | F16: Electricity | G16: Distribution | H16: Revenue cap | I16: Financial | J16: June | K16: 5 | L16: 5 | M16: 5 | N16: 5 | O16: 40 Bunda Street | Q16: CANBERRA | R16: ACT | S16: 2600 | T16: GPO BOX 366 | V16: CANBERRA | W16: ACT | X16: 2601 | Y16: NO | Z16: YES | AA16: YES | AB16: NO | AC16: NO | AD16: CBD | AE16: Urban | AF16: Short rural | AG16: Long rural | AI16: NO | AJ16: NO | AK16: Evoenergy Distribution (Tx Assets)
B17: Power and Water | C17: Power and Water Corporation | D17: 15947352360 | E17: NT | F17: Electricity | G17: Distribution | H17: Revenue cap | I17: Financial | J17: June | K17: 5 | L17: 5 | M17: 5 | N17: x | O17: GPO Box 1921 | Q17: DARWIN | R17: NT | S17: 801 | T17: GPO Box 1921 | V17: DARWIN | W17: NT | X17: 801 | Y17: YES | Z17: YES | AA17: YES | AB17: YES | AC17: NO | AD17: CBD | AE17: Urban | AF17: Short rural | AG17: Long rural | AI17: NO | AJ17: NO | AK17: Power and Water
B18: TasNetworks (D) | C18: TasNetworks (D) | D18: 24167357299 | E18: Tas | F18: Electricity | G18: Distribution | H18: Revenue cap | I18: Financial | J18: June | K18: 5 | L18: 5 | M18: 5 | N18: 5 | O18: 1-7 Maria Street | Q18: LENAH VALLEY | R18: Tas | S18: 7008 | T18: PO Box 606 | V18: MOONAH | W18: Tas | X18: 7009 | Y18: YES | Z18: YES | AA18: YES | AB18: YES | AC18: YES | AD18: Critical Infrastructure | AE18: Urban | AF18: High density commercial | AG18: High density rural | AH18: Low density rural | AI18: NO | AJ18: YES | AK18: TasNetworks (D)
B23: The Reg Year Ending (dms_RYE) must be set to the last year of the regulatory period. For forecast data is is usually (FRCP_y5) for actual it is a single year (CRY). For historical actual data the RYE will need to be set manually in the business details sheet by setting the dms_Multiyear_flag to 1 and putting the correct value in 'dms_Specified_FinalYear. See cells C67:C68
B24: dms_Model_List | C24: dms_Model_Name_Format1 | D24: dms_Worksheet_List | E24: dms_Model_Span_List
B25: ARR | C25: Annual Reporting | D25: =IF(dms_MultiYear_ResponseFlag="yes","NEW HISTORICAL ANNUAL REPORTING","ANNUAL REPORTING") -> NEW HISTORICAL ANNUAL REPORTING | E25: 1
B26: CA | C26: Category Analysis | D26: =IF(dms_MultiYear_ResponseFlag="yes","NEW HISTORICAL CATEGORY ANALYSIS","CATEGORY ANALYSIS") -> NEW HISTORICAL CATEGORY ANALYSIS | E26: 1
B27: CESS | C27: Capitlal Expenditure | D27: CAPITLAL EXPENDITURE SHARING SCHEMING | E27: 5
B28: CPI | C28: CPI | D28: CPI | E28: 5
B29: EB | C29: Economic Benchmarking | D29: =IF(dms_MultiYear_ResponseFlag="yes","NEW HISTORICAL ECONOMIC BENCHMARKING","ECONOMIC BENCHMARKING") -> NEW HISTORICAL ECONOMIC BENCHMARKING | E29: 1
B30: EBSS | C30: Efficiency Benefit Sharing Scheme | D30: EFFICIENCY BENEFIT SHARING SCHEME | E30: 5
B31: Pricing | C31: Pricing Proposal | D31: PRICING PROPOSAL | E31: 5
B32: Profitability | C32: Profitability | D32: PROFITABILITY | E32: 5
B33: PTRM | C33: Post Tax Revenue Model | D33: POST TAX REVENUE MODEL | E33: 5
B34: Reset | C34: Regulatory Reporting (Reset) | D34: REGULATORY REPORTING STATEMENT | E34: 5
B35: RFM | C35: Roll Forward Model | D35: ROLL FORWARD MODEL | E35: 5
B36: WACC | C36: Weighted Average Cost of Capital | D36: WEIGHTED AVERAGE COST OF CAPITAL | E36: 1
B40: Financial | C40: Calendar | E40: PREVIOUS | G40: CURRENT | I40: FORTHCOMING
B41: 1987-88 | C41: 1988 | D41: PRCP_y1 | E41: =INDEX(INDIRECT(dms_RPT),dms_PRCP_start_row) -> 2014-15 | F41: CRCP_y1 | G41: =INDEX(INDIRECT(dms_RPT),dms_CRCP_start_row) -> 2019-20 | H41: =FRCP_y1 -> 2024-25 | I41: =INDEX(INDIRECT(dms_RPT),dms_FRCP_start_row) -> 2024-25
B42: 1988-89 | C42: 1989 | D42: PRCP_y2 | E42: =INDEX(INDIRECT(dms_RPT),dms_PRCP_start_row+1) -> 2015-16 | F42: CRCP_y2 | G42: =INDEX(INDIRECT(dms_RPT),dms_CRCP_start_row+1) -> 2020-21 | H42: FRCP_y2 | I42: =INDEX(INDIRECT(dms_RPT),dms_FRCP_start_row+1) -> 2025-26
B43: 1989-90 | C43: 1990 | D43: PRCP_y3 | E43: =INDEX(INDIRECT(dms_RPT),dms_PRCP_start_row+2) -> 2016-17 | F43: CRCP_y3 | G43: =INDEX(INDIRECT(dms_RPT),dms_CRCP_start_row+2) -> 2021-22 | H43: FRCP_y3 | I43: =INDEX(INDIRECT(dms_RPT),dms_FRCP_start_row+2) -> 2026-27
B44: 1990-91 | C44: 1991 | D44: PRCP_y4 | E44: =INDEX(INDIRECT(dms_RPT),dms_PRCP_start_row+3) -> 2017-18 | F44: CRCP_y4 | G44: =INDEX(INDIRECT(dms_RPT),dms_CRCP_start_row+3) -> 2022-23 | H44: FRCP_y4 | I44: =INDEX(INDIRECT(dms_RPT),dms_FRCP_start_row+3) -> 2027-28
B45: 1991-92 | C45: 1992 | D45: PRCP_y5 | E45: =INDEX(INDIRECT(dms_RPT),dms_PRCP_start_row+4) -> 2018-19 | F45: CRCP_y5 | G45: =INDEX(INDIRECT(dms_RPT),dms_CRCP_start_row+4) -> 2023-24 | H45: FRCP_y5 | I45: =INDEX(INDIRECT(dms_RPT),dms_FRCP_start_row+4) -> 2028-29
B46: 1992-93 | C46: 1993 | D46: PRCP_y6 | E46: =INDEX(INDIRECT(dms_RPT),dms_PRCP_start_row+5) -> 2019-20 | F46: CRCP_y6 | G46: =INDEX(INDIRECT(dms_RPT),dms_CRCP_start_row+5) -> 2024-25 | H46: FRCP_y6 | I46: =INDEX(INDIRECT(dms_RPT),dms_FRCP_start_row+5) -> 2029-30
B47: 1993-94 | C47: 1994 | D47: PRCP_y7 | E47: =INDEX(INDIRECT(dms_RPT),dms_PRCP_start_row+6) -> 2020-21 | F47: CRCP_y7 | G47: =INDEX(INDIRECT(dms_RPT),dms_CRCP_start_row+6) -> 2025-26 | H47: FRCP_y7 | I47: =INDEX(INDIRECT(dms_RPT),dms_FRCP_start_row+6) -> 2030-31
B48: 1994-95 | C48: 1995 | D48: PRCP_y8 | E48: =INDEX(INDIRECT(dms_RPT),dms_PRCP_start_row+7) -> 2021-22 | F48: CRCP_y8 | G48: =INDEX(INDIRECT(dms_RPT),dms_CRCP_start_row+7) -> 2026-27 | H48: FRCP_y8 | I48: =INDEX(INDIRECT(dms_RPT),dms_FRCP_start_row+7) -> 2031-32
B49: 1995-96 | C49: 1996 | D49: PRCP_y9 | E49: =INDEX(INDIRECT(dms_RPT),dms_PRCP_start_row+8) -> 2022-23 | F49: CRCP_y9 | G49: =INDEX(INDIRECT(dms_RPT),dms_CRCP_start_row+8) -> 2027-28 | H49: FRCP_y9 | I49: =INDEX(INDIRECT(dms_RPT),dms_FRCP_start_row+8) -> 2032-33
B50: 1996-97 | C50: 1997 | D50: PRCP_y10 | E50: =INDEX(INDIRECT(dms_RPT),dms_PRCP_start_row+9) -> 2023-24 | F50: CRCP_y10 | G50: =INDEX(INDIRECT(dms_RPT),dms_CRCP_start_row+9) -> 2028-29 | H50: FRCP_y10 | I50: =INDEX(INDIRECT(dms_RPT),dms_FRCP_start_row+9) -> 2033-34
B51: 1997-98 | C51: 1998 | D51: PRCP_y11 | E51: =INDEX(INDIRECT(dms_RPT),dms_PRCP_start_row+10) -> 2024-25 | F51: CRCP_y11 | G51: =INDEX(INDIRECT(dms_RPT),dms_CRCP_start_row+10) -> 2029-30 | H51: FRCP_y11 | I51: =INDEX(INDIRECT(dms_RPT),dms_FRCP_start_row+10) -> 2034-35
B52: 1998-99 | C52: 1999 | D52: PRCP_y12 | E52: =INDEX(INDIRECT(dms_RPT),dms_PRCP_start_row+11) -> 2025-26 | F52: CRCP_y12 | G52: =INDEX(INDIRECT(dms_RPT),dms_CRCP_start_row+11) -> 2030-31 | H52: FRCP_y12 | I52: =INDEX(INDIRECT(dms_RPT),dms_FRCP_start_row+11) -> 2035-36
B53: 1999-00 | C53: 2000 | D53: PRCP_y13 | E53: =INDEX(INDIRECT(dms_RPT),dms_PRCP_start_row+12) -> 2026-27 | F53: CRCP_y13 | G53: =INDEX(INDIRECT(dms_RPT),dms_CRCP_start_row+12) -> 2031-32 | H53: FRCP_y13 | I53: =INDEX(INDIRECT(dms_RPT),dms_FRCP_start_row+12) -> 2036-37
B54: 2000-01 | C54: 2001 | D54: PRCP_y14 | E54: =INDEX(INDIRECT(dms_RPT),dms_PRCP_start_row+13) -> 2027-28 | F54: CRCP_y14 | G54: =INDEX(INDIRECT(dms_RPT),dms_CRCP_start_row+13) -> 2032-33 | H54: FRCP_y14 | I54: =INDEX(INDIRECT(dms_RPT),dms_FRCP_start_row+13) -> 2037-38
B55: 2001-02 | C55: 2002 | D55: PRCP_y15 | E55: =INDEX(INDIRECT(dms_RPT),dms_PRCP_start_row+14) -> 2028-29 | F55: CRCP_y15 | G55: =INDEX(INDIRECT(dms_RPT),dms_CRCP_start_row+14) -> 2033-34 | H55: FRCP_y15 | I55: =INDEX(INDIRECT(dms_RPT),dms_FRCP_start_row+14) -> 2038-39
B56: 2002-03 | C56: 2003 | D56: PRCP_y16 | E56: =INDEX(INDIRECT(dms_RPT),dms_PRCP_start_row+15) -> 2029-30 | F56: CRCP_y16 | G56: =INDEX(INDIRECT(dms_RPT),dms_CRCP_start_row+15) -> 2034-35 | H56: FRCP_y16 | I56: =INDEX(INDIRECT(dms_RPT),dms_FRCP_start_row+15) -> 2039-40
B57: 2003-04 | C57: 2004 | D57: PRCP_y17 | E57: =INDEX(INDIRECT(dms_RPT),dms_PRCP_start_row+16) -> 2030-31 | F57: CRCP_y17 | G57: =INDEX(INDIRECT(dms_RPT),dms_CRCP_start_row+16) -> 2035-36 | H57: FRCP_y17 | I57: =INDEX(INDIRECT(dms_RPT),dms_FRCP_start_row+16) -> 2040-41
B58: 2004-05 | C58: 2005 | D58: PRCP_y18 | E58: =INDEX(INDIRECT(dms_RPT),dms_PRCP_start_row+17) -> 2031-32 | F58: CRCP_y18 | G58: =INDEX(INDIRECT(dms_RPT),dms_CRCP_start_row+17) -> 2036-37 | H58: FRCP_y18 | I58: =INDEX(INDIRECT(dms_RPT),dms_FRCP_start_row+17) -> 2041-42
B59: 2005-06 | C59: 2006 | D59: PRCP_y19 | E59: =INDEX(INDIRECT(dms_RPT),dms_PRCP_start_row+18) -> 2032-33 | F59: CRCP_y19 | G59: =INDEX(INDIRECT(dms_RPT),dms_CRCP_start_row+18) -> 2037-38 | H59: FRCP_y19 | I59: =INDEX(INDIRECT(dms_RPT),dms_FRCP_start_row+18) -> 2042-43
B60: 2006-07 | C60: 2007 | D60: PRCP_y20 | E60: =INDEX(INDIRECT(dms_RPT),dms_PRCP_start_row+19) -> 2033-34 | F60: CRCP_y20 | G60: =INDEX(INDIRECT(dms_RPT),dms_CRCP_start_row+19) -> 2038-39 | H60: FRCP_y20 | I60: =INDEX(INDIRECT(dms_RPT),dms_FRCP_start_row+19) -> 2043-44
B61: 2007-08 | C61: 2008 | D61: PRCP_y21 | E61: =INDEX(INDIRECT(dms_RPT),dms_PRCP_start_row+20) -> 2034-35 | F61: CRCP_y21 | G61: =INDEX(INDIRECT(dms_RPT),dms_CRCP_start_row+20) -> 2039-40 | H61: FRCP_y21 | I61: =INDEX(INDIRECT(dms_RPT),dms_FRCP_start_row+20) -> 2044-45
B62: 2008-09 | C62: 2009 | D62: PRCP_y22 | E62: =INDEX(INDIRECT(dms_RPT),dms_PRCP_start_row+21) -> 2035-36 | F62: CRCP_y22 | G62: =INDEX(INDIRECT(dms_RPT),dms_CRCP_start_row+21) -> 2040-41 | H62: FRCP_y22 | I62: =INDEX(INDIRECT(dms_RPT),dms_FRCP_start_row+21) -> 2045-46
B63: 2009-10 | C63: 2010 | D63: PRCP_y23 | E63: =INDEX(INDIRECT(dms_RPT),dms_PRCP_start_row+22) -> 2036-37 | F63: CRCP_y23 | G63: =INDEX(INDIRECT(dms_RPT),dms_CRCP_start_row+22) -> 2041-42 | H63: FRCP_y23 | I63: =INDEX(INDIRECT(dms_RPT),dms_FRCP_start_row+22) -> 2046-47
B64: 2010-11 | C64: 2011 | D64: PRCP_y24 | E64: =INDEX(INDIRECT(dms_RPT),dms_PRCP_start_row+23) -> 2037-38 | F64: CRCP_y24 | G64: =INDEX(INDIRECT(dms_RPT),dms_CRCP_start_row+23) -> 2042-43 | H64: FRCP_y24 | I64: =INDEX(INDIRECT(dms_RPT),dms_FRCP_start_row+23) -> 2047-48
B65: 2011-12 | C65: 2012 | D65: PRCP_y25 | E65: =INDEX(INDIRECT(dms_RPT),dms_PRCP_start_row+24) -> 2038-39 | F65: CRCP_y25 | G65: =INDEX(INDIRECT(dms_RPT),dms_CRCP_start_row+24) -> 2043-44 | H65: FRCP_y25 | I65: =INDEX(INDIRECT(dms_RPT),dms_FRCP_start_row+24) -> 
B66: 2012-13 | C66: 2013
B67: 2013-14 | C67: 2014
B68: 2014-15 | C68: 2015
B69: 2015-16 | C69: 2016
B70: 2016-17 | C70: 2017
B71: 2017-18 | C71: 2018
B72: 2018-19 | C72: 2019
B73: 2019-20 | C73: 2020
B74: 2020-21 | C74: 2021
B75: 2021-22 | C75: 2022 | E75: CRY - FRY
B76: 2022-23 | C76: 2023 | D76: dms_y1 | E76: =IFERROR(INDEX(INDIRECT(dms_RPT),dms_CRY_start_row),0) -> 2006-07
B77: 2023-24 | C77: 2024 | D77: dms_y2 | E77: =IFERROR(INDEX(INDIRECT(dms_RPT),dms_CRY_start_row+1),0) -> 2007-08
B78: 2024-25 | C78: 2025 | D78: dms_y3 | E78: =IFERROR(INDEX(INDIRECT(dms_RPT),dms_CRY_start_row+2),0) -> 2008-09
B79: 2025-26 | C79: 2026 | D79: dms_y4 | E79: =IFERROR(INDEX(INDIRECT(dms_RPT),dms_CRY_start_row+3),0) -> 2009-10
B80: 2026-27 | C80: 2027 | D80: dms_y5 | E80: =IFERROR(INDEX(INDIRECT(dms_RPT),dms_CRY_start_row+4),0) -> 2010-11
B81: 2027-28 | C81: 2028 | D81: dms_y6 | E81: =IFERROR(INDEX(INDIRECT(dms_RPT),dms_CRY_start_row+5),0) -> 2011-12
B82: 2028-29 | C82: 2029 | D82: dms_y7 | E82: =IFERROR(INDEX(INDIRECT(dms_RPT),dms_CRY_start_row+6),0) -> 2012-13
B83: 2029-30 | C83: 2030 | D83: dms_y8 | E83: =IFERROR(INDEX(INDIRECT(dms_RPT),dms_CRY_start_row+7),0) -> 2013-14
B84: 2030-31 | C84: 2031 | D84: dms_y9 | E84: =IFERROR(INDEX(INDIRECT(dms_RPT),dms_CRY_start_row+8),0) -> 2014-15
B85: 2031-32 | C85: 2032 | D85: dms_y10 | E85: =IFERROR(INDEX(INDIRECT(dms_RPT),dms_CRY_start_row+9),0) -> 2015-16
B86: 2032-33 | C86: 2033 | D86: dms_y11 | E86: =IFERROR(INDEX(INDIRECT(dms_RPT),dms_CRY_start_row+10),0) -> 2016-17
B87: 2033-34 | C87: 2034 | D87: dms_y12 | E87: =IFERROR(INDEX(INDIRECT(dms_RPT),dms_CRY_start_row+11),0) -> 2017-18
B88: 2034-35 | C88: 2035 | D88: dms_y13 | E88: =IFERROR(INDEX(INDIRECT(dms_RPT),dms_CRY_start_row+12),0) -> 2018-19
B89: 2035-36 | C89: 2036 | D89: dms_y14 | E89: =IFERROR(INDEX(INDIRECT(dms_RPT),dms_CRY_start_row+13),0) -> 2019-20
B90: 2036-37 | C90: 2037 | D90: dms_y15 | E90: =IFERROR(INDEX(INDIRECT(dms_RPT),dms_CRY_start_row+14),0) -> 2020-21
B91: 2037-38 | C91: 2038 | D91: dms_y16 | E91: =IFERROR(INDEX(INDIRECT(dms_RPT),dms_CRY_start_row+15),0) -> 2021-22
B92: 2038-39 | C92: 2039 | D92: dms_y17 | E92: =IFERROR(INDEX(INDIRECT(dms_RPT),dms_CRY_start_row+16),0) -> 2022-23
B93: 2039-40 | C93: 2040 | D93: dms_y18 | E93: =IFERROR(INDEX(INDIRECT(dms_RPT),dms_CRY_start_row+17),0) -> 2023-24
B94: 2040-41 | C94: 2041 | D94: dms_y19 | E94: =IFERROR(INDEX(INDIRECT(dms_RPT),dms_CRY_start_row+18),0) -> 2024-25
B95: 2041-42 | C95: 2042 | D95: dms_y20 | E95: =IFERROR(INDEX(INDIRECT(dms_RPT),dms_CRY_start_row+19),0) -> 2025-26
B96: 2042-43 | C96: 2043 | D96: dms_y21 | E96: =IFERROR(INDEX(INDIRECT(dms_RPT),dms_CRY_start_row+20),0) -> 2026-27
B97: 2043-44 | C97: 2044 | D97: dms_y22 | E97: =IFERROR(INDEX(INDIRECT(dms_RPT),dms_CRY_start_row+21),0) -> 2027-28
B98: 2044-45 | C98: 2045 | D98: dms_y23 | E98: =IFERROR(INDEX(INDIRECT(dms_RPT),dms_CRY_start_row+22),0) -> 2028-29
B99: 2045-46 | C99: 2046 | D99: dms_y24 | E99: =IFERROR(INDEX(INDIRECT(dms_RPT),dms_CRY_start_row+23),0) -> 2029-30
B100: 2046-47 | C100: 2047 | D100: dms_y25 | E100: =IFERROR(INDEX(INDIRECT(dms_RPT),dms_CRY_start_row+24),0) -> 2030-31
B101: 2047-48 | C101: 2048 | D101: dms_y26 | E101: =IFERROR(INDEX(INDIRECT(dms_RPT),dms_CRY_start_row+25),0) -> 2031-32

Sheet AER ETL (hidden)
B1: AER ETL INFORMATION
B3: USES NAMED RANGES FLAG | C3: yes | D3: dms_Defined_Names_Used
B5: IF THIS IS AN ABC RIN - make sure the the named range CRY is applied and the named range dms_dollar_nom_UOM is applied
B6: IF THIS IS A RESET RIN - make sure the named ranges CRY and dms_dollar_nom_UOM are NOT present in the workbook
B7: FOR ABC RINS THAT SPAN MULTIPLE YEARS - make sure MultiYear Flag is set and final year entered as required
B9: Full trading name | C9: =INDEX(dms_TradingNameFull_List,MATCH(dms_TradingName,dms_TradingName_List)) -> Power and Water Corporation | E9: dms_TradingNameFull
B10: Trading name | C10: =dms_TradingName -> Power and Water
A11: Selected here | B11: Model / RIN | C11: EB | D11: dms_Model
A12: Read from Business & other details | B12: Source | C12: Recast | D12: dms_Source | E12: =IF(dms_Model="Reset", "Make sure you have set Reg Proposal as source","") -> 
B13: Data quality | C13: Consolidated | D13: For DB purposes this is always Consoldiated
B14: Data status | C14: Public | D14: For DB purposes this is always Public
B15: Amendment reason | C15: =dms_Amendment_Text -> . | F15: dms_AmendmentReason
B16: Submission date | C16: =dms_Typed_Submission_Date -> 31/01/23 | D16: dms_SubmissionDate
A18: Redundant | B18: EBSS - First application of scheme in forthcoming period? | C18: No
A19: Pre-populated from lookup table | B19: Data ingestion data quality | C19: Consolidated | D19: dms_DataQuality | E19: Always Consolidated
B20: Sector | C20: =INDEX(dms_Sector_List,MATCH(dms_TradingName,dms_TradingName_List)) -> Electricity | D20: dms_Sector | E20: =INDEX(dms_Sector_List,MATCH(dms_TradingName,dms_TradingName_List))
B21: Segment | C21: =INDEX(dms_Segment_List,MATCH(dms_TradingName,dms_TradingName_List)) -> Distribution | D21: dms_Segment | E21: =INDEX(dms_Segment_List,MATCH(dms_TradingName,dms_TradingName_List))
B22: Regulatory Year Ending | C22: =IF(dms_MultiYear_Flag=1,LEFT(dms_Specified_FinalYear,2)&RIGHT(dms_Specified_FinalYear,2),dms_RYE_result) -> 2022 | D22: dms_RYE | E22: =IF(dms_MultiYear_Flag=1,LEFT(dms_Specified_FinalYear,2)&RIGHT(dms_Specified_FinalYear,2),dms_RYE_result)
B23: Reporting Period Type | C23: =INDEX(dms_RPT_List,MATCH(dms_TradingName,dms_TradingName_List)) -> Financial | D23: dms_RPT | E23: =INDEX(dms_RPT_List,MATCH(dms_TradingName,dms_TradingName_List))
B24: EB/CA Unit of Measure for Monetary Values | C24: $0s | D24: dms_dollar_nom_UOM | E24: =IF(dms_SingleYearModel="yes","This is set to an historical template (EB, CA or ARR), apply UOM Named Range to cell !","This is not an historical template, make sure UOM Named Range is not applied") -> This is set to an historical template (EB, CA or ARR), apply UOM Named Range to cell ! | J24: =IFERROR(dms_dollar_nom_UOM, "NR not applied") -> NR not applied
B25: Security Classification | C25: Public | D25: dms_Classification | E25: Always Public
B26: Jurisdiction | C26: =INDEX(dms_JurisdictionList,MATCH(dms_TradingName,dms_TradingName_List)) -> NT | D26: dms_Jurisdiction | E26: =INDEX(dms_JurisdictionList,MATCH(dms_TradingName,dms_TradingName_List))
A27: Relevant for PTRM, RFMs and Reset RINS | B27: $ REAL REFERENCES
B28: Does the named range CRY exist in this file? | C28: =IFERROR(CRY,"NO") -> 2006-07
B29: CRY-1 (last full calendar year before CRY) | C29: =IFERROR(IF(dms_RPT="calendar",CRY-1,LEFT(CRY,4)),"CRY not present") -> 2006 | D29: dms_Cal_Year_B4_CRY | E29: '=IF(dms_RPT="financial",VALUE(LEFT(dms_SingleYear_FinalYear_Result,4)),VALUE(LEFT(dms_SingleYear_FinalYear_Result,4)-1))
B30: Dollar $ real month | C30: =INDEX(dms_RPTMonth_List,MATCH(dms_TradingName,dms_TradingName_List)) -> June | D30: dms_RPTMonth | E30: =INDEX(dms_RPTMonth_List,MATCH(dms_TradingName,dms_TradingName_List))
B31: Dollar $ real (the last month before the FRCP_y1) | C31: =IF(dms_Model="RFM",dms_DollarReal_Prev, IF(dms_SingleYearModel="yes",CONCATENATE(dms_RPTMonth)&" "&VALUE((LEFT(dms_CRY_start_year,2)&RIGHT(dms_CRY_start_year,2))),CONCATENATE(dms_RPTMonth)&" "&dms_DollarReal_year)) -> June 2007 | D31: dms_DollarReal | E31: =IF(dms_Model="RFM",dms_DollarReal_Prev, IF(dms_SingleYearModel="yes",CONCATENATE(dms_RPTMonth)&" "&VALUE((LEFT(dms_CRY_start_year,2)&RIGHT(dms_CRY_start_year,2))),CONCATENATE(dms_RPTMonth)&" "&dms_DollarReal_year))
B32: Dollar $ real previous year (PRCP_y5) | C32: =CONCATENATE(dms_RPTMonth)&" "&dms_Previous_DollarReal_year -> June 2019 | D32: dms_DollarReal_Prev | E32: =IF(SUM(dms_SingleYear_Model)>0,CONCATENATE(dms_RPTMonth)&" "&VALUE(((LEFT(CRY,2))&RIGHT(CRY,2))-1),CONCATENATE(dms_RPTMonth)&" "&VALUE(((LEFT(dms_CRCP_FirstYear_Result,2)&RIGHT(dms_CRCP_FirstYear_Result,2))))-1)
B33: PTRM/ RFMs
B34: Form of control | C34: =INDEX(dms_FormControl_List,MATCH(dms_TradingName,dms_TradingName_List)) -> Revenue cap | D34: dms_FormControl | E34: =INDEX(dms_FormControl_List,MATCH(dms_TradingName,dms_TradingName_List))
A35: All potential values for Regulatory Years or RYEs as calculated | B35: This block works out the various RYE's for ALL RIN types and MODELS
B36: dms_start_year | C36: =FRCP_y1 -> 2024-25 | D36: =FRCP_y1 | E36: FRCP_y1 from cover sheet
B37: dms_CRY_start_year | C37: =IFERROR(CRY,CRCP_y4) -> 2006-07 | D37: =IFERROR(CRY,CRCP_y4)
B38: dms_CRY_start_row | C38: =IFERROR(MATCH(dms_CRY_start_year,INDIRECT(dms_RPT),0),0) -> 20 | D38: =IFERROR(MATCH(dms_CRY_start_year,INDIRECT(dms_RPT),0),0)
B39: dms_FRCP_start_row | C39: =MATCH(dms_start_year,INDIRECT(dms_RPT),0) -> 38 | D39: =MATCH(dms_start_year,INDIRECT(dms_RPT),0) | E39: Uses FRCP_y1 as a start reference
B40: dms_CRCP_start_row | C40: =dms_FRCP_start_row-dms_CRCPlength_Num -> 33 | D40: =dms_FRCP_start_row-dms_CRCPlength_Num | E40: Uses the value in dms_CRCPlength_Num
B41: dms_PRCP_start_row | C41: =dms_FRCP_start_row-dms_CRCPlength_Num-dms_PRCPlength_Num -> 28 | D41: =dms_FRCP_start_row-dms_CRCPlength_Num-dms_PRCPlength_Num | E41: Uses the value in dms_CRCPlength_Num and dms_PRCPlength_Num
B42: dms_RYE_start_row | C42: =dms_FRCP_start_row+(dms_FRCPlength_Num-1) -> 42 | D42: =dms_FRCP_start_row+(dms_FRCPlength_Num-1) | E42: Uses the value in dms_FRCPlength_Num-1
B43: FRCP_start_year | C43: =INDEX(INDIRECT(dms_RPT),dms_FRCP_start_row) -> 2024-25 | D43: =INDEX(INDIRECT(dms_RPT),dms_FRCP_start_row) | E43: Converts the FRCP start row to display the year
B44: CRCP_start_year | C44: =INDEX(INDIRECT(dms_RPT),dms_CRCP_start_row) -> 2019-20 | D44: =INDEX(INDIRECT(dms_RPT),dms_CRCP_start_row) | E44: Converts the CRCP start row to display the year
B45: PRCP_start_year | C45: =INDEX(INDIRECT(dms_RPT),dms_PRCP_start_row) -> 2014-15 | D45: =INDEX(INDIRECT(dms_RPT),dms_PRCP_start_row) | E45: Converts the PRCP start row to display the year
B46: FRCP_final_year | C46: =INDEX(INDIRECT(dms_RPT),dms_FRCP_start_row+dms_FRCPlength_Num-1) -> 2028-29 | D46: =INDEX(INDIRECT(dms_RPT),dms_FRCP_start_row+dms_FRCPlength_Num-1) | E46: Finds the FRCP final year
B47: CRCP_final_year | C47: =INDEX(INDIRECT(dms_RPT),dms_CRCP_start_row+dms_CRCPlength_Num-1) -> 2023-24 | D47: =INDEX(INDIRECT(dms_RPT),dms_CRCP_start_row+dms_CRCPlength_Num-1) | E47: Finds the CRCP final year
B48: PRCP_final_year | C48: =INDEX(INDIRECT(dms_RPT),dms_PRCP_start_row+dms_FRCPlength_Num-1) -> 2018-19 | D48: =INDEX(INDIRECT(dms_RPT),dms_PRCP_start_row+dms_FRCPlength_Num-1) | E48: Finds the PRCP final year
B49: dms_Reset_final_year | C49: =INDEX(INDIRECT(dms_RPT),dms_RYE_start_row) -> 2028-29 | D49: =INDEX(INDIRECT(dms_RPT),dms_RYE_start_row) | E49: For Resets and PTRM/RFMs (same as FRCP_final_year)
B50: dms_SpecifiedYear_final_year | C50: =FRY -> 2021-22 | D50: =FRY | E50: FRY from cover sheet
B51: dms_DollarReal_year | C51: =LEFT(CRCP_final_year,2)&RIGHT(CRCP_final_year,2) -> 2024 | D51: =LEFT(CRCP_final_year,2)&RIGHT(CRCP_final_year,2) | E51: Uses the value in CRCP_final_year
B52: dms_Previous_DollarReal_year | C52: =LEFT(PRCP_final_year,2)&RIGHT(PRCP_final_year,2) -> 2019 | D52: =LEFT(PRCP_final_year,2)&RIGHT(PRCP_final_year,2) | E52: Uses the value in PRCP_final_year
B53: dms_CRY_RYE | C53: =IFERROR(LEFT(CRY,2)&RIGHT(CRY,2),0) -> 2007 | D53: =IFERROR(LEFT(CRY,2)&RIGHT(CRY,2),0) | E53: For ABC single year RINS
B54: dms_Reset_RYE | C54: =IF(dms_Model_Span>1,IF(dms_Model="RFM",(LEFT(dms_DollarReal_year,2)&RIGHT(dms_DollarReal_year,2)),(LEFT(dms_Reset_final_year,2)&RIGHT(dms_Reset_final_year,2))),0) -> 0 | D54: =IF(dms_Model_Span>1,IF(dms_Model="RFM",(LEFT(dms_DollarReal_year,2)&RIGHT(dms_DollarReal_year,2)),(LEFT(dms_Reset_final_year,2)&RIGHT(dms_Reset_final_year,2))),0) | E54: If model span > 1 then uses dms_Reset_RYE otherwise it's a multi year ABC and uses dms_Specified_RYE
B55: dms_Specified_RYE | C55: =IF(dms_MultiYear_ResponseFlag="Yes",(LEFT(dms_Specified_FinalYear,2)&RIGHT(dms_Specified_FinalYear,2)),0) -> 2022 | D55: =IF(dms_MultiYear_ResponseFlag="Yes",(LEFT(dms_Specified_FinalYear,2)&RIGHT(dms_Specified_FinalYear,2)),0) | E55: If multi year ABC - uses dms_Specified_FinalYear
B56: dms_Model_Span | C56: =INDEX(dms_Model_Span_List,MATCH(dms_Model,dms_Model_List)) -> 1 | D56: =INDEX(dms_Model_Span_List,MATCH(dms_Model,dms_Model_List)) | E56: A result of 5 is used to signify that it is more than 1 year span
B57: dms_RYE_result | C57: =IF(dms_MultiYear_ResponseFlag="yes",dms_Specified_RYE,(IF(dms_Model_Span>1,dms_Reset_RYE,dms_CRY_RYE))) -> 2022 | D57: =IF(dms_MultiYear_ResponseFlag="yes",dms_Specified_RYE,(IF(dms_Model_Span>1,dms_Reset_RYE,dms_CRY_RYE))) | E57: Nested IF - feeds into dms_RYE
B58: dms_Reset_Span | C58: =IF(dms_Reset_RYE>0,CONCATENATE(FRCP_y1," to ",FRCP_final_year),0) -> 0 | D58: =IF(dms_Reset_RYE>0,CONCATENATE(FRCP_y1," to ",FRCP_final_year),0) | E58: Reset span of years as text
B59: dms_SpecifiedYear_Span | C59: =IF(dms_Specified_RYE>0,CONCATENATE(CRY," to ",dms_Specified_FinalYear),0) -> 2006-07 to 2021-22 | D59: =IF(dms_Specified_RYE>0,CONCATENATE(CRY," to ",dms_Specified_FinalYear),0) | E59: Multi year ABC span of years as text
B60: dms_Header_Span | C60: =IF(dms_MultiYear_Flag=1,dms_SpecifiedYear_Span,IF(dms_Model_Span>1,dms_y1&" to "&FRCP_final_year,CRY)) -> 2006-07 to 2021-22 | D60: =IF(dms_MultiYear_Flag=1,dms_SpecifiedYear_Span,IF(dms_Model_Span>1,dms_Reset_Span,CRY)) | E60: NESTED IF - for Sheet Headers
B61: ABC RINS THAT SPAN MULTIPLE YEARS
B62: This is a multi year ABC RIN? | C62: Yes
C63: =IF(dms_MultiYear_ResponseFlag="No",0,1) -> 1 | D63: dms_MultiYear_Flag | E63: This is set from the answer provided above
C64: =IF(dms_MultiYear_Flag=1,FRY,"not a Multiple year submission") -> 2021-22 | D64: dms_Specified_FinalYear | E64: The result here is returned to dms_CRCP_FinalYear_Result if response to Q in C73 is "yes" and dms_MultiYear_Flag is set to 1
B65: Start year for 5.2 in Multi year ABC RINS | C65: =IFERROR(IF(dms_MultiYear_Flag=1,FRY,CRY),"not an ABC") -> 2021-22 | D65: dms_0502_Inst_Year | E65: =IF(dms_MultiYear_Flag=1,FRY,CRY) | G65: For single year RINS this is CRY - multi year RINS need to start a the end of the span of years (ie. FRY)
B66: WHAT IS THE RYE?
B67: Reg Period Lengths
B68: PRCP length in years | C68: =INDEX(dms_PRCPlength_List,MATCH(dms_TradingName,dms_TradingName_List)) -> 5 | D68: dms_PRCPlength_Num | E68: =INDEX(dms_PRCPlength_List,MATCH(dms_TradingName,dms_TradingName_List))
B69: CRCP length in years | C69: =INDEX(dms_CRCPlength_List,MATCH(dms_TradingName,dms_TradingName_List)) -> 5 | D69: dms_CRCPlength_Num | E69: =INDEX(dms_CRCPlength_List,MATCH(dms_TradingName,dms_TradingName_List))
B70: FRCP length in years | C70: =INDEX(dms_FRCPlength_List,MATCH(dms_TradingName,dms_TradingName_List)) -> 5 | D70: dms_FRCPlength_Num | E70: =INDEX(dms_FRCPlength_List,MATCH(dms_TradingName,dms_TradingName_List))
B71: Single year RIN?
B72: Single Year ABC RIN ? | C72: =IF(dms_Model="EB",1,0) -> 1 | D72: dms_EB
C73: =IF(dms_Model="CA",1,0) -> 0 | D73: dms_CA | E73: =dms_SingleYear_Model
C74: =IF(dms_Model="ARR",1,0) -> 0 | D74: dms_ARR
B75: Is this a single Year ABC RIN? | C75: =IF(SUM(dms_SingleYear_Model)=1,"yes","no") -> yes | D75: dms_SingleYearModel | E75: =IF(SUM(dms_SingleYear_Model)=1,"yes","no")
B76: Single Year Final Year Result | C76: =IF(AND(dms_SingleYearModel="yes",dms_MultiYear_Flag=0),CRY,0) -> 0 | D76: dms_SingleYear_FinalYear_Result | E76: =IFERROR(IF(SUM(dms_SingleYear_Model)<>0,(INDIRECT(dms_SingleYear_FinalYear_Ref)),"not a single year RIN"),"CRY not present")
B77: Multi year RIN?
B79: Multi Year Reset/Model? | C79: =IF(dms_Model_Span>1,"yes","no") -> no
B80: Final year result for Reset/Model | C80: =IF(dms_Model_Span>1,dms_Reset_final_year,0) -> 0 | D80: dms_MultiYear_FinalYear_Result | E80: dms_CRCP_FinalYear_Result
B82: Multi Year ABC RIN? | C82: =IF(dms_MultiYear_Flag=1,"yes","no") -> yes | D82: dms_MultiYear_ABC_RIN
B83: Final year result for ABC multi year | C83: =IF(dms_MultiYear_Flag=1,C50,0) -> 2021-22
B85: EB RINS
B86: Calendar Year for table 3.6 data | C86: =IFERROR(IF(dms_Segment="Transmission",dms_Cal_Year_B4_CRY,CRY),"CRY not present") -> 2006-07 | D86: dms_0306_Year | E86: =IF(dms_Segment="Transmission",dms_Cal_Year_B4_CRY,CRY)
B87: CA RINS
B88: Find how many rows in tables 6.3 sustained interruptions? | E88: dms_060301_MaxRows only returns a valid value when cover sheet is attached to a CA file
C89: =IF(dms_Model<>"CA","not a CA","Is a CA") -> not a CA | E89: =IF(dms_Model<>"CA","not a CA","Is a CA")
B90: dms_060301_Avg_Duration_Sustained_Int_Values present? | C90: =IFERROR(IF(INDEX(dms_060301_Avg_Duration_Sustained_Int_Values,1,1)<>"","yes","no"),"no") -> no | D90: dms_060301_checkvalue | E90: =IFERROR(IF(INDEX(dms_060301_Avg_Duration_Sustained_Int_Values,1,1)<>"","yes","no"),"no")
C91: =IF(AND(dms_Model="CA",(dms_060301_checkvalue="no")),"error - NR not present","no errors") -> no errors | E91: =IF(AND(dms_Model="CA",(dms_060301_checkvalue="no")),"error - NR not present","no errors")
B92: Table 6.3.1 - last row reference | C92: =IFERROR(IF(dms_Model="CA",LOOKUP(2,1/(dms_060301_Avg_Duration_Sustained_Int_Values<>""),(ROW(dms_060301_Avg_Duration_Sustained_Int_Values))),"not a CA"),"6.3 not present") -> not a CA | D92: dms_060301_LastRow | E92: =IFERROR(IF(dms_Model="CA",LOOKUP(2,1/(dms_060301_Avg_Duration_Sustained_Int_Values<>""),(ROW(dms_060301_Avg_Duration_Sustained_Int_Values))),"not a CA"),"6.3 not present")
B93: Table 6.3.1 - max number rows | C93: =IFERROR(IF(dms_Model="CA",(dms_060301_LastRow-15),"not a CA"),"error") -> not a CA | D93: dms_060301_MaxRows | E93: =IFERROR(IF(dms_Model="CA",(dms_060301_LastRow-15),"not a CA"),"error")
B94: Table 6.6.3 - Public lighting repair - no. business days | C94: =INDEX(dms_663_List,MATCH(dms_TradingName,dms_TradingName_List)) -> x | D94: dms_663 | E94: =INDEX(dms_663_List,MATCH(dms_TradingName,dms_TradingName_List))
B95: ARR or RESET RINS
B96: How many rows in tables 6.1 or 6.7? (leap year?) | C96: insert dms_LeapYear NR if required | E96: 'dms_LeapYear is used to determine dms_060701_Max_Rows BUT it is only found on worksheet 6.1 or 6.7 and the date value in the cell is used to determine whether it is a leap year
B97: Is dms_LeapYear named range present? | C97: =IFERROR(IF(dms_LeapYear,"yes"),"no") -> no
B98: Table 6.7.1 - includes a leap year? | C98: =IFERROR(IF(MONTH(DATE(YEAR(dms_LeapYear),2,29))=2,"is a leap year","not a leap year"), "dms_LeapYear not present") -> dms_LeapYear not present | D98: dms_LeapYear_Result | E98: =IFERROR(IF(MONTH(DATE(YEAR(dms_LeapYear),2,29))=2,"is a leap year","not a leap year"),"dms_LeapYear not present")
B99: MaxRows if Reset and leap year | C99: =IF(dms_LeapYear_Result="is a leap year",1827,1826) -> 1826 | D99: dms_060701_Reset_MaxRows | E99: =IF(dms_LeapYear_Result="is a leap year",1827,1826) | H99: number of days present in Reset RIN table
B100: MaxRows if ARR and leap year | C100: =IF(dms_LeapYear_Result="is a leap year",366,365) -> 365 | D100: dms_060701_ARR_MaxRows | E100: =IF(dms_LeapYear_Result="is a leap year",366,365) | H100: number of days present in ARR RIN table
B101: Table 6.7.1 - Max Rows (leap year/ non leap year) | C101: =IF(dms_Model="ARR",dms_060701_ARR_MaxRows,IF(dms_Model="Reset",dms_060701_Reset_MaxRows,"not a relevant RIN type")) -> not a relevant RIN type | D101: dms_060701_MaxRows | E101: =IF(dms_Model="ARR",dms_060701_ARR_MaxRows,IF(dms_Model="Reset",dms_060701_Reset_MaxRows,"not a relevant RIN type"))
B102: How many columns in 6.7? (4 or 5 feeder categories) | C102: =IF(dms_FifthFeeder_flag_NSP="NO","This NSP has only 4 feeder categories","This NSP has 5 feeder categories") -> This NSP has only 4 feeder categories
B103: Table 6.7.1 - Last column (# of feeder categories > 4) | C103: =IF(dms_FifthFeeder_flag_NSP="NO",10,12) -> 10 | D103: dms_060701_MaxCols | E103: =IF(dms_FifthFeeder_flag_NSP="NO",8,10)
B104: Table 6.7.1 - Number of offset rows | C104: =IF(dms_Model="ARR",15,9) -> 9 | D104: dms_060701_OffsetRows | E104: =IF(dms_Model="ARR",15,9)
B105: Start date for telephone answering in 6.1 or 6.7? | E105: Using 060101 as naming standard not 060701 for start dates
B106: Table 6.1.1 and 6.7.1 - Start Date as Text | C106: =IF(dms_SingleYearModel="yes",(CONCATENATE(IF(LEN(CRY)=4,"1-Jan-","1-Jul-"),LEFT(CRY,4))),(CONCATENATE(IF(LEN(PRCP_y4)=4,"1-Jan-","1-Jul-"),LEFT(PRCP_y4,4)))) -> 1-Jul-2006 | D106: dms_060101_StartDateTxt | E106: =IF(SUM(dms_SingleYear_Model)>1,(CONCATENATE(IF(LEN(CRY)=4,"1-Jan-","1-Jul-"),LEFT(CRY,4))),(CONCATENATE(IF(LEN(CRCP_y4)=4,"1-Jan-","1-Jul-"),LEFT(CRCP_y4,4))))
B107: Table 6.1.1 and 6.7.1 - Start Date as Date Value | C107: =DATEVALUE(dms_060101_StartDateTxt) -> 38899 | D107: dms_060101_StartDateVal | E107: =DATEVALUE(dms_060701_StartDateTxt)
B108: Does the NSP report MAIFI or MAIFIe | C108: =INDEX(dms_MAIFI_flag_List,MATCH(dms_TradingName,dms_TradingName_List)) -> NO | D108: dms_MAIFI_Flag
B109: ARRs
B110: How many rows in table 6.8? | C110: insert dms_060801_StartCell NR if required | E110: dms_060801_StartCell is only found on worksheet 6.8 and is used to determine the starting date for the date range
B111: Is dms_060801_StartCell named range present? | C111: yes | D111: Must be present for ARRs | E111: =IFERROR(IF((ROW(dms_060801_StartCell)-1)=1,"yes","yes"),"no")
B112: Table 6.8 - Number of offset rows | C112: 12 | D112: dms_0608_OffsetRows | E112: =IFERROR(IF(dms_Model="ARR",(ROW(dms_060801_StartCell)-1),"not an ARR"),"6.8 error")
B113: Table 6.8 - Last row | C113: 0 | D113: dms_0608_LastRow | E113: =IFERROR(IF(dms_060801_StartCell<>"",IF(dms_Model="ARR",(LOOKUP(2,1/(dms_060801_01_Values<>""),(ROW(dms_060801_01_Values)))),"not an ARR"),0),"0")
B114: Table 6.8 - MaxRows | C114: =IFERROR(IF(dms_Model="ARR",(MAX(0,dms_0608_LastRow-dms_0608_OffsetRows)),"not an ARR"),"0") -> not an ARR | D114: dms_060801_MaxRows | E114: =IFERROR(IF(dms_Model="ARR",(MAX(0,dms_0608_LastRow-dms_0608_OffsetRows)),"not an ARR"),"0")
B115: TNSP RESET RINS
B116: Table 7.9.4 only appears in TNSPs Reset RIN
B117: Table 7.9.4 - first year | C117: =LEFT(PRCP_y3,4) -> 2016 | D117: dms_070904_Start_Year | E117: =LEFT(PRCP_y3,4)
B119: MISC
B120: Public lighting NSP? | C120: =INDEX(dms_Public_Lighting_List,MATCH(dms_TradingName,dms_TradingName_List)) -> NO | D120: dms_Public_Lighting | E120: =INDEX(dms_Public_Lighting_List,MATCH(dms_TradingName,dms_TradingName_List))
B121: CBD Feeder for this business | C121: =INDEX(dms_CBD_flag,MATCH(dms_TradingName,dms_TradingName_List)) -> YES | D121: dms_CBD_flag_NSP
B122: Urban Feeder for this business | C122: =INDEX(dms_Urban_flag,MATCH(dms_TradingName,dms_TradingName_List)) -> YES | D122: dms_Urban_flag_NSP
B123: Short rural Feeder for this business | C123: =INDEX(dms_ShortRural_flag,MATCH(dms_TradingName,dms_TradingName_List)) -> YES | D123: dms_ShortRural_flag_NSP
B124: Long rural Feeder for this business | C124: =INDEX(dms_LongRural_flag,MATCH(dms_TradingName,dms_TradingName_List)) -> YES | D124: dms_LongRural_flag_NSP
B125: Fifth Feeder Category (eg. TasNetworks (D)) | C125: =INDEX(dms_FeederType_5_flag,MATCH(dms_TradingName,dms_TradingName_List)) -> NO | D125: dms_FifthFeeder_flag_NSP | E125: =INDEX(dms_FeederType_5_flag,MATCH(dms_TradingName,dms_TradingName_List))
B127: DISCARD FILES
B128: discard this record? | C128: NO | D128: dms_DISCARD | E128: If record is to be discarded from DB set this flag to YES
B130: SUBSET FILES
B131: Is this Submission File a Subset File | C131: NO | D131: dms_Partial
B134: REGULATORY YEARS FOR MULTI RYE SUBMISSIONS
B135: Multiple RYE flag | C135: NO | D135: dms_Multi_RYE_flag
C136: Manually specify RYE | D136: Named ranges to apply
C137: 2013 | D137: dms_RYE_01
C138: 2014 | D138: dms_RYE_02
C139: 2015 | D139: dms_RYE_03
C140: 2016 | D140: dms_RYE_04
C141: 2017 | D141: dms_RYE_05
C142: 2018 | D142: dms_RYE_06
C143: 2019 | D143: dms_RYE_07
C144: 2020 | D144: dms_RYE_08
C145: 2021 | D145: dms_RYE_09
C146: 2022 | D146: dms_RYE_10
C147: 2023 | D147: dms_RYE_11
C148: 2024 | D148: dms_RYE_12
